Workbook

Sheet 1234
K2: b2 | L2: (radians) | M2: b41 | N2: b42 | O2: -Z1x | P2: -Z1y | Q2: R1x | R2: R1y | S2: -Z2x | T2: -Z2y | U2: R2x | V2: R12y
A3: d2 | B3: -5 | C3: 105 | D3: a2 | E3: =F3*PI()/180 -> 0.5235987756 | F3: 30 | K3: 0 | L3: =K3*PI()/180 -> 0 | M3: =Burmester(B3:C3,B4:C4,B5:C5,E3,E4,E5,L3) -> 3.40669603e-16 | N3: 5.184183006 | O3: =ThreePosition_Basic2(E3,E5,B3:C3,B5:C5,L3,M3) -> -151.0746452 | P3: 35.26114797 | Q3: -4.800857526e+17 | R3: 3.74937252e+17 | S3: =ThreePosition_Basic2(E3,E5,B3:C3,B5:C5,L3,N3) -> -198.4326674 | T3: 43.16987298 | U3: 60.3730895 | V3: 17.60700102
A4: d3 | B4: 40 | C4: 115 | D4: a3 | E4: =F4*PI()/180 -> 0 | F4: 0
A5: d4 | B5: 60 | C5: 80 | D5: a4 | E5: =F5*PI()/180 -> -0.872664626 | F5: -50
A7: b2 | C7: b41 | D7: b42 | E7: -Z1 | G7: R1 | I7: -Z2 | K7: R2
A8: 0 | B8: =A8*PI()/180 -> 0 | C8: =Burmester($B$3:$C$3,$B$4:$C$4,$B$5:$C$5,$E$3,$E$4,$E$5,B8) -> 3.40669603e-16 | D8: 5.184183006 | E8: =ThreePosition_Basic2($E$3,$E$5,$B$3:$C$3,$B$5:$C$5,B8,C8) -> -151.0746452 | F8: 35.26114797 | G8: -4.800857526e+17 | H8: 3.74937252e+17 | I8: =ThreePosition_Basic2($E$3,$E$5,$B$3:$C$3,$B$5:$C$5,B8,D8) -> -198.4326674 | J8: 43.16987298 | K8: 60.3730895 | L8: 17.60700102
A9: 0.5 | B9: =A9*PI()/180 -> 0.00872664626 | C9: =Burmester($B$3:$C$3,$B$4:$C$4,$B$5:$C$5,$E$3,$E$4,$E$5,B9) -> 0.01735458599 | D9: 5.188221069 | E9: =ThreePosition_Basic2($E$3,$E$5,$B$3:$C$3,$B$5:$C$5,B9,C9) -> -71.04298568 | F9: -43.7630359 | G9: -8691.304701 | H9: 3019.045387 | I9: =ThreePosition_Basic2($E$3,$E$5,$B$3:$C$3,$B$5:$C$5,B9,D9) -> -202.6061282 | J9: 44.74044526 | K9: 60.51280658 | L9: 17.67733749
A10: 1 | B10: 0.01745329252 | C10: =Burmester($B$3:$C$3,$B$4:$C$4,$B$5:$C$5,$E$3,$E$4,$E$5,B10) -> 0.03468829907 | D10: 5.192238994 | E10: =ThreePosition_Basic2($E$3,$E$5,$B$3:$C$3,$B$5:$C$5,B10,C10) -> -71.09713053 | F10: -44.15163664 | G10: -4375.876954 | H10: 1517.619606 | I10: =ThreePosition_Basic2($E$3,$E$5,$B$3:$C$3,$B$5:$C$5,B10,D10) -> -206.9255328 | J10: 46.36276566 | K10: 60.65024828 | L10: 17.74945048
A11: 1.5 | B11: 0.02617993878 | C11: =Burmester($B$3:$C$3,$B$4:$C$4,$B$5:$C$5,$E$3,$E$4,$E$5,B11) -> 0.05199987472 | D11: 5.196237721 | E11: =ThreePosition_Basic2($E$3,$E$5,$B$3:$C$3,$B$5:$C$5,B11,C11) -> -71.14742362 | F11: -44.54099778 | G11: -2937.407028 | H11: 1016.875386 | I11: =ThreePosition_Basic2($E$3,$E$5,$B$3:$C$3,$B$5:$C$5,B11,D11) -> -211.3984698 | J11: 48.03944161 | K11: 60.78548641 | L11: 17.82328294
A12: 2 | B12: 0.03490658504 | C12: =Burmester($B$3:$C$3,$B$4:$C$4,$B$5:$C$5,$E$3,$E$4,$E$5,B12) -> 0.06928810258 | D12: 5.200218149 | E12: =ThreePosition_Basic2($E$3,$E$5,$B$3:$C$3,$B$5:$C$5,B12,C12) -> -71.19390246 | F12: -44.93105404 | G12: -2218.172947 | H12: 766.3007874 | I12: =ThreePosition_Basic2($E$3,$E$5,$B$3:$C$3,$B$5:$C$5,B12,D12) -> -216.0330734 | J12: 49.77327204 | K12: 60.91858968 | L12: 17.89878053
A13: 2.5 | B13: 0.0436332313 | C13: =Burmester($B$3:$C$3,$B$4:$C$4,$B$5:$C$5,$E$3,$E$4,$E$5,B13) -> 0.08655182409 | D13: 5.204181136 | E13: =ThreePosition_Basic2($E$3,$E$5,$B$3:$C$3,$B$5:$C$5,B13,C13) -> -71.23660335 | F13: -45.32174218 | G13: -1786.630371 | H13: 615.7934813 | I13: =ThreePosition_Basic2($E$3,$E$5,$B$3:$C$3,$B$5:$C$5,B13,D13) -> -220.8380736 | J13: 51.56726443 | K13: 61.04962378 | L13: 17.97589145
A14: 3 | B14: 0.05235987756 | C14: =Burmester($B$3:$C$3,$B$4:$C$4,$B$5:$C$5,$E$3,$E$4,$E$5,B14) -> 0.1037899302 | D14: 5.208127503 | E14: =ThreePosition_Basic2($E$3,$E$5,$B$3:$C$3,$B$5:$C$5,B14,C14) -> -71.27556145 | F14: -45.71300093 | G14: -1498.931232 | H14: 515.3194062 | I14: =ThreePosition_Basic2($E$3,$E$5,$B$3:$C$3,$B$5:$C$5,B14,D14) -> -225.8228502 | J14: 53.42465388 | K14: 61.17865157 | L14: 18.05456632
A15: 3.5 | B15: 0.06108652382 | C15: =Burmester($B$3:$C$3,$B$4:$C$4,$B$5:$C$5,$E$3,$E$4,$E$5,B15) -> 0.1210013593 | D15: 5.212058036 | E15: =ThreePosition_Basic2($E$3,$E$5,$B$3:$C$3,$B$5:$C$5,B15,C15) -> -71.3108108 | F15: -46.10477086 | G15: -1293.426394 | H15: 443.435432 | I15: =ThreePosition_Basic2($E$3,$E$5,$B$3:$C$3,$B$5:$C$5,B15,D15) -> -230.9974946 | J15: 55.34892424 | K15: 61.3057332 | L15: 18.13475805
A16: 4 | B16: 0.06981317008 | C16: =Burmester($B$3:$C$3,$B$4:$C$4,$B$5:$C$5,$E$3,$E$4,$E$5,B16) -> 0.138185095 | D16: 5.215973487 | E16: =ThreePosition_Basic2($E$3,$E$5,$B$3:$C$3,$B$5:$C$5,B16,C16) -> -71.34238443 | F16: -46.4969943 | G16: -1139.29132 | H16: 389.4200267 | I16: =ThreePosition_Basic2($E$3,$E$5,$B$3:$C$3,$B$5:$C$5,B16,D16) -> -236.3728779 | J16: 57.34383185 | K16: 61.43092622 | L16: 18.21642173
A17: 4.5 | B17: 0.07853981634 | C17: =Burmester($B$3:$C$3,$B$4:$C$4,$B$5:$C$5,$E$3,$E$4,$E$5,B17) -> 0.1553401647 | D17: 5.219874575 | E17: =ThreePosition_Basic2($E$3,$E$5,$B$3:$C$3,$B$5:$C$5,B17,C17) -> -71.37031441 | F17: -46.88961524 | G17: -1019.401292 | H17: 347.3168117 | I17: =ThreePosition_Basic2($E$3,$E$5,$B$3:$C$3,$B$5:$C$5,B17,D17) -> -241.9607267 | J17: 59.4134319 | K17: 61.55428576 | L17: 18.29951452
A18: 5 | B18: 0.0872664626 | C18: =Burmester($B$3:$C$3,$B$4:$C$4,$B$5:$C$5,$E$3,$E$4,$E$5,B18) -> 0.1724656372 | D18: 5.223761991 | E18: =ThreePosition_Basic2($E$3,$E$5,$B$3:$C$3,$B$5:$C$5,B18,C18) -> -71.39463189 | F18: -47.28257925 | G18: -923.4815022 | H18: 313.5519843 | I18: =ThreePosition_Basic2($E$3,$E$5,$B$3:$C$3,$B$5:$C$5,B18,D18) -> -247.7737092 | J18: 61.56210815 | K18: 61.6758646 | L18: 18.3839955
A19: 5.5 | B19: 0.09599310886 | C19: =Burmester($B$3:$C$3,$B$4:$C$4,$B$5:$C$5,$E$3,$E$4,$E$5,B19) -> 0.1895606213 | D19: 5.227636397 | E19: =ThreePosition_Basic2($E$3,$E$5,$B$3:$C$3,$B$5:$C$5,B19,C19) -> -71.41536717 | F19: -47.67583343 | G19: -844.993456 | H19: 285.8513279 | I19: =ThreePosition_Basic2($E$3,$E$5,$B$3:$C$3,$B$5:$C$5,B19,D19) -> -253.8255307 | J19: 63.79460616 | K19: 61.79571328 | L19: 18.46982565
A20: 6 | B20: 0.1047197551 | C20: =Burmester($B$3:$C$3,$B$4:$C$4,$B$5:$C$5,$E$3,$E$4,$E$5,B20) -> 0.2066242643 | D20: 5.231498425 | E20: =ThreePosition_Basic2($E$3,$E$5,$B$3:$C$3,$B$5:$C$5,B20,C20) -> -71.43254974 | F20: -48.0693263 | G20: -779.5781738 | H20: 262.6987169 | I20: =ThreePosition_Basic2($E$3,$E$5,$B$3:$C$3,$B$5:$C$5,B20,D20) -> -260.1310412 | J20: 66.11607079 | K20: 61.91388026 | L20: 18.55696767
A21: 6.5 | B21: 0.1134464014 | C21: =Burmester($B$3:$C$3,$B$4:$C$4,$B$5:$C$5,$E$3,$E$4,$E$5,B21) -> 0.22365575 | D21: 5.235348687 | E21: =ThreePosition_Basic2($E$3,$E$5,$B$3:$C$3,$B$5:$C$5,B21,C21) -> -71.44620836 | F21: -48.46300775 | G21: -724.2179156 | H21: 243.0445426 | I21: =ThreePosition_Basic2($E$3,$E$5,$B$3:$C$3,$B$5:$C$5,B21,D21) -> -266.7063577 | J21: 68.53208846 | K21: 62.03041195 | L21: 18.64538597
A22: 7 | B22: 0.1221730476 | C22: =Burmester($B$3:$C$3,$B$4:$C$4,$B$5:$C$5,$E$3,$E$4,$E$5,B22) -> 0.240654298 | D22: 5.239187766 | E22: =ThreePosition_Basic2($E$3,$E$5,$B$3:$C$3,$B$5:$C$5,B22,C22) -> -71.45637104 | F22: -48.85682896 | G22: -676.7571661 | H22: 226.1390998 | I22: =ThreePosition_Basic2($E$3,$E$5,$B$3:$C$3,$B$5:$C$5,B22,D22) -> -273.5690013 | J22: 71.0487349 | K22: 62.14535284 | L22: 18.73504651
A23: 7.5 | B23: 0.1308996939 | C23: =Burmester($B$3:$C$3,$B$4:$C$4,$B$5:$C$5,$E$3,$E$4,$E$5,B23) -> 0.2576191616 | D23: 5.243016224 | E23: =ThreePosition_Basic2($E$3,$E$5,$B$3:$C$3,$B$5:$C$5,B23,C23) -> -71.46306514 | F23: -49.25074235 | G23: -635.6152266 | H23: 211.4326181 | I23: =ThreePosition_Basic2($E$3,$E$5,$B$3:$C$3,$B$5:$C$5,B23,D23) -> -280.7380531 | J23: 73.67262938 | K23: 62.2587456 | L23: 18.8259168
A24: 8 | B24: 0.1396263402 | C24: =Burmester($B$3:$C$3,$B$4:$C$4,$B$5:$C$5,$E$3,$E$4,$E$5,B24) -> 0.2745496266 | D24: 5.2468346 | E24: =ThreePosition_Basic2($E$3,$E$5,$B$3:$C$3,$B$5:$C$5,B24,C24) -> -71.46631741 | F24: -49.64470154 | G24: -599.6065834 | H24: 198.5127823 | I24: =ThreePosition_Basic2($E$3,$E$5,$B$3:$C$3,$B$5:$C$5,B24,D24) -> -288.2343314 | J24: 76.41099621 | K24: 62.37063115 | L24: 18.91796575
A25: 8.5 | B25: 0.1483529864 | C25: =Burmester($B$3:$C$3,$B$4:$C$4,$B$5:$C$5,$E$3,$E$4,$E$5,B25) -> 0.2914450107 | D25: 5.250643416 | E25: =ThreePosition_Basic2($E$3,$E$5,$B$3:$C$3,$B$5:$C$5,B25,C25) -> -71.46615398 | F25: -50.03866125 | G25: -567.8246776 | H25: 187.0643035 | I25: =ThreePosition_Basic2($E$3,$E$5,$B$3:$C$3,$B$5:$C$5,B25,D25) -> -296.0805938 | J25: 79.27173498 | K25: 62.48104875 | L25: 19.01116365
A26: 9 | B26: 0.1570796327 | C26: =Burmester($B$3:$C$3,$B$4:$C$4,$B$5:$C$5,$E$3,$E$4,$E$5,B26) -> 0.3083046615 | D26: 5.254443168 | E26: =ThreePosition_Basic2($E$3,$E$5,$B$3:$C$3,$B$5:$C$5,B26,C26) -> -71.46260044 | F26: -50.43257731 | G26: -539.5644165 | H26: 176.8419674 | I26: =ThreePosition_Basic2($E$3,$E$5,$B$3:$C$3,$B$5:$C$5,B26,D26) -> -304.3017675 | J26: 82.26350071 | K26: 62.59003606 | L26: 19.10548209
A27: 9.5 | B27: 0.1658062789 | C27: =Burmester($B$3:$C$3,$B$4:$C$4,$B$5:$C$5,$E$3,$E$4,$E$5,B27) -> 0.3251279556 | D27: 5.25823434 | E27: =ThreePosition_Basic2($E$3,$E$5,$B$3:$C$3,$B$5:$C$5,B27,C27) -> -71.45568187 | F27: -50.82640653 | G27: -514.2691562 | H27: 167.6521932 | I27: =ThreePosition_Basic2($E$3,$E$5,$B$3:$C$3,$B$5:$C$5,B27,D27) -> -312.9252139 | J27: 85.39579586 | K27: 62.69762922 | L27: 19.20089389
A28: 10 | B28: 0.1745329252 | C28: =Burmester($B$3:$C$3,$B$4:$C$4,$B$5:$C$5,$E$3,$E$4,$E$5,B28) -> 0.3419142981 | D28: 5.262017395 | E28: =ThreePosition_Basic2($E$3,$E$5,$B$3:$C$3,$B$5:$C$5,B28,C28) -> -71.44542285 | F28: -51.22010675 | G28: -491.4935894 | H28: 159.3401251 | I28: =ThreePosition_Basic2($E$3,$E$5,$B$3:$C$3,$B$5:$C$5,B28,D28) -> -321.9810331 | J28: 88.67907602 | K28: 62.80386295 | L28: 19.29737304
A29: 10.5 | B29: 0.1832595715 | C29: =Burmester($B$3:$C$3,$B$4:$C$4,$B$5:$C$5,$E$3,$E$4,$E$5,B29) -> 0.3586631206 | D29: 5.265792778 | E29: =ThreePosition_Basic2($E$3,$E$5,$B$3:$C$3,$B$5:$C$5,B29,C29) -> -71.4318475 | F29: -51.61363673 | G29: -470.8772359 | H29: 151.7804114 | I29: =ThreePosition_Basic2($E$3,$E$5,$B$3:$C$3,$B$5:$C$5,B29,D29) -> -331.5024144 | J29: 92.12487203 | K29: 62.90877056 | L29: 19.39489464
A30: 11 | B30: 0.1919862177 | C30: =Burmester($B$3:$C$3,$B$4:$C$4,$B$5:$C$5,$E$3,$E$4,$E$5,B30) -> 0.3753738811 | D30: 5.269560921 | E30: =ThreePosition_Basic2($E$3,$E$5,$B$3:$C$3,$B$5:$C$5,B30,C30) -> -71.41497953 | F30: -52.00695612 | G30: -452.1251639 | H30: 144.8704993 | I30: =ThreePosition_Basic2($E$3,$E$5,$B$3:$C$3,$B$5:$C$5,B30,D30) -> -341.526043 | J30: 95.74593126 | K30: 63.01238405 | L30: 19.49343489
A31: 11.5 | B31: 0.200712864 | C31: =Burmester($B$3:$C$3,$B$4:$C$4,$B$5:$C$5,$E$3,$E$4,$E$5,B31) -> 0.3920460624 | D31: 5.27332224 | E31: =ThreePosition_Basic2($E$3,$E$5,$B$3:$C$3,$B$5:$C$5,B31,C31) -> -71.39484223 | F31: -52.40002545 | G31: -434.9937402 | H31: 138.5256782 | I31: =ThreePosition_Basic2($E$3,$E$5,$B$3:$C$3,$B$5:$C$5,B31,D31) -> -352.0925721 | J31: 99.55638182 | K31: 63.11473417 | L31: 19.59297095
A32: 12 | B32: 0.2094395102 | C32: =Burmester($B$3:$C$3,$B$4:$C$4,$B$5:$C$5,$E$3,$E$4,$E$5,B32) -> 0.4086791718 | D32: 5.277077134 | E32: =ThreePosition_Basic2($E$3,$E$5,$B$3:$C$3,$B$5:$C$5,B32,C32) -> -71.37145854 | F32: -52.79280606 | G32: -419.2799424 | H32: 132.6753623 | I32: =ThreePosition_Basic2($E$3,$E$5,$B$3:$C$3,$B$5:$C$5,B32,D32) -> -363.247174 | J32: 103.5719243 | K32: 63.21585047 | L32: 19.693481
A33: 12.5 | B33: 0.2181661565 | C33: =Burmester($B$3:$C$3,$B$4:$C$4,$B$5:$C$5,$E$3,$E$4,$E$5,B33) -> 0.4252727398 | D33: 5.280825993 | E33: =ThreePosition_Basic2($E$3,$E$5,$B$3:$C$3,$B$5:$C$5,B33,C33) -> -71.34485104 | F33: -53.18526009 | G33: -404.8132372 | H33: 127.2602656 | I33: =ThreePosition_Basic2($E$3,$E$5,$B$3:$C$3,$B$5:$C$5,B33,D33) -> -375.0401855 | J33: 107.8100561 | K33: 63.31576132 | L33: 19.79494411
A34: 13 | B34: 0.2268928028 | C34: =Burmester($B$3:$C$3,$B$4:$C$4,$B$5:$C$5,$E$3,$E$4,$E$5,B34) -> 0.4418263193 | D34: 5.284569189 | E34: =ThreePosition_Basic2($E$3,$E$5,$B$3:$C$3,$B$5:$C$5,B34,C34) -> -71.31504196 | F34: -53.57735044 | G34: -391.4493319 | H34: 122.2302287 | I34: =ThreePosition_Basic2($E$3,$E$5,$B$3:$C$3,$B$5:$C$5,B34,D34) -> -387.5278676 | J34: 112.2903356 | K34: 63.41449403 | L34: 19.89734023
A35: 13.5 | B35: 0.235619449 | C35: =Burmester($B$3:$C$3,$B$4:$C$4,$B$5:$C$5,$E$3,$E$4,$E$5,B35) -> 0.4583394853 | D35: 5.288307084 | E35: =ThreePosition_Basic2($E$3,$E$5,$B$3:$C$3,$B$5:$C$5,B35,C35) -> -71.28205325 | F35: -53.96904075 | G35: -379.0653149 | H35: 117.5425285 | I35: =ThreePosition_Basic2($E$3,$E$5,$B$3:$C$3,$B$5:$C$5,B35,D35) -> -400.7733026 | J35: 117.0346945 | K35: 63.51207483 | L35: 20.00065015
A36: 14 | B36: 0.2443460953 | C36: =Burmester($B$3:$C$3,$B$4:$C$4,$B$5:$C$5,$E$3,$E$4,$E$5,B36) -> 0.4748118336 | D36: 5.29204003 | E36: =ThreePosition_Basic2($E$3,$E$5,$B$3:$C$3,$B$5:$C$5,B36,C36) -> -71.24590658 | F36: -54.36029533 | G36: -367.5558379 | H36: 113.1605503 | I36: =ThreePosition_Basic2($E$3,$E$5,$B$3:$C$3,$B$5:$C$5,B36,D36) -> -414.8474599 | J36: 122.0678081 | K36: 63.60852895 | L36: 20.10485547
A37: 14.5 | B37: 0.2530727415 | C37: =Burmester($B$3:$C$3,$B$4:$C$4,$B$5:$C$5,$E$3,$E$4,$E$5,B37) -> 0.4912429802 | D37: 5.295768364 | E37: =ThreePosition_Basic2($E$3,$E$5,$B$3:$C$3,$B$5:$C$5,B37,C37) -> -71.20662334 | F37: -54.75107921 | G37: -356.8300874 | H37: 109.0527344 | I37: =ThreePosition_Basic2($E$3,$E$5,$B$3:$C$3,$B$5:$C$5,B37,D37) -> -429.8304681 | J37: 127.4175381 | K37: 63.70388066 | L37: 20.20993854
A38: 15 | B38: 0.2617993878 | C38: =Burmester($B$3:$C$3,$B$4:$C$4,$B$5:$C$5,$E$3,$E$4,$E$5,B38) -> 0.5076325609 | D38: 5.299492415 | E38: =ThreePosition_Basic2($E$3,$E$5,$B$3:$C$3,$B$5:$C$5,B38,C38) -> -71.16422468 | F38: -55.14135803 | G38: -346.809362 | H38: 105.1917332 | I38: =ThreePosition_Basic2($E$3,$E$5,$B$3:$C$3,$B$5:$C$5,B38,D38) -> -445.8131416 | J38: 133.1154633 | K38: 63.79815332 | L38: 20.31588245
A39: 15.5 | B39: 0.2705260341 | C39: =Burmester($B$3:$C$3,$B$4:$C$4,$B$5:$C$5,$E$3,$E$4,$E$5,B39) -> 0.5239802304 | D39: 5.3032125 | E39: =ThreePosition_Basic2($E$3,$E$5,$B$3:$C$3,$B$5:$C$5,B39,C39) -> -71.11873152 | F39: -55.53109809 | G39: -337.4251192 | H39: 101.5537324 | I39: =ThreePosition_Basic2($E$3,$E$5,$B$3:$C$3,$B$5:$C$5,B39,D39) -> -462.8988226 | J39: 139.1975204 | K39: 63.89136938 | L39: 20.42267097
A40: 16 | B40: 0.2792526803 | C40: =Burmester($B$3:$C$3,$B$4:$C$4,$B$5:$C$5,$E$3,$E$4,$E$5,B40) -> 0.5402856615 | D40: 5.306928928 | E40: =ThreePosition_Basic2($E$3,$E$5,$B$3:$C$3,$B$5:$C$5,B40,C40) -> -71.07016458 | F40: -55.92026625 | G40: -328.6173876 | H40: 98.11789827 | I40: =ThreePosition_Basic2($E$3,$E$5,$B$3:$C$3,$B$5:$C$5,B40,D40) -> -481.2056183 | J40: 145.704782 | K40: 63.98355047 | L40: 20.53028855
A41: 16.5 | B41: 0.2879793266 | C41: =Burmester($B$3:$C$3,$B$4:$C$4,$B$5:$C$5,$E$3,$E$4,$E$5,B41) -> 0.556548545 | D41: 5.310641996 | E41: =ThreePosition_Basic2($E$3,$E$5,$B$3:$C$3,$B$5:$C$5,B41,C41) -> -71.01854435 | F41: -56.30883001 | G41: -320.3334682 | H41: 94.86592613 | I41: =ThreePosition_Basic2($E$3,$E$5,$B$3:$C$3,$B$5:$C$5,B41,D41) -> -500.869135 | J41: 152.684408 | K41: 64.07471739 | L41: 20.63872026
A42: 17 | B42: 0.2967059728 | C42: =Burmester($B$3:$C$3,$B$4:$C$4,$B$5:$C$5,$E$3,$E$4,$E$5,B42) -> 0.5727685886 | D42: 5.314351995 | E42: =ThreePosition_Basic2($E$3,$E$5,$B$3:$C$3,$B$5:$C$5,B42,C42) -> -70.96389119 | F42: -56.69675737 | G42: -312.5268653 | H42: 91.7816684 | I42: =ThreePosition_Basic2($E$3,$E$5,$B$3:$C$3,$B$5:$C$5,B42,D42) -> -522.0458431 | J42: 160.1908155 | K42: 64.16489018 | L42: 20.7479518
A43: 17.5 | B43: 0.3054326191 | C43: =Burmester($B$3:$C$3,$B$4:$C$4,$B$5:$C$5,$E$3,$E$4,$E$5,B43) -> 0.5889455166 | D43: 5.318059207 | E43: =ThreePosition_Basic2($E$3,$E$5,$B$3:$C$3,$B$5:$C$5,B43,C43) -> -70.90622524 | F43: -57.08401693 | G43: -305.1563996 | H43: 88.85082633 | I43: =ThreePosition_Basic2($E$3,$E$5,$B$3:$C$3,$B$5:$C$5,B43,D43) -> -544.9172501 | J43: 168.2871305 | K43: 64.25408812 | L43: 20.85796942
A44: 18 | B44: 0.3141592654 | C44: =Burmester($B$3:$C$3,$B$4:$C$4,$B$5:$C$5,$E$3,$E$4,$E$5,B44) -> 0.6050790694 | D44: 5.321763904 | E44: =ThreePosition_Basic2($E$3,$E$5,$B$3:$C$3,$B$5:$C$5,B44,C44) -> -70.84556651 | F44: -57.47057777 | G44: -298.1854703 | H44: 86.06069312 | I44: =ThreePosition_Basic2($E$3,$E$5,$B$3:$C$3,$B$5:$C$5,B44,D44) -> -569.6951165 | J44: 177.0470021 | K44: 64.34232978 | L44: 20.96875995
A45: 18.5 | B45: 0.3228859116 | C45: =Burmester($B$3:$C$3,$B$4:$C$4,$B$5:$C$5,$E$3,$E$4,$E$5,B45) -> 0.6211690025 | D45: 5.325466352 | E45: =ThreePosition_Basic2($E$3,$E$5,$B$3:$C$3,$B$5:$C$5,B45,C45) -> -70.78193488 | F45: -57.8564095 | G45: -291.5814362 | H45: 83.39993878 | I45: =ThreePosition_Basic2($E$3,$E$5,$B$3:$C$3,$B$5:$C$5,B45,D45) -> -596.6280322 | J45: 186.55689 | K45: 64.42963306 | L45: 21.08031074
A46: 19 | B46: 0.3316125579 | C46: =Burmester($B$3:$C$3,$B$4:$C$4,$B$5:$C$5,$E$3,$E$4,$E$5,B46) -> 0.6372150869 | D46: 5.329166809 | E46: =ThreePosition_Basic2($E$3,$E$5,$B$3:$C$3,$B$5:$C$5,B46,C46) -> -70.71535008 | F46: -58.24148223 | G46: -285.3150945 | H46: 80.85842886 | I46: =ThreePosition_Basic2($E$3,$E$5,$B$3:$C$3,$B$5:$C$5,B46,D46) -> -626.009787 | J46: 196.9189756 | K46: 64.51601518 | L46: 21.19260965
A47: 19.5 | B47: 0.3403392041 | C47: =Burmester($B$3:$C$3,$B$4:$C$4,$B$5:$C$5,$E$3,$E$4,$E$5,B47) -> 0.6532171076 | D47: 5.332865527 | E47: =ThreePosition_Basic2($E$3,$E$5,$B$3:$C$3,$B$5:$C$5,B47,C47) -> -70.64583174 | F47: -58.62576653 | G47: -279.3602401 | H47: 78.42707115 | I47: =ThreePosition_Basic2($E$3,$E$5,$B$3:$C$3,$B$5:$C$5,B47,D47) -> -658.1901323 | J47: 208.2549059 | K47: 64.60149273 | L47: 21.30564503
A48: 20 | B48: 0.3490658504 | C48: =Burmester($B$3:$C$3,$B$4:$C$4,$B$5:$C$5,$E$3,$E$4,$E$5,B48) -> 0.6691748638 | D48: 5.336562749 | E48: =ThreePosition_Basic2($E$3,$E$5,$B$3:$C$3,$B$5:$C$5,B48,C48) -> -70.57339935 | F48: -59.00923343 | G48: -273.6932907 | H48: 76.09768531 | I48: =ThreePosition_Basic2($E$3,$E$5,$B$3:$C$3,$B$5:$C$5,B48,D48) -> -693.5887715 | J48: 220.710659 | K48: 64.68608172 | L48: 21.4194057
A49: 20.5 | B49: 0.3577924967 | C49: =Burmester($B$3:$C$3,$B$4:$C$4,$B$5:$C$5,$E$3,$E$4,$E$5,B49) -> 0.6850881683 | D49: 5.340258713 | E49: =ThreePosition_Basic2($E$3,$E$5,$B$3:$C$3,$B$5:$C$5,B49,C49) -> -70.49807234 | F49: -59.39185443 | G49: -268.2929673 | H49: 73.86289166 | I49: =ThreePosition_Basic2($E$3,$E$5,$B$3:$C$3,$B$5:$C$5,B49,D49) -> -732.7137681 | J49: 234.4629472 | K49: 64.76979753 | L49: 21.53388091
A50: 21 | B50: 0.3665191429 | C50: =Burmester($B$3:$C$3,$B$4:$C$4,$B$5:$C$5,$E$3,$E$4,$E$5,B50) -> 0.7009568469 | D50: 5.343953652 | E50: =ThreePosition_Basic2($E$3,$E$5,$B$3:$C$3,$B$5:$C$5,B50,C50) -> -70.41987002 | F50: -59.77360144 | G50: -263.1400195 | H50: 71.71601577 | I50: =ThreePosition_Basic2($E$3,$E$5,$B$3:$C$3,$B$5:$C$5,B50,D50) -> -776.1860905 | J50: 249.7277544 | K50: 64.85265503 | L50: 21.64906035
A51: 21.5 | B51: 0.3752457892 | C51: =Burmester($B$3:$C$3,$B$4:$C$4,$B$5:$C$5,$E$3,$E$4,$E$5,B51) -> 0.716780738 | D51: 5.347647791 | E51: =ThreePosition_Basic2($E$3,$E$5,$B$3:$C$3,$B$5:$C$5,B51,C51) -> -70.33881166 | F51: -60.15444682 | G51: -258.2169898 | H51: 69.65100645 | I51: =ThreePosition_Basic2($E$3,$E$5,$B$3:$C$3,$B$5:$C$5,B51,D51) -> -824.7728186 | J51: 266.7718862 | K51: 64.93466851 | L51: 21.76493413
A52: 22 | B52: 0.3839724354 | C52: =Burmester($B$3:$C$3,$B$4:$C$4,$B$5:$C$5,$E$3,$E$4,$E$5,B52) -> 0.7325596924 | D52: 5.35134135 | E52: =ThreePosition_Basic2($E$3,$E$5,$B$3:$C$3,$B$5:$C$5,B52,C52) -> -70.25491641 | F52: -60.53436332 | G52: -253.5080099 | H52: 67.66236484 | I52: =ThreePosition_Basic2($E$3,$E$5,$B$3:$C$3,$B$5:$C$5,B52,D52) -> -879.4328044 | J52: 285.9288514 | K52: 65.01585177 | L52: 21.88149273
A53: 22.5 | B53: 0.3926990817 | C53: =Burmester($B$3:$C$3,$B$4:$C$4,$B$5:$C$5,$E$3,$E$4,$E$5,B53) -> 0.7482935728 | D53: 5.355034545 | E53: =ThreePosition_Basic2($E$3,$E$5,$B$3:$C$3,$B$5:$C$5,B53,C53) -> -70.16820339 | F53: -60.91332411 | G53: -248.9986239 | H53: 65.74508303 | I53: =ThreePosition_Basic2($E$3,$E$5,$B$3:$C$3,$B$5:$C$5,B53,D53) -> -941.3805951 | J53: 307.6210968 | K53: 65.09621808 | L53: 21.99872702
A54: 23 | B54: 0.401425728 | C54: =Burmester($B$3:$C$3,$B$4:$C$4,$B$5:$C$5,$E$3,$E$4,$E$5,B54) -> 0.7639822532 | D54: 5.358727584 | E54: =ThreePosition_Basic2($E$3,$E$5,$B$3:$C$3,$B$5:$C$5,B54,C54) -> -70.07869165 | F54: -61.29130274 | G54: -244.6756352 | H54: 63.89459066 | I54: =ThreePosition_Basic2($E$3,$E$5,$B$3:$C$3,$B$5:$C$5,B54,D54) -> -1012.177753 | J54: 332.3917703 | K54: 65.17578027 | L54: 22.11662825
A55: 23.5 | B55: 0.4101523742 | C55: =Burmester($B$3:$C$3,$B$4:$C$4,$B$5:$C$5,$E$3,$E$4,$E$5,B55) -> 0.7796256187 | D55: 5.362420673 | E55: =ThreePosition_Basic2($E$3,$E$5,$B$3:$C$3,$B$5:$C$5,B55,C55) -> -69.98640021 | F55: -61.66827314 | G55: -240.5269718 | H55: 62.10670829 | I55: =ThreePosition_Basic2($E$3,$E$5,$B$3:$C$3,$B$5:$C$5,B55,D55) -> -1093.866324 | J55: 360.9511443 | K55: 65.25455068 | L55: 22.23518797
A56: 24 | B56: 0.4188790205 | C56: =Burmester($B$3:$C$3,$B$4:$C$4,$B$5:$C$5,$E$3,$E$4,$E$5,B56) -> 0.7952235652 | D56: 5.366114012 | E56: =ThreePosition_Basic2($E$3,$E$5,$B$3:$C$3,$B$5:$C$5,B56,C56) -> -69.89134803 | F56: -62.04420961 | G56: -236.5415699 | H56: 60.37760669 | I56: =ThreePosition_Basic2($E$3,$E$5,$B$3:$C$3,$B$5:$C$5,B56,D56) -> -1189.169035 | J56: 394.2462508 | K56: 65.33254121 | L56: 22.35439811
A57: 24.5 | B57: 0.4276056667 | C57: =Burmester($B$3:$C$3,$B$4:$C$4,$B$5:$C$5,$E$3,$E$4,$E$5,B57) -> 0.8107759991 | D57: 5.369807796 | E57: =ThreePosition_Basic2($E$3,$E$5,$B$3:$C$3,$B$5:$C$5,B57,C57) -> -69.79355404 | F57: -62.41908683 | G57: -232.7092705 | H57: 58.70377107 | I57: =ThreePosition_Basic2($E$3,$E$5,$B$3:$C$3,$B$5:$C$5,B57,D57) -> -1301.798701 | J57: 433.5684994 | K57: 65.40976333 | L57: 22.47425089
A58: 25 | B58: 0.436332313 | C58: =Burmester($B$3:$C$3,$B$4:$C$4,$B$5:$C$5,$E$3,$E$4,$E$5,B58) -> 0.8262828366 | D58: 5.373502215 | E58: =ThreePosition_Basic2($E$3,$E$5,$B$3:$C$3,$B$5:$C$5,B58,C58) -> -69.69303715 | F58: -62.79287983 | G58: -229.0207291 | H58: 57.08196955 | I58: =ThreePosition_Basic2($E$3,$E$5,$B$3:$C$3,$B$5:$C$5,B58,D58) -> -1436.953262 | J58: 480.725866 | K58: 65.48622811 | L58: 22.59473886
A59: 25.5 | B59: 0.4450589593 | C59: =Burmester($B$3:$C$3,$B$4:$C$4,$B$5:$C$5,$E$3,$E$4,$E$5,B59) -> 0.8417440038 | D59: 5.377197458 | E59: =ThreePosition_Basic2($E$3,$E$5,$B$3:$C$3,$B$5:$C$5,B59,C59) -> -69.58981624 | F59: -63.16556396 | G59: -225.4673359 | H59: 55.50922547 | I59: =ThreePosition_Basic2($E$3,$E$5,$B$3:$C$3,$B$5:$C$5,B59,D59) -> -1602.140857 | J59: 538.3298735 | K59: 65.5619462 | L59: 22.71585485
A60: 26 | B60: 0.4537856055 | C60: =Burmester($B$3:$C$3,$B$4:$C$4,$B$5:$C$5,$E$3,$E$4,$E$5,B60) -> 0.857159436 | D60: 5.380893707 | E60: =ThreePosition_Basic2($E$3,$E$5,$B$3:$C$3,$B$5:$C$5,B60,C60) -> -69.48391016 | F60: -63.53711495 | G60: -222.0411448 | H60: 53.98279275 | I60: =ThreePosition_Basic2($E$3,$E$5,$B$3:$C$3,$B$5:$C$5,B60,D60) -> -1808.623697 | J60: 610.2978093 | K60: 65.63692787 | L60: 22.83759197
A61: 26.5 | B61: 0.4625122518 | C61: =Burmester($B$3:$C$3,$B$4:$C$4,$B$5:$C$5,$E$3,$E$4,$E$5,B61) -> 0.8725290776 | D61: 5.384591142 | E61: =ThreePosition_Basic2($E$3,$E$5,$B$3:$C$3,$B$5:$C$5,B61,C61) -> -69.37533777 | F61: -63.90750884 | G61: -218.7348114 | H61: 52.50013414 | I61: =ThreePosition_Basic2($E$3,$E$5,$B$3:$C$3,$B$5:$C$5,B61,D61) -> -2074.099542 | J61: 702.7854131 | K61: 65.71118304 | L61: 22.95994361
A62: 27 | B62: 0.471238898 | C62: =Burmester($B$3:$C$3,$B$4:$C$4,$B$5:$C$5,$E$3,$E$4,$E$5,B62) -> 0.887852882 | D62: 5.388289937 | E62: =ThreePosition_Basic2($E$3,$E$5,$B$3:$C$3,$B$5:$C$5,B62,C62) -> -69.26411791 | F62: -64.276722 | G62: -215.5415366 | H62: 51.05890187 | I62: =ThreePosition_Basic2($E$3,$E$5,$B$3:$C$3,$B$5:$C$5,B62,D62) -> -2428.064663 | J62: 826.0522546 | K62: 65.78472125 | L62: 23.08290342
A63: 27.5 | B63: 0.4799655443 | C63: =Burmester($B$3:$C$3,$B$4:$C$4,$B$5:$C$5,$E$3,$E$4,$E$5,B63) -> 0.9031308109 | D63: 5.391990264 | E63: =ThreePosition_Basic2($E$3,$E$5,$B$3:$C$3,$B$5:$C$5,B63,C63) -> -69.15026942 | F63: -64.64473112 | G63: -212.4550174 | H63: 49.65692037 | I63: =ThreePosition_Basic2($E$3,$E$5,$B$3:$C$3,$B$5:$C$5,B63,D63) -> -2923.612353 | J63: 998.5655627 | K63: 65.8575517 | L63: 23.2064653
A64: 28 | B64: 0.4886921906 | C64: =Burmester($B$3:$C$3,$B$4:$C$4,$B$5:$C$5,$E$3,$E$4,$E$5,B64) -> 0.918362834 | D64: 5.395692293 | E64: =ThreePosition_Basic2($E$3,$E$5,$B$3:$C$3,$B$5:$C$5,B64,C64) -> -69.03381114 | F64: -65.0115132 | G64: -209.4694028 | H64: 48.29217087 | I64: =ThreePosition_Basic2($E$3,$E$5,$B$3:$C$3,$B$5:$C$5,B64,D64) -> -3666.929197 | J64: 1257.259799 | K64: 65.92968326 | L64: 23.3306234
A65: 28.5 | B65: 0.4974188368 | C65: =Burmester($B$3:$C$3,$B$4:$C$4,$B$5:$C$5,$E$3,$E$4,$E$5,B65) -> 0.9335489292 | D65: 5.399396188 | E65: =ThreePosition_Basic2($E$3,$E$5,$B$3:$C$3,$B$5:$C$5,B65,C65) -> -68.91476191 | F65: -65.37704556 | G65: -206.5792536 | H65: 46.96277764 | I65: =ThreePosition_Basic2($E$3,$E$5,$B$3:$C$3,$B$5:$C$5,B65,D65) -> -4905.7839 | J65: 1688.315381 | K65: 66.00112447 | L65: 23.45537209
A66: 29 | B66: 0.5061454831 | C66: =Burmester($B$3:$C$3,$B$4:$C$4,$B$5:$C$5,$E$3,$E$4,$E$5,B66) -> 0.9486890819 | D66: 5.403102112 | E66: =ThreePosition_Basic2($E$3,$E$5,$B$3:$C$3,$B$5:$C$5,B66,C66) -> -68.79314058 | F66: -65.7413058 | G66: -203.7795072 | H66: 45.66699564 | I66: =ThreePosition_Basic2($E$3,$E$5,$B$3:$C$3,$B$5:$C$5,B66,D66) -> -7383.482582 | J66: 2550.273563 | K66: 66.07188357 | L66: 23.58070597
A67: 29.5 | B67: 0.5148721293 | C67: =Burmester($B$3:$C$3,$B$4:$C$4,$B$5:$C$5,$E$3,$E$4,$E$5,B67) -> 0.963783285 | D67: 5.406810225 | E67: =ThreePosition_Basic2($E$3,$E$5,$B$3:$C$3,$B$5:$C$5,B67,C67) -> -68.66896602 | F67: -66.10427185 | G67: -201.0654458 | H67: 44.40319938 | I67: =ThreePosition_Basic2($E$3,$E$5,$B$3:$C$3,$B$5:$C$5,B67,D67) -> -14816.55585 | J67: 5135.840645 | K67: 66.14196849 | L67: 23.70661985
A68: 30 | B68: 0.5235987756 | C68: =Burmester($B$3:$C$3,$B$4:$C$4,$B$5:$C$5,$E$3,$E$4,$E$5,B68) -> 0.9788315383 | D68: 5.410520681 | E68: =ThreePosition_Basic2($E$3,$E$5,$B$3:$C$3,$B$5:$C$5,B68,C68) -> -68.54225712 | F68: -66.4659219 | G68: -198.4326674 | H68: 43.16987298 | I68: =ThreePosition_Basic2($E$3,$E$5,$B$3:$C$3,$B$5:$C$5,B68,D68) -> -1.125861513e+17 | J68: 3.79239322e+17 | K68: 0 | L68: 0
A69: 30.5 | B69: 0.5323254219 | C69: =Burmester($B$3:$C$3,$B$4:$C$4,$B$5:$C$5,$E$3,$E$4,$E$5,B69) -> 0.9938338486 | D69: 5.414233636 | E69: =ThreePosition_Basic2($E$3,$E$5,$B$3:$C$3,$B$5:$C$5,B69,C69) -> -68.41303276 | F69: -66.82623445 | G69: -195.8770601 | H69: 41.96560114 | I69: =ThreePosition_Basic2($E$3,$E$5,$B$3:$C$3,$B$5:$C$5,B69,D69) -> 14915.66367 | J69: -5205.499319 | K69: 66.28014607 | L69: 23.96016792
A70: 31 | B70: 0.5410520681 | C70: =Burmester($B$3:$C$3,$B$4:$C$4,$B$5:$C$5,$E$3,$E$4,$E$5,B70) -> 1.008790229 | D70: 5.417949239 | E70: =ThreePosition_Basic2($E$3,$E$5,$B$3:$C$3,$B$5:$C$5,B70,C70) -> -68.28131187 | F70: -67.18518828 | G70: -193.3947786 | H70: 40.78906102 | I70: =ThreePosition_Basic2($E$3,$E$5,$B$3:$C$3,$B$5:$C$5,B70,D70) -> 7482.589098 | J70: -2619.930762 | K70: 66.34825318 | L70: 24.08779274
A71: 31.5 | B71: 0.5497787144 | C71: =Burmester($B$3:$C$3,$B$4:$C$4,$B$5:$C$5,$E$3,$E$4,$E$5,B71) -> 1.0237007 | D71: 5.42166764 | E71: =ThreePosition_Basic2($E$3,$E$5,$B$3:$C$3,$B$5:$C$5,B71,C71) -> -68.14711339 | F71: -67.54276244 | G71: -190.9822231 | H71: 39.63901486 | I71: =ThreePosition_Basic2($E$3,$E$5,$B$3:$C$3,$B$5:$C$5,B71,D71) -> 5004.888248 | J71: -1757.97012 | K71: 66.41571501 | L71: 24.21597881
A72: 32 | B72: 0.5585053606 | C72: =Burmester($B$3:$C$3,$B$4:$C$4,$B$5:$C$5,$E$3,$E$4,$E$5,B72) -> 1.038565288 | D72: 5.425388985 | E72: =ThreePosition_Basic2($E$3,$E$5,$B$3:$C$3,$B$5:$C$5,B72,C72) -> -68.0104563 | F72: -67.89893627 | G72: -188.6360202 | H72: 38.51430335 | I72: =ThreePosition_Basic2($E$3,$E$5,$B$3:$C$3,$B$5:$C$5,B72,D72) -> 3766.030509 | J72: -1326.911094 | K72: 66.48253812 | L72: 24.34472191
A73: 32.5 | B73: =A73*PI()/180 -> 0.5672320069 | C73: =Burmester($B$3:$C$3,$B$4:$C$4,$B$5:$C$5,$E$3,$E$4,$E$5,B73) -> 1.053384023 | D73: 5.429113417 | E73: =ThreePosition_Basic2($E$3,$E$5,$B$3:$C$3,$B$5:$C$5,B73,C73) -> -67.87135959 | F73: -68.25368936 | G73: -186.3530051 | H73: 37.41383952 | I73: =ThreePosition_Basic2($E$3,$E$5,$B$3:$C$3,$B$5:$C$5,B73,D73) -> 3022.70976 | J73: -1068.212428 | K73: 66.54872885 | L73: 24.47401798
A74: 33 | B74: 0.5759586532 | C74: =Burmester($B$3:$C$3,$B$4:$C$4,$B$5:$C$5,$E$3,$E$4,$E$5,B74) -> 1.068156944 | D74: 5.432841077 | E74: =ThreePosition_Basic2($E$3,$E$5,$B$3:$C$3,$B$5:$C$5,B74,C74) -> -67.7298423 | F74: -68.6070016 | G74: -184.1302065 | H74: 36.33660332 | I74: =ThreePosition_Basic2($E$3,$E$5,$B$3:$C$3,$B$5:$C$5,B74,D74) -> 2527.157294 | J74: -895.6937024 | K74: 66.61429326 | L74: 24.60386314
A75: 33.5 | B75: 0.5846852994 | C75: =Burmester($B$3:$C$3,$B$4:$C$4,$B$5:$C$5,$E$3,$E$4,$E$5,B75) -> 1.082884094 | D75: 5.436572106 | E75: =ThreePosition_Basic2($E$3,$E$5,$B$3:$C$3,$B$5:$C$5,B75,C75) -> -67.58592349 | F75: -68.95885313 | G75: -181.9648312 | H75: 35.28163652 | I75: =ThreePosition_Basic2($E$3,$E$5,$B$3:$C$3,$B$5:$C$5,B75,D75) -> 2173.186525 | J75: -772.4204551 | K75: 66.6792372 | L75: 24.73425366
A76: 34 | B76: 0.5934119457 | C76: =Burmester($B$3:$C$3,$B$4:$C$4,$B$5:$C$5,$E$3,$E$4,$E$5,B76) -> 1.097565522 | D76: 5.440306639 | E76: =ThreePosition_Basic2($E$3,$E$5,$B$3:$C$3,$B$5:$C$5,B76,C76) -> -67.43962225 | F76: -69.30922433 | G76: -179.8542521 | H76: 34.24803821 | I76: =ThreePosition_Basic2($E$3,$E$5,$B$3:$C$3,$B$5:$C$5,B76,D76) -> 1907.704158 | J76: -679.9254548 | K76: 66.7435663 | L76: 24.86518595
A77: 34.5 | B77: 0.6021385919 | C77: =Burmester($B$3:$C$3,$B$4:$C$4,$B$5:$C$5,$E$3,$E$4,$E$5,B77) -> 1.112201281 | D77: 5.444044813 | E77: =ThreePosition_Basic2($E$3,$E$5,$B$3:$C$3,$B$5:$C$5,B77,C77) -> -67.29095772 | F77: -69.65809587 | G77: -177.7959951 | H77: 33.23496062 | I77: =ThreePosition_Basic2($E$3,$E$5,$B$3:$C$3,$B$5:$C$5,B77,D77) -> 1701.213922 | J77: -607.9491298 | K77: 66.80728593 | L77: 24.99665659
A78: 35 | B78: 0.6108652382 | C78: =Burmester($B$3:$C$3,$B$4:$C$4,$B$5:$C$5,$E$3,$E$4,$E$5,B78) -> 1.126791429 | D78: 5.44778676 | E78: =ThreePosition_Basic2($E$3,$E$5,$B$3:$C$3,$B$5:$C$5,B78,C78) -> -67.13994908 | F78: -70.00544868 | G78: -175.7877291 | H78: 32.24160525 | I78: =ThreePosition_Basic2($E$3,$E$5,$B$3:$C$3,$B$5:$C$5,B78,D78) -> 1536.018051 | J78: -550.3357378 | K78: 66.87040131 | L78: 25.12866228
A79: 35.5 | B79: 0.6195918845 | C79: =Burmester($B$3:$C$3,$B$4:$C$4,$B$5:$C$5,$E$3,$E$4,$E$5,B79) -> 1.14133603 | D79: 5.451532612 | E79: =ThreePosition_Basic2($E$3,$E$5,$B$3:$C$3,$B$5:$C$5,B79,C79) -> -66.98661554 | F79: -70.35126391 | G79: -173.8272553 | H79: 31.26721949 | I79: =ThreePosition_Basic2($E$3,$E$5,$B$3:$C$3,$B$5:$C$5,B79,D79) -> 1400.854334 | J79: -503.1679885 | K79: 66.93291739 | L79: 25.26119988
A80: 36 | B80: 0.6283185307 | C80: =Burmester($B$3:$C$3,$B$4:$C$4,$B$5:$C$5,$E$3,$E$4,$E$5,B80) -> 1.155835151 | D80: 5.455282499 | E80: =ThreePosition_Basic2($E$3,$E$5,$B$3:$C$3,$B$5:$C$5,B80,C80) -> -66.83097635 | F80: -70.69552298 | G80: -171.9124982 | H80: 30.3110933 | I80: =ThreePosition_Basic2($E$3,$E$5,$B$3:$C$3,$B$5:$C$5,B80,D80) -> 1288.214628 | J80: -463.834356 | K80: 66.99483897 | L80: 25.39426637
A81: 36.5 | B81: 0.637045177 | C81: =Burmester($B$3:$C$3,$B$4:$C$4,$B$5:$C$5,$E$3,$E$4,$E$5,B81) -> 1.170288866 | D81: 5.459036549 | E81: =ThreePosition_Basic2($E$3,$E$5,$B$3:$C$3,$B$5:$C$5,B81,C81) -> -66.67305081 | F81: -71.03820758 | G81: -170.0414971 | H81: 29.37255636 | I81: =ThreePosition_Basic2($E$3,$E$5,$B$3:$C$3,$B$5:$C$5,B81,D81) -> 1192.90099 | J81: -430.5268609 | K81: 67.05617063 | L81: 25.52785885
A82: 37 | B82: 0.6457718232 | C82: =Burmester($B$3:$C$3,$B$4:$C$4,$B$5:$C$5,$E$3,$E$4,$E$5,B82) -> 1.184697249 | D82: 5.462794887 | E82: =ThreePosition_Basic2($E$3,$E$5,$B$3:$C$3,$B$5:$C$5,B82,C82) -> -66.51285826 | F82: -71.37929961 | G82: -168.2123988 | H82: 28.45097534 | I82: =ThreePosition_Basic2($E$3,$E$5,$B$3:$C$3,$B$5:$C$5,B82,D82) -> 1111.200602 | J82: -401.9540898 | K82: 67.11691676 | L82: 25.66197454
A83: 37.5 | B83: 0.6544984695 | C83: =Burmester($B$3:$C$3,$B$4:$C$4,$B$5:$C$5,$E$3,$E$4,$E$5,B83) -> 1.199060382 | D83: 5.46655764 | E83: =ThreePosition_Basic2($E$3,$E$5,$B$3:$C$3,$B$5:$C$5,B83,C83) -> -66.35041809 | F83: -71.71878123 | G83: -166.4234495 | H83: 27.54575144 | I83: =ThreePosition_Basic2($E$3,$E$5,$B$3:$C$3,$B$5:$C$5,B83,D83) -> 1040.390732 | J83: -377.1690067 | K83: 67.17708158 | L83: 25.79661081
A84: 38 | B84: 0.6632251158 | C84: =Burmester($B$3:$C$3,$B$4:$C$4,$B$5:$C$5,$E$3,$E$4,$E$5,B84) -> 1.213378349 | D84: 5.470324929 | E84: =ThreePosition_Basic2($E$3,$E$5,$B$3:$C$3,$B$5:$C$5,B84,C84) -> -66.18574971 | F84: -72.05663485 | G84: -164.6729893 | H84: 26.65631804 | I84: =ThreePosition_Basic2($E$3,$E$5,$B$3:$C$3,$B$5:$C$5,B84,D84) -> 978.4293307 | J84: -355.4613346 | K84: 67.23666911 | L84: 25.93176511
A85: 38.5 | B85: 0.671951762 | C85: =Burmester($B$3:$C$3,$B$4:$C$4,$B$5:$C$5,$E$3,$E$4,$E$5,B85) -> 1.227651237 | D85: 5.474096876 | E85: =ThreePosition_Basic2($E$3,$E$5,$B$3:$C$3,$B$5:$C$5,B85,C85) -> -66.01887261 | F85: -72.3928431 | G85: -162.9594453 | H85: 25.7821387 | I85: =ThreePosition_Basic2($E$3,$E$5,$B$3:$C$3,$B$5:$C$5,B85,D85) -> 923.7548314 | J85: -336.2879209 | K85: 67.29568322 | L85: 26.06743501
A86: 39 | B86: 0.6806784083 | C86: =Burmester($B$3:$C$3,$B$4:$C$4,$B$5:$C$5,$E$3,$E$4,$E$5,B86) -> 1.241879139 | D86: 5.477873603 | E86: =ThreePosition_Basic2($E$3,$E$5,$B$3:$C$3,$B$5:$C$5,B86,C86) -> -65.84980631 | F86: -72.72738888 | G86: -161.2813265 | H86: 24.9227051 | I86: =ThreePosition_Basic2($E$3,$E$5,$B$3:$C$3,$B$5:$C$5,B86,D86) -> 875.1526818 | J86: -319.2263137 | K86: 67.35412759 | L86: 26.20361818
A87: 39.5 | B87: 0.6894050545 | C87: =Burmester($B$3:$C$3,$B$4:$C$4,$B$5:$C$5,$E$3,$E$4,$E$5,B87) -> 1.256062149 | D87: 5.481655228 | E87: =ThreePosition_Basic2($E$3,$E$5,$B$3:$C$3,$B$5:$C$5,B87,C87) -> -65.67857037 | F87: -73.06025529 | G87: -159.6372184 | H87: 24.07753533 | I87: =ThreePosition_Basic2($E$3,$E$5,$B$3:$C$3,$B$5:$C$5,B87,D87) -> 831.664025 | J87: -303.9429986 | K87: 67.41200574 | L87: 26.34031241
A88: 40 | B88: 0.6981317008 | C88: =Burmester($B$3:$C$3,$B$4:$C$4,$B$5:$C$5,$E$3,$E$4,$E$5,B88) -> 1.270200366 | D88: 5.485441869 | E88: =ThreePosition_Basic2($E$3,$E$5,$B$3:$C$3,$B$5:$C$5,B88,C88) -> -65.50518441 | F88: -73.39142569 | G88: -158.0257783 | H88: 23.24617218 | I88: =ThreePosition_Basic2($E$3,$E$5,$B$3:$C$3,$B$5:$C$5,B88,D88) -> 792.5217755 | J88: -290.1711642 | K88: 67.46932105 | L88: 26.47751557
A89: 40.5 | B89: 0.7068583471 | C89: =Burmester($B$3:$C$3,$B$4:$C$4,$B$5:$C$5,$E$3,$E$4,$E$5,B89) -> 1.28429389 | D89: 5.489233641 | E89: =ThreePosition_Basic2($E$3,$E$5,$B$3:$C$3,$B$5:$C$5,B89,C89) -> -65.32966809 | F89: -73.72088367 | G89: -156.4457308 | H89: 22.42818163 | I89: =ThreePosition_Basic2($E$3,$E$5,$B$3:$C$3,$B$5:$C$5,B89,D89) -> 757.1049591 | J89: -277.6948204 | K89: 67.5260767 | L89: 26.61522563
A90: 41 | B90: 0.7155849933 | C90: =Burmester($B$3:$C$3,$B$4:$C$4,$B$5:$C$5,$E$3,$E$4,$E$5,B90) -> 1.298342826 | D90: 5.493030662 | E90: =ThreePosition_Basic2($E$3,$E$5,$B$3:$C$3,$B$5:$C$5,B90,C90) -> -65.15204113 | F90: -74.04861304 | G90: -154.8958639 | H90: 21.62315139 | I90: =ThreePosition_Basic2($E$3,$E$5,$B$3:$C$3,$B$5:$C$5,B90,D90) -> 724.9055062 | J90: -266.3372482 | K90: 67.58227577 | L90: 26.75344065
A91: 41.5 | B91: 0.7243116396 | C91: =Burmester($B$3:$C$3,$B$4:$C$4,$B$5:$C$5,$E$3,$E$4,$E$5,B91) -> 1.312347281 | D91: 5.496833043 | E91: =ThreePosition_Basic2($E$3,$E$5,$B$3:$C$3,$B$5:$C$5,B91,C91) -> -64.97232328 | F91: -74.37459785 | G91: -153.3750247 | H91: 20.83068962 | I91: =ThreePosition_Basic2($E$3,$E$5,$B$3:$C$3,$B$5:$C$5,B91,D91) -> 695.5037068 | J91: -255.9524623 | K91: 67.63792114 | L91: 26.89215879
A92: 42 | B92: 0.7330382858 | C92: =Burmester($B$3:$C$3,$B$4:$C$4,$B$5:$C$5,$E$3,$E$4,$E$5,B92) -> 1.326307364 | D92: 5.5006409 | E92: =ThreePosition_Basic2($E$3,$E$5,$B$3:$C$3,$B$5:$C$5,B92,C92) -> -64.79053435 | F92: -74.69882238 | G92: -151.8821166 | H92: 20.05042363 | I92: =ThreePosition_Basic2($E$3,$E$5,$B$3:$C$3,$B$5:$C$5,B92,D92) -> 668.5498026 | J92: -246.4188085 | K92: 67.69301559 | L92: 27.03137827
A93: 42.5 | B93: 0.7417649321 | C93: =Burmester($B$3:$C$3,$B$4:$C$4,$B$5:$C$5,$E$3,$E$4,$E$5,B93) -> 1.340223189 | D93: 5.504454342 | E93: =ThreePosition_Basic2($E$3,$E$5,$B$3:$C$3,$B$5:$C$5,B93,C93) -> -64.60669419 | F93: -75.02127114 | G93: -150.4160954 | H93: 19.28199885 | I93: =ThreePosition_Basic2($E$3,$E$5,$B$3:$C$3,$B$5:$C$5,B93,D93) -> 643.7499965 | J93: -237.6340973 | K93: 67.74756172 | L93: 27.17109742
A94: 43 | B94: 0.7504915784 | C94: =Burmester($B$3:$C$3,$B$4:$C$4,$B$5:$C$5,$E$3,$E$4,$E$5,B94) -> 1.35409487 | D94: 5.508273482 | E94: =ThreePosition_Basic2($E$3,$E$5,$B$3:$C$3,$B$5:$C$5,B94,C94) -> -64.42082272 | F94: -75.34192885 | G94: -148.9759664 | H94: 18.52507764 | I94: =ThreePosition_Basic2($E$3,$E$5,$B$3:$C$3,$B$5:$C$5,B94,D94) -> 620.8556909 | J94: -229.5118607 | K94: 67.80156202 | L94: 27.31131462
A95: 43.5 | B95: 0.7592182246 | C95: =Burmester($B$3:$C$3,$B$4:$C$4,$B$5:$C$5,$E$3,$E$4,$E$5,B95) -> 1.367922524 | D95: 5.512098429 | E95: =ThreePosition_Basic2($E$3,$E$5,$B$3:$C$3,$B$5:$C$5,B95,C95) -> -64.23293988 | F95: -75.66078048 | G95: -147.5607816 | H95: 17.77933839 | I95: =ThreePosition_Basic2($E$3,$E$5,$B$3:$C$3,$B$5:$C$5,B95,D95) -> 599.6551174 | J95: -221.9784407 | K95: 67.85501882 | L95: 27.45202835
A96: 44 | B96: 0.7679448709 | C96: =Burmester($B$3:$C$3,$B$4:$C$4,$B$5:$C$5,$E$3,$E$4,$E$5,B96) -> 1.381706271 | D96: 5.515929293 | E96: =ThreePosition_Basic2($E$3,$E$5,$B$3:$C$3,$B$5:$C$5,B96,C96) -> -64.04306568 | F96: -75.97781121 | G96: -146.1696373 | H96: 17.04447459 | I96: =ThreePosition_Basic2($E$3,$E$5,$B$3:$C$3,$B$5:$C$5,B96,D96) -> 579.9667599 | J96: -214.9707022 | K96: 67.90793435 | L96: 27.59323716
A97: 44.5 | B97: 0.7766715171 | C97: =Burmester($B$3:$C$3,$B$4:$C$4,$B$5:$C$5,$E$3,$E$4,$E$5,B97) -> 1.395446232 | D97: 5.51976618 | E97: =ThreePosition_Basic2($E$3,$E$5,$B$3:$C$3,$B$5:$C$5,B97,C97) -> -63.85122016 | F97: -76.29300643 | G97: -144.8016712 | H97: 16.32019391 | I97: =ThreePosition_Basic2($E$3,$E$5,$B$3:$C$3,$B$5:$C$5,B97,D97) -> 561.634139 | J97: -208.434218 | K97: 67.96031069 | L97: 27.73493964
A98: 45 | B98: 0.7853981634 | C98: =Burmester($B$3:$C$3,$B$4:$C$4,$B$5:$C$5,$E$3,$E$4,$E$5,B98) -> 1.40914253 | D98: 5.523609199 | E98: =ThreePosition_Basic2($E$3,$E$5,$B$3:$C$3,$B$5:$C$5,B98,C98) -> -63.65742342 | F98: -76.60635179 | G98: -143.4560601 | H98: 15.60621748 | I98: =ThreePosition_Basic2($E$3,$E$5,$B$3:$C$3,$B$5:$C$5,B98,D98) -> 544.5216392 | J98: -202.3218183 | K98: 68.01214978 | L98: 27.8771345
A99: 45.5 | B99: 0.7941248097 | C99: =Burmester($B$3:$C$3,$B$4:$C$4,$B$5:$C$5,$E$3,$E$4,$E$5,B99) -> 1.422795291 | D99: 5.527458455 | E99: =ThreePosition_Basic2($E$3,$E$5,$B$3:$C$3,$B$5:$C$5,B99,C99) -> -63.46169561 | F99: -76.91783313 | G99: -142.1320182 | H99: 14.90227907 | I99: =ThreePosition_Basic2($E$3,$E$5,$B$3:$C$3,$B$5:$C$5,B99,D99) -> 528.5111433 | J99: -196.5924195 | K99: 68.06345348 | L99: 28.01982046
A100: 46 | B100: 0.8028514559 | C100: =Burmester($B$3:$C$3,$B$4:$C$4,$B$5:$C$5,$E$3,$E$4,$E$5,B100) -> 1.436404643 | D100: 5.531314054 | E100: =ThreePosition_Basic2($E$3,$E$5,$B$3:$C$3,$B$5:$C$5,B100,C100) -> -63.26405692 | F100: -77.22743652 | G100: -140.8287947 | H100: 14.20812444 | I100: =ThreePosition_Basic2($E$3,$E$5,$B$3:$C$3,$B$5:$C$5,B100,D100) -> 513.4992989 | J100: -191.2100734 | K100: 68.11422348 | L100: 28.16299634
A101: 46.5 | B101: 0.8115781022 | C101: =Burmester($B$3:$C$3,$B$4:$C$4,$B$5:$C$5,$E$3,$E$4,$E$5,B101) -> 1.449970713 | D101: 5.5351761 | E101: =ThreePosition_Basic2($E$3,$E$5,$B$3:$C$3,$B$5:$C$5,B101,C101) -> -63.06452758 | F101: -77.53514825 | G101: -139.545672 | H101: 13.52351066 | I101: =ThreePosition_Basic2($E$3,$E$5,$B$3:$C$3,$B$5:$C$5,B101,D101) -> 499.395281 | J101: -186.1431893 | K101: 68.16446139 | L101: 28.306661
A102: 47 | B102: 0.8203047484 | C102: =Burmester($B$3:$C$3,$B$4:$C$4,$B$5:$C$5,$E$3,$E$4,$E$5,B102) -> 1.463493632 | D102: 5.539044698 | E102: =ThreePosition_Basic2($E$3,$E$5,$B$3:$C$3,$B$5:$C$5,B102,C102) -> -62.86312788 | F102: -77.84095483 | G102: -138.2819638 | H102: 12.8482055 | I102: =ThreePosition_Basic2($E$3,$E$5,$B$3:$C$3,$B$5:$C$5,B102,D102) -> 486.1189495 | J102: -181.363893 | K102: 68.21416869 | L102: 28.45081338
A103: 47.5 | B103: 0.8290313947 | C103: =Burmester($B$3:$C$3,$B$4:$C$4,$B$5:$C$5,$E$3,$E$4,$E$5,B103) -> 1.476973532 | D103: 5.542919951 | E103: =ThreePosition_Basic2($E$3,$E$5,$B$3:$C$3,$B$5:$C$5,B103,C103) -> -62.65987815 | F103: -78.14484299 | G103: -137.0370139 | H103: 12.18198685 | I103: =ThreePosition_Basic2($E$3,$E$5,$B$3:$C$3,$B$5:$C$5,B103,D103) -> 473.5993232 | J103: -176.8474959 | K103: 68.26334674 | L103: 28.59545246
A104: 48 | B104: 0.837758041 | C104: =Burmester($B$3:$C$3,$B$4:$C$4,$B$5:$C$5,$E$3,$E$4,$E$5,B104) -> 1.490410547 | D104: 5.546801961 | E104: =ThreePosition_Basic2($E$3,$E$5,$B$3:$C$3,$B$5:$C$5,B104,C104) -> -62.45479877 | F104: -78.44679966 | G104: -135.8101942 | H104: 11.52464222 | I104: =ThreePosition_Basic2($E$3,$E$5,$B$3:$C$3,$B$5:$C$5,B104,D104) -> 461.7733074 | J104: -172.5720525 | K104: 68.3119968 | L104: 28.74057726
A105: 48.5 | B105: 0.8464846872 | C105: =Burmester($B$3:$C$3,$B$4:$C$4,$B$5:$C$5,$E$3,$E$4,$E$5,B105) -> 1.503804811 | D105: 5.550690829 | E105: =ThreePosition_Basic2($E$3,$E$5,$B$3:$C$3,$B$5:$C$5,B105,C105) -> -62.24791015 | F105: -78.74681202 | G105: -134.6009031 | H105: 10.87596815 | I105: =ThreePosition_Basic2($E$3,$E$5,$B$3:$C$3,$B$5:$C$5,B105,D105) -> 450.5846285 | J105: -168.51799 | K105: 68.36012002 | L105: 28.88618687
A106: 49 | B106: 0.8552113335 | C106: =Burmester($B$3:$C$3,$B$4:$C$4,$B$5:$C$5,$E$3,$E$4,$E$5,B106) -> 1.517156459 | D106: 5.554586658 | E106: =ThreePosition_Basic2($E$3,$E$5,$B$3:$C$3,$B$5:$C$5,B106,C106) -> -62.03923275 | F106: -79.04486743 | G106: -133.4085649 | H106: 10.23576986 | I106: =ThreePosition_Basic2($E$3,$E$5,$B$3:$C$3,$B$5:$C$5,B106,D106) -> 439.9829359 | J106: -164.6677956 | K106: 68.40771745 | L106: 29.03228044
A107: 49.5 | B107: 0.8639379797 | C107: =Burmester($B$3:$C$3,$B$4:$C$4,$B$5:$C$5,$E$3,$E$4,$E$5,B107) -> 1.530465629 | D107: 5.558489547 | E107: =ThreePosition_Basic2($E$3,$E$5,$B$3:$C$3,$B$5:$C$5,B107,C107) -> -61.82878709 | F107: -79.34095349 | G107: -132.2326278 | H107: 9.603860664 | I107: =ThreePosition_Basic2($E$3,$E$5,$B$3:$C$3,$B$5:$C$5,B107,D107) -> 429.9230434 | J107: -161.0057527 | K107: 68.45479002 | L107: 29.17885714
A108: 50 | B108: 0.872664626 | C108: =Burmester($B$3:$C$3,$B$4:$C$4,$B$5:$C$5,$E$3,$E$4,$E$5,B108) -> 1.543732459 | D108: 5.562399597 | E108: =ThreePosition_Basic2($E$3,$E$5,$B$3:$C$3,$B$5:$C$5,B108,C108) -> -61.6165937 | F108: -79.63505802 | G108: -131.0725628 | H108: 8.980061672 | I108: =ThreePosition_Basic2($E$3,$E$5,$B$3:$C$3,$B$5:$C$5,B108,D108) -> 420.3642829 | J108: -157.5177166 | K108: 68.50133856 | L108: 29.3259162
A109: 50.5 | B109: 0.8813912723 | C109: =Burmester($B$3:$C$3,$B$4:$C$4,$B$5:$C$5,$E$3,$E$4,$E$5,B109) -> 1.556957088 | D109: 5.566316907 | E109: =ThreePosition_Basic2($E$3,$E$5,$B$3:$C$3,$B$5:$C$5,B109,C109) -> -61.40267317 | F109: -79.92716902 | G109: -129.9278629 | H109: 8.364201326 | I109: =ThreePosition_Basic2($E$3,$E$5,$B$3:$C$3,$B$5:$C$5,B109,D109) -> 411.2699538 | J109: -154.1909223 | K109: 68.54736382 | L109: 29.47345689
A110: 51 | B110: 0.8901179185 | C110: =Burmester($B$3:$C$3,$B$4:$C$4,$B$5:$C$5,$E$3,$E$4,$E$5,B110) -> 1.570139654 | D110: 5.570241575 | E110: =ThreePosition_Basic2($E$3,$E$5,$B$3:$C$3,$B$5:$C$5,B110,C110) -> -61.18704614 | F110: -80.21727473 | G110: -128.7980418 | H110: 7.75611505 | I110: =ThreePosition_Basic2($E$3,$E$5,$B$3:$C$3,$B$5:$C$5,B110,D110) -> 402.6068509 | J110: -151.0138204 | K110: 68.59286643 | L110: 29.62147852
A111: 51.5 | B111: 0.8988445648 | C111: =Burmester($B$3:$C$3,$B$4:$C$4,$B$5:$C$5,$E$3,$E$4,$E$5,B111) -> 1.5832803 | D111: 5.574173699 | E111: =ThreePosition_Basic2($E$3,$E$5,$B$3:$C$3,$B$5:$C$5,B111,C111) -> -60.96973328 | F111: -80.50536361 | G111: -127.6826327 | H111: 7.155644903 | I111: =ThreePosition_Basic2($E$3,$E$5,$B$3:$C$3,$B$5:$C$5,B111,D111) -> 394.3448572 | J111: -147.9759362 | K111: 68.63784693 | L111: 29.76998045
A112: 52 | B112: 0.907571211 | C112: =Burmester($B$3:$C$3,$B$4:$C$4,$B$5:$C$5,$E$3,$E$4,$E$5,B112) -> 1.596379167 | D112: 5.578113379 | E112: =ThreePosition_Basic2($E$3,$E$5,$B$3:$C$3,$B$5:$C$5,B112,C112) -> -60.75075528 | F112: -80.79142431 | G112: -126.581188 | H112: 6.562639248 | I112: =ThreePosition_Basic2($E$3,$E$5,$B$3:$C$3,$B$5:$C$5,B112,D112) -> 386.4565938 | J112: -145.0677468 | K112: 68.68230577 | L112: 29.91896206
A113: 52.5 | B113: 0.9162978573 | C113: =Burmester($B$3:$C$3,$B$4:$C$4,$B$5:$C$5,$E$3,$E$4,$E$5,B113) -> 1.609436395 | D113: 5.58206071 | E113: =ThreePosition_Basic2($E$3,$E$5,$B$3:$C$3,$B$5:$C$5,B113,C113) -> -60.5301329 | F113: -81.0754457 | G113: -125.4932775 | H113: 5.976952438 | I113: =ThreePosition_Basic2($E$3,$E$5,$B$3:$C$3,$B$5:$C$5,B113,D113) -> 378.9171151 | J113: -142.2805761 | K113: 68.72624331 | L113: 30.06842279
A114: 53 | B114: 0.9250245036 | C114: =Burmester($B$3:$C$3,$B$4:$C$4,$B$5:$C$5,$E$3,$E$4,$E$5,B114) -> 1.622452129 | D114: 5.586015789 | E114: =ThreePosition_Basic2($E$3,$E$5,$B$3:$C$3,$B$5:$C$5,B114,C114) -> -60.30788691 | F114: -81.35741687 | G114: -124.4184884 | H114: 5.39844453 | I114: =ThreePosition_Basic2($E$3,$E$5,$B$3:$C$3,$B$5:$C$5,B114,D114) -> 371.7036445 | J114: -139.6065021 | K114: 68.7696598 | L114: 30.21836209
A115: 53.5 | B115: 0.9337511498 | C115: =Burmester($B$3:$C$3,$B$4:$C$4,$B$5:$C$5,$E$3,$E$4,$E$5,B115) -> 1.635426511 | D115: 5.589978714 | E115: =ThreePosition_Basic2($E$3,$E$5,$B$3:$C$3,$B$5:$C$5,B115,C115) -> -60.08403814 | F115: -81.63732712 | G115: -123.356424 | H115: 4.826981006 | I115: =ThreePosition_Basic2($E$3,$E$5,$B$3:$C$3,$B$5:$C$5,B115,D115) -> 364.7953437 | J115: -137.0382773 | K115: 68.81255541 | L115: 30.36877945
A116: 54 | B116: 0.9424777961 | C116: =Burmester($B$3:$C$3,$B$4:$C$4,$B$5:$C$5,$E$3,$E$4,$E$5,B116) -> 1.648359686 | D116: 5.593949578 | E116: =ThreePosition_Basic2($E$3,$E$5,$B$3:$C$3,$B$5:$C$5,B116,C116) -> -59.85860743 | F116: -81.91516594 | G116: -122.306703 | H116: 4.26243251 | I116: =ThreePosition_Basic2($E$3,$E$5,$B$3:$C$3,$B$5:$C$5,B116,D116) -> 358.1731106 | J116: -134.5692579 | K116: 68.85493024 | L116: 30.5196744
A117: 54.5 | B117: 0.9512044423 | C117: =Burmester($B$3:$C$3,$B$4:$C$4,$B$5:$C$5,$E$3,$E$4,$E$5,B117) -> 1.661251796 | D117: 5.597928479 | E117: =ThreePosition_Basic2($E$3,$E$5,$B$3:$C$3,$B$5:$C$5,B117,C117) -> -59.63161567 | F117: -82.19092306 | G117: -121.268959 | H117: 3.704674605 | I117: =ThreePosition_Basic2($E$3,$E$5,$B$3:$C$3,$B$5:$C$5,B117,D117) -> 351.8194026 | J117: -132.1933425 | K117: 68.89678427 | L117: 30.6710465
A118: 55 | B118: 0.9599310886 | C118: =Burmester($B$3:$C$3,$B$4:$C$4,$B$5:$C$5,$E$3,$E$4,$E$5,B118) -> 1.674102987 | D118: 5.601915511 | E118: =ThreePosition_Basic2($E$3,$E$5,$B$3:$C$3,$B$5:$C$5,B118,C118) -> -59.40308377 | F118: -82.46458839 | G118: -120.2428396 | H118: 3.153587541 | I118: =ThreePosition_Basic2($E$3,$E$5,$B$3:$C$3,$B$5:$C$5,B118,D118) -> 345.7180798 | J118: -129.9049177 | K118: 68.93811742 | L118: 30.82289532
A119: 55.5 | B119: 0.9686577349 | C119: =Burmester($B$3:$C$3,$B$4:$C$4,$B$5:$C$5,$E$3,$E$4,$E$5,B119) -> 1.686913403 | D119: 5.605910768 | E119: =ThreePosition_Basic2($E$3,$E$5,$B$3:$C$3,$B$5:$C$5,B119,C119) -> -59.17303269 | F119: -82.73615208 | G119: -119.228006 | H119: 2.60905603 | I119: =ThreePosition_Basic2($E$3,$E$5,$B$3:$C$3,$B$5:$C$5,B119,D119) -> 339.8542683 | J119: -127.6988104 | K119: 68.97892951 | L119: 30.97522049
A120: 56 | B120: 0.9773843811 | C120: =Burmester($B$3:$C$3,$B$4:$C$4,$B$5:$C$5,$E$3,$E$4,$E$5,B120) -> 1.69968319 | D120: 5.609914346 | E120: =ThreePosition_Basic2($E$3,$E$5,$B$3:$C$3,$B$5:$C$5,B120,C120) -> -58.9414834 | F120: -83.00560447 | G120: -118.2241322 | H120: 2.070969041 | I120: =ThreePosition_Basic2($E$3,$E$5,$B$3:$C$3,$B$5:$C$5,B120,D120) -> 334.2142382 | J120: -125.5702455 | K120: 69.0192203 | L120: 31.12802162
A121: 56.5 | B121: 0.9861110274 | C121: =Burmester($B$3:$C$3,$B$4:$C$4,$B$5:$C$5,$E$3,$E$4,$E$5,B121) -> 1.712412491 | D121: 5.613926337 | E121: =ThreePosition_Basic2($E$3,$E$5,$B$3:$C$3,$B$5:$C$5,B121,C121) -> -58.70845691 | F121: -83.2729361 | G121: -117.2309046 | H121: 1.539219602 | I121: =ThreePosition_Basic2($E$3,$E$5,$B$3:$C$3,$B$5:$C$5,B121,D121) -> 328.7852953 | J121: -123.514808 | K121: 69.05898943 | L121: 31.28129838
A122: 57 | B122: 0.9948376736 | C122: =Burmester($B$3:$C$3,$B$4:$C$4,$B$5:$C$5,$E$3,$E$4,$E$5,B122) -> 1.725101454 | D122: 5.617946835 | E122: =ThreePosition_Basic2($E$3,$E$5,$B$3:$C$3,$B$5:$C$5,B122,C122) -> -58.47397425 | F122: -83.53813774 | G122: -116.248021 | H122: 1.013704616 | I122: =ThreePosition_Basic2($E$3,$E$5,$B$3:$C$3,$B$5:$C$5,B122,D122) -> 323.5556858 | J122: -121.5284102 | K122: 69.09823649 | L122: 31.43505045
A123: 57.5 | B123: 1.00356432 | C123: =Burmester($B$3:$C$3,$B$4:$C$4,$B$5:$C$5,$E$3,$E$4,$E$5,B123) -> 1.737750223 | D123: 5.621975934 | E123: =ThreePosition_Basic2($E$3,$E$5,$B$3:$C$3,$B$5:$C$5,B123,C123) -> -58.23805649 | F123: -83.80120035 | G123: -115.2751909 | H123: 0.4943246755 | I123: =ThreePosition_Basic2($E$3,$E$5,$B$3:$C$3,$B$5:$C$5,B123,D123) -> 318.5145104 | J123: -119.6072614 | K123: 69.13696098 | L123: 31.58927754
A124: 58 | B124: 1.012290966 | C124: =Burmester($B$3:$C$3,$B$4:$C$4,$B$5:$C$5,$E$3,$E$4,$E$5,B124) -> 1.750358943 | D124: 5.626013726 | E124: =ThreePosition_Basic2($E$3,$E$5,$B$3:$C$3,$B$5:$C$5,B124,C124) -> -58.0007247 | F124: -84.06211511 | G124: -114.3121344 | H124: -0.01901609536 | I124: =ThreePosition_Basic2($E$3,$E$5,$B$3:$C$3,$B$5:$C$5,B124,D124) -> 313.6516482 | J124: -117.7478418 | K124: 69.17516233 | L124: 31.74397935
A125: 58.5 | B125: 1.021017612 | C125: =Burmester($B$3:$C$3,$B$4:$C$4,$B$5:$C$5,$E$3,$E$4,$E$5,B125) -> 1.76292776 | D125: 5.630060304 | E125: =ThreePosition_Basic2($E$3,$E$5,$B$3:$C$3,$B$5:$C$5,B125,C125) -> -57.762 | F125: -84.32087339 | G125: -113.3585817 | H125: -0.5264102071 | I125: =ThreePosition_Basic2($E$3,$E$5,$B$3:$C$3,$B$5:$C$5,B125,D125) -> 308.9576881 | J125: -115.9468785 | K125: 69.21283989 | L125: 31.89915564
A126: 59 | B126: 1.029744259 | C126: =Burmester($B$3:$C$3,$B$4:$C$4,$B$5:$C$5,$E$3,$E$4,$E$5,B126) -> 1.77545682 | D126: 5.63411576 | E126: =ThreePosition_Basic2($E$3,$E$5,$B$3:$C$3,$B$5:$C$5,B126,C126) -> -57.52190353 | F126: -84.57746679 | G126: -112.4142731 | H126: -1.027946953 | I126: =ThreePosition_Basic2($E$3,$E$5,$B$3:$C$3,$B$5:$C$5,B126,D126) -> 304.4238681 | J126: -114.2013243 | K126: 69.24999292 | L126: 32.05480616
A127: 59.5 | B127: 1.038470905 | C127: =Burmester($B$3:$C$3,$B$4:$C$4,$B$5:$C$5,$E$3,$E$4,$E$5,B127) -> 1.787946267 | D127: 5.638180187 | E127: =ThreePosition_Basic2($E$3,$E$5,$B$3:$C$3,$B$5:$C$5,B127,C127) -> -57.28045642 | F127: -84.83188709 | G127: -111.4789582 | H127: -1.523712555 | I127: =ThreePosition_Basic2($E$3,$E$5,$B$3:$C$3,$B$5:$C$5,B127,D127) -> 300.0420198 | J127: -112.5083386 | K127: 69.28662062 | L127: 32.21093068
A128: 60 | B128: 1.047197551 | C128: =Burmester($B$3:$C$3,$B$4:$C$4,$B$5:$C$5,$E$3,$E$4,$E$5,B128) -> 1.800396247 | D128: 5.642253675 | E128: =ThreePosition_Basic2($E$3,$E$5,$B$3:$C$3,$B$5:$C$5,B128,C128) -> -57.03767986 | F128: -85.0841263 | G128: -110.5523959 | H128: -2.013790296 | I128: =ThreePosition_Basic2($E$3,$E$5,$B$3:$C$3,$B$5:$C$5,B128,D128) -> 295.8045195 | J128: -110.8652701 | K128: 69.32272212 | L128: 32.367529
A129: 60.5 | B129: 1.055924197 | C129: =Burmester($B$3:$C$3,$B$4:$C$4,$B$5:$C$5,$E$3,$E$4,$E$5,B129) -> 1.812806904 | D129: 5.646336317 | E129: =ThreePosition_Basic2($E$3,$E$5,$B$3:$C$3,$B$5:$C$5,B129,C129) -> -56.79359504 | F129: -85.33417661 | G129: -109.6343534 | H129: -2.498260654 | I129: =ThreePosition_Basic2($E$3,$E$5,$B$3:$C$3,$B$5:$C$5,B129,D129) -> 291.7042427 | J129: -109.2696413 | K129: 69.35829646 | L129: 32.5246009
A130: 61 | B130: 1.064650844 | C130: =Burmester($B$3:$C$3,$B$4:$C$4,$B$5:$C$5,$E$3,$E$4,$E$5,B130) -> 1.825178383 | D130: 5.650428203 | E130: =ThreePosition_Basic2($E$3,$E$5,$B$3:$C$3,$B$5:$C$5,B130,C130) -> -56.54822317 | F130: -85.58203043 | G130: -108.7246066 | H130: -2.977201422 | I130: =ThreePosition_Basic2($E$3,$E$5,$B$3:$C$3,$B$5:$C$5,B130,D130) -> 287.7345248 | J130: -107.7191345 | K130: 69.39334262 | L130: 32.6821462
A131: 61.5 | B131: 1.07337749 | C131: =Burmester($B$3:$C$3,$B$4:$C$4,$B$5:$C$5,$E$3,$E$4,$E$5,B131) -> 1.83751083 | D131: 5.654529424 | E131: =ThreePosition_Basic2($E$3,$E$5,$B$3:$C$3,$B$5:$C$5,B131,C131) -> -56.30158546 | F131: -85.82768038 | G131: -107.822939 | H131: -3.450687829 | I131: =ThreePosition_Basic2($E$3,$E$5,$B$3:$C$3,$B$5:$C$5,B131,D131) -> 283.8891238 | J131: -106.2115794 | K131: 69.42785951 | L131: 32.84016474
A132: 62 | B132: 1.082104136 | C132: =Burmester($B$3:$C$3,$B$4:$C$4,$B$5:$C$5,$E$3,$E$4,$E$5,B132) -> 1.849804387 | D132: 5.658640072 | E132: =ThreePosition_Basic2($E$3,$E$5,$B$3:$C$3,$B$5:$C$5,B132,C132) -> -56.05370315 | F132: -86.07111926 | G132: -106.9291422 | H132: -3.918792645 | I132: =ThreePosition_Basic2($E$3,$E$5,$B$3:$C$3,$B$5:$C$5,B132,D132) -> 280.1621879 | J132: -104.7449409 | K132: 69.46184596 | L132: 32.99865633
A133: 62.5 | B133: 1.090830782 | C133: =Burmester($B$3:$C$3,$B$4:$C$4,$B$5:$C$5,$E$3,$E$4,$E$5,B133) -> 1.862059198 | D133: 5.662760237 | E133: =ThreePosition_Basic2($E$3,$E$5,$B$3:$C$3,$B$5:$C$5,B133,C133) -> -55.8045975 | F133: -86.31234011 | G133: -106.0430147 | H133: -4.381586294 | I133: =ThreePosition_Basic2($E$3,$E$5,$B$3:$C$3,$B$5:$C$5,B133,D133) -> 276.548225 | J133: -103.3173094 | K133: 69.49530074 | L133: 33.15762082
A134: 63 | B134: 1.099557429 | C134: =Burmester($B$3:$C$3,$B$4:$C$4,$B$5:$C$5,$E$3,$E$4,$E$5,B134) -> 1.874275408 | D134: 5.666890008 | E134: =ThreePosition_Basic2($E$3,$E$5,$B$3:$C$3,$B$5:$C$5,B134,C134) -> -55.55428977 | F134: -86.55133613 | G134: -105.1643624 | H134: -4.839136951 | I134: =ThreePosition_Basic2($E$3,$E$5,$B$3:$C$3,$B$5:$C$5,B134,D134) -> 273.0420757 | J134: -101.9268909 | K134: 69.52822254 | L134: 33.31705807
A135: 63.5 | B135: 1.108284075 | C135: =Burmester($B$3:$C$3,$B$4:$C$4,$B$5:$C$5,$E$3,$E$4,$E$5,B135) -> 1.886453159 | D135: 5.671029477 | E135: =ThreePosition_Basic2($E$3,$E$5,$B$3:$C$3,$B$5:$C$5,B135,C135) -> -55.30280122 | F135: -86.78810076 | G135: -104.2929978 | H135: -5.291510638 | I135: =ThreePosition_Basic2($E$3,$E$5,$B$3:$C$3,$B$5:$C$5,B135,D135) -> 269.6388884 | J135: -100.5719985 | K135: 69.56061 | L135: 33.47696792
A136: 64 | B136: 1.117010721 | C136: =Burmester($B$3:$C$3,$B$4:$C$4,$B$5:$C$5,$E$3,$E$4,$E$5,B136) -> 1.898592594 | D136: 5.675178732 | E136: =ThreePosition_Basic2($E$3,$E$5,$B$3:$C$3,$B$5:$C$5,B136,C136) -> -55.05015314 | F136: -87.02262761 | G136: -103.42874 | H136: -5.738771319 | I136: =ThreePosition_Basic2($E$3,$E$5,$B$3:$C$3,$B$5:$C$5,B136,D136) -> 266.3340967 | J136: -99.25104454 | K136: 69.59246168 | L136: 33.63735023
A137: 64.5 | B137: =A137*PI()/180 -> 1.125737368 | C137: =Burmester($B$3:$C$3,$B$4:$C$4,$B$5:$C$5,$E$3,$E$4,$E$5,B137) -> 1.910693855 | D137: 5.679337865 | E137: =ThreePosition_Basic2($E$3,$E$5,$B$3:$C$3,$B$5:$C$5,B137,C137) -> -54.79636681 | F137: -87.25491053 | G137: -102.5714143 | H137: -6.180980983 | I137: =ThreePosition_Basic2($E$3,$E$5,$B$3:$C$3,$B$5:$C$5,B137,D137) -> 263.1233986 | J137: -97.96253339 | K137: 69.62377607 | L137: 33.79820489
A138: 65 | B138: 1.134464014 | C138: =Burmester($B$3:$C$3,$B$4:$C$4,$B$5:$C$5,$E$3,$E$4,$E$5,B138) -> 1.922757083 | D138: 5.683506963 | E138: =ThreePosition_Basic2($E$3,$E$5,$B$3:$C$3,$B$5:$C$5,B138,C138) -> -54.54146352 | F138: -87.48494353 | G138: -101.7208519 | H138: -6.618199731 | I138: =ThreePosition_Basic2($E$3,$E$5,$B$3:$C$3,$B$5:$C$5,B138,D138) -> 260.002738 | J138: -96.70505482 | K138: 69.65455161 | L138: 33.95953174
A139: 65.5 | B139: 1.14319066 | C139: =Burmester($B$3:$C$3,$B$4:$C$4,$B$5:$C$5,$E$3,$E$4,$E$5,B139) -> 1.93478242 | D139: 5.687686117 | E139: =ThreePosition_Basic2($E$3,$E$5,$B$3:$C$3,$B$5:$C$5,B139,C139) -> -54.28546457 | F139: -87.71272085 | G139: -100.8768902 | H139: -7.050485853 | I139: =ThreePosition_Basic2($E$3,$E$5,$B$3:$C$3,$B$5:$C$5,B139,D139) -> 256.9682867 | J139: -95.47727805 | K139: 69.68478666 | L139: 34.12133066
A140: 66 | B140: 1.151917306 | C140: =Burmester($B$3:$C$3,$B$4:$C$4,$B$5:$C$5,$E$3,$E$4,$E$5,B140) -> 1.946770007 | D140: 5.691875415 | E140: =ThreePosition_Basic2($E$3,$E$5,$B$3:$C$3,$B$5:$C$5,B140,C140) -> -54.02839125 | F140: -87.93823692 | G140: -100.0393717 | H140: -7.477895906 | I140: =ThreePosition_Basic2($E$3,$E$5,$B$3:$C$3,$B$5:$C$5,B140,D140) -> 254.0164293 | J140: -94.27794622 | K140: 69.71447953 | L140: 34.28360152
A141: 66.5 | B141: 1.160643953 | C141: =Burmester($B$3:$C$3,$B$4:$C$4,$B$5:$C$5,$E$3,$E$4,$E$5,B141) -> 1.958719983 | D141: 5.696074948 | E141: =ThreePosition_Basic2($E$3,$E$5,$B$3:$C$3,$B$5:$C$5,B141,C141) -> -53.77026486 | F141: -88.16148636 | G141: -99.20814439 | H141: -7.900484783 | I141: =ThreePosition_Basic2($E$3,$E$5,$B$3:$C$3,$B$5:$C$5,B141,D141) -> 251.1437481 | J141: -93.10587134 | K141: 69.74362845 | L141: 34.44634419
A142: 67 | B142: 1.169370599 | C142: =Burmester($B$3:$C$3,$B$4:$C$4,$B$5:$C$5,$E$3,$E$4,$E$5,B142) -> 1.970632488 | D142: 5.700284802 | E142: =ThreePosition_Basic2($E$3,$E$5,$B$3:$C$3,$B$5:$C$5,B142,C142) -> -53.5111067 | F142: -88.38246401 | G142: -98.38306158 | H142: -8.318305786 | I142: =ThreePosition_Basic2($E$3,$E$5,$B$3:$C$3,$B$5:$C$5,B142,D142) -> 248.34701 | J142: -91.9599296 | K142: 69.77223161 | L142: 34.60955855
A143: 67.5 | B143: 1.178097245 | C143: =Burmester($B$3:$C$3,$B$4:$C$4,$B$5:$C$5,$E$3,$E$4,$E$5,B143) -> 1.982507661 | D143: 5.704505068 | E143: =ThreePosition_Basic2($E$3,$E$5,$B$3:$C$3,$B$5:$C$5,B143,C143) -> -53.25093806 | F143: -88.60116489 | G143: -97.56398137 | H143: -8.731410691 | I143: =ThreePosition_Basic2($E$3,$E$5,$B$3:$C$3,$B$5:$C$5,B143,D143) -> 245.6231541 | J143: -90.83905713 | K143: 69.8002871 | L143: 34.77324445
A144: 68 | B144: 1.186823891 | C144: =Burmester($B$3:$C$3,$B$4:$C$4,$B$5:$C$5,$E$3,$E$4,$E$5,B144) -> 1.99434564 | D144: 5.708735834 | E144: =ThreePosition_Basic2($E$3,$E$5,$B$3:$C$3,$B$5:$C$5,B144,C144) -> -52.98978022 | F144: -88.81758423 | G144: -96.75076669 | H144: -9.139849806 | I144: =ThreePosition_Basic2($E$3,$E$5,$B$3:$C$3,$B$5:$C$5,B144,D144) -> 242.9692804 | J144: -89.74224605 | K144: 69.82779299 | L144: 34.93740177
A145: 68.5 | B145: 1.195550538 | C145: =Burmester($B$3:$C$3,$B$4:$C$4,$B$5:$C$5,$E$3,$E$4,$E$5,B145) -> 2.006146562 | D145: 5.712977188 | E145: =ThreePosition_Basic2($E$3,$E$5,$B$3:$C$3,$B$5:$C$5,B145,C145) -> -52.72765449 | F145: -89.03171746 | G145: -95.94328505 | H145: -9.543672041 | I145: =ThreePosition_Basic2($E$3,$E$5,$B$3:$C$3,$B$5:$C$5,B145,D145) -> 240.3826394 | J145: -88.66854081 | K145: 69.85474727 | L145: 35.10203035
A146: 69 | B146: 1.204277184 | C146: =Burmester($B$3:$C$3,$B$4:$C$4,$B$5:$C$5,$E$3,$E$4,$E$5,B146) -> 2.017910566 | D146: 5.717229219 | E146: =ThreePosition_Basic2($E$3,$E$5,$B$3:$C$3,$B$5:$C$5,B146,C146) -> -52.46458211 | F146: -89.24356019 | G146: -95.14140841 | H146: -9.942924955 | I146: =ThreePosition_Basic2($E$3,$E$5,$B$3:$C$3,$B$5:$C$5,B146,D146) -> 237.8606221 | J146: -87.61703488 | K146: 69.88114786 | L146: 35.26713007
A147: 69.5 | B147: 1.21300383 | C147: =Burmester($B$3:$C$3,$B$4:$C$4,$B$5:$C$5,$E$3,$E$4,$E$5,B147) -> 2.029637786 | D147: 5.721492014 | E147: =ThreePosition_Basic2($E$3,$E$5,$B$3:$C$3,$B$5:$C$5,B147,C147) -> -52.20058438 | F147: -89.45310825 | G147: -94.34501298 | H147: -10.33765482 | I147: =ThreePosition_Basic2($E$3,$E$5,$B$3:$C$3,$B$5:$C$5,B147,D147) -> 235.4007517 | J147: -86.58686761 | K147: 69.90699264 | L147: 35.43270076
A148: 70 | B148: 1.221730476 | C148: =Burmester($B$3:$C$3,$B$4:$C$4,$B$5:$C$5,$E$3,$E$4,$E$5,B148) -> 2.041328358 | D148: 5.725765662 | E148: =ThreePosition_Basic2($E$3,$E$5,$B$3:$C$3,$B$5:$C$5,B148,C148) -> -51.93568254 | F148: -89.66035765 | G148: -93.55397909 | H148: -10.72790667 | I148: =ThreePosition_Basic2($E$3,$E$5,$B$3:$C$3,$B$5:$C$5,B148,D148) -> 233.0006749 | J148: -85.5772214 | K148: 69.93227943 | L148: 35.59874226
A149: 70.5 | B149: 1.230457123 | C149: =Burmester($B$3:$C$3,$B$4:$C$4,$B$5:$C$5,$E$3,$E$4,$E$5,B149) -> 2.052982418 | D149: 5.730050251 | E149: =ThreePosition_Basic2($E$3,$E$5,$B$3:$C$3,$B$5:$C$5,B149,C149) -> -51.66989783 | F149: -89.86530459 | G149: -92.76819105 | H149: -11.11372435 | I149: =ThreePosition_Basic2($E$3,$E$5,$B$3:$C$3,$B$5:$C$5,B149,D149) -> 230.6581545 | J149: -84.58731899 | K149: 69.95700596 | L149: 35.76525442
A150: 71 | B150: 1.239183769 | C150: =Burmester($B$3:$C$3,$B$4:$C$4,$B$5:$C$5,$E$3,$E$4,$E$5,B150) -> 2.064600098 | D150: 5.734345868 | E150: =ThreePosition_Basic2($E$3,$E$5,$B$3:$C$3,$B$5:$C$5,B150,C150) -> -51.4032515 | F150: -90.0679455 | G150: -91.98753696 | H150: -11.49515056 | I150: =ThreePosition_Basic2($E$3,$E$5,$B$3:$C$3,$B$5:$C$5,B150,D150) -> 228.371062 | J150: -83.61642106 | K150: 69.98116994 | L150: 35.93223705
A151: 71.5 | B151: 1.247910415 | C151: =Burmester($B$3:$C$3,$B$4:$C$4,$B$5:$C$5,$E$3,$E$4,$E$5,B151) -> 2.076181534 | D151: 5.738652601 | E151: =ThreePosition_Basic2($E$3,$E$5,$B$3:$C$3,$B$5:$C$5,B151,C151) -> -51.13576475 | F151: -90.26827696 | G151: -91.21190863 | H151: -11.87222691 | I151: =ThreePosition_Basic2($E$3,$E$5,$B$3:$C$3,$B$5:$C$5,B151,D151) -> 226.1373714 | J151: -82.66382392 | K151: 70.00476901 | L151: 36.09968996
A152: 72 | B152: 1.256637061 | C152: =Burmester($B$3:$C$3,$B$4:$C$4,$B$5:$C$5,$E$3,$E$4,$E$5,B152) -> 2.087726856 | D152: 5.742970539 | E152: =ThreePosition_Basic2($E$3,$E$5,$B$3:$C$3,$B$5:$C$5,B152,C152) -> -50.86745877 | F152: -90.46629577 | G152: -90.44120144 | H152: -12.24499397 | I152: =ThreePosition_Basic2($E$3,$E$5,$B$3:$C$3,$B$5:$C$5,B152,D152) -> 223.955153 | J152: -81.7288574 | K152: 70.02780074 | L152: 36.26761297
A153: 72.5 | B153: 1.265363708 | C153: =Burmester($B$3:$C$3,$B$4:$C$4,$B$5:$C$5,$E$3,$E$4,$E$5,B153) -> 2.099236197 | D153: 5.747299767 | E153: =ThreePosition_Basic2($E$3,$E$5,$B$3:$C$3,$B$5:$C$5,B153,C153) -> -50.59835476 | F153: -90.66199892 | G153: -89.67531418 | H153: -12.6134913 | I153: =ThreePosition_Basic2($E$3,$E$5,$B$3:$C$3,$B$5:$C$5,B153,D153) -> 221.8225677 | J153: -80.81088284 | K153: 70.05026266 | L153: 36.43600586
A154: 73 | B154: 1.274090354 | C154: =Burmester($B$3:$C$3,$B$4:$C$4,$B$5:$C$5,$E$3,$E$4,$E$5,B154) -> 2.110709688 | D154: 5.751640375 | E154: =ThreePosition_Basic2($E$3,$E$5,$B$3:$C$3,$B$5:$C$5,B154,C154) -> -50.32847387 | F154: -90.85538359 | G154: -88.91414895 | H154: -12.97775748 | I154: =ThreePosition_Basic2($E$3,$E$5,$B$3:$C$3,$B$5:$C$5,B154,D154) -> 219.7378615 | J154: -79.90929133 | K154: 70.07215223 | L154: 36.6048684
A155: 73.5 | B155: 1.282817 | C155: =Burmester($B$3:$C$3,$B$4:$C$4,$B$5:$C$5,$E$3,$E$4,$E$5,B155) -> 2.122147459 | D155: 5.755992448 | E155: =ThreePosition_Basic2($E$3,$E$5,$B$3:$C$3,$B$5:$C$5,B155,C155) -> -50.05783724 | F155: -91.04644715 | G155: -88.15761106 | H155: -13.33783017 | I155: =ThreePosition_Basic2($E$3,$E$5,$B$3:$C$3,$B$5:$C$5,B155,D155) -> 217.699361 | J155: -79.02350195 | K155: 70.09346687 | L155: 36.77420037
A156: 74 | B156: 1.291543646 | C156: =Burmester($B$3:$C$3,$B$4:$C$4,$B$5:$C$5,$E$3,$E$4,$E$5,B156) -> 2.133549639 | D156: 5.760356075 | E156: =ThreePosition_Basic2($E$3,$E$5,$B$3:$C$3,$B$5:$C$5,B156,C156) -> -49.78646598 | F156: -91.23518716 | G156: -87.4056089 | H156: -13.69374615 | I156: =ThreePosition_Basic2($E$3,$E$5,$B$3:$C$3,$B$5:$C$5,B156,D156) -> 215.7054688 | J156: -78.15296018 | K156: 70.11420394 | L156: 36.94400151
A157: 74.5 | B157: 1.300270293 | C157: =Burmester($B$3:$C$3,$B$4:$C$4,$B$5:$C$5,$E$3,$E$4,$E$5,B157) -> 2.144916357 | D157: 5.764731342 | E157: =ThreePosition_Basic2($E$3,$E$5,$B$3:$C$3,$B$5:$C$5,B157,C157) -> -49.51438117 | F157: -91.42160139 | G157: -86.65805384 | H157: -14.04554133 | I157: =ThreePosition_Basic2($E$3,$E$5,$B$3:$C$3,$B$5:$C$5,B157,D157) -> 213.7546588 | J157: -77.29713646 | K157: 70.13436072 | L157: 37.11427155
A158: 75 | B158: 1.308996939 | C158: =Burmester($B$3:$C$3,$B$4:$C$4,$B$5:$C$5,$E$3,$E$4,$E$5,B158) -> 2.156247741 | D158: 5.769118337 | E158: =ThreePosition_Basic2($E$3,$E$5,$B$3:$C$3,$B$5:$C$5,B158,C158) -> -49.24160389 | F158: -91.60568777 | G158: -85.91486013 | H158: -14.39325082 | I158: =ThreePosition_Basic2($E$3,$E$5,$B$3:$C$3,$B$5:$C$5,B158,D158) -> 211.8454726 | J158: -76.45552477 | K158: 70.15393448 | L158: 37.28501022
A159: 75.5 | B159: 1.317723585 | C159: =Burmester($B$3:$C$3,$B$4:$C$4,$B$5:$C$5,$E$3,$E$4,$E$5,B159) -> 2.167543916 | D159: 5.773517147 | E159: =ThreePosition_Basic2($E$3,$E$5,$B$3:$C$3,$B$5:$C$5,B159,C159) -> -48.96815516 | F159: -91.78744445 | G159: -85.17594479 | H159: -14.73690892 | I159: =ThreePosition_Basic2($E$3,$E$5,$B$3:$C$3,$B$5:$C$5,B159,D159) -> 209.9765157 | J159: -75.62764134 | K159: 70.1729224 | L159: 37.45621721
A160: 76 | B160: 1.326450232 | C160: =Burmester($B$3:$C$3,$B$4:$C$4,$B$5:$C$5,$E$3,$E$4,$E$5,B160) -> 2.17880501 | D160: 5.777927857 | E160: =ThreePosition_Basic2($E$3,$E$5,$B$3:$C$3,$B$5:$C$5,B160,C160) -> -48.69405598 | F160: -91.96686974 | G160: -84.44122755 | H160: -15.07654919 | I160: =ThreePosition_Basic2($E$3,$E$5,$B$3:$C$3,$B$5:$C$5,B160,D160) -> 208.1464541 | J160: -74.81302345 | K160: 70.19132163 | L160: 37.6278922
A161: 76.5 | B161: 1.335176878 | C161: =Burmester($B$3:$C$3,$B$4:$C$4,$B$5:$C$5,$E$3,$E$4,$E$5,B161) -> 2.190031148 | D161: 5.782350557 | E161: =ThreePosition_Basic2($E$3,$E$5,$B$3:$C$3,$B$5:$C$5,B161,C161) -> -48.41932733 | F161: -92.14396215 | G161: -83.7106307 | H161: -15.41220445 | I161: =ThreePosition_Basic2($E$3,$E$5,$B$3:$C$3,$B$5:$C$5,B161,D161) -> 206.3540109 | J161: -74.01122832 | K161: 70.20912925 | L161: 37.80003486
A162: 77 | B162: 1.343903524 | C162: =Burmester($B$3:$C$3,$B$4:$C$4,$B$5:$C$5,$E$3,$E$4,$E$5,B162) -> 2.201222453 | D162: 5.786785331 | E162: =ThreePosition_Basic2($E$3,$E$5,$B$3:$C$3,$B$5:$C$5,B162,C162) -> -48.14399013 | F162: -92.31872039 | G162: -82.98407907 | H162: -15.74390685 | I162: =ThreePosition_Basic2($E$3,$E$5,$B$3:$C$3,$B$5:$C$5,B162,D162) -> 204.5979632 | J162: -73.22183201 | K162: 70.2263423 | L162: 37.97264482
A163: 77.5 | B163: 1.35263017 | C163: =Burmester($B$3:$C$3,$B$4:$C$4,$B$5:$C$5,$E$3,$E$4,$E$5,B163) -> 2.212379049 | D163: 5.791232266 | E163: =ThreePosition_Basic2($E$3,$E$5,$B$3:$C$3,$B$5:$C$5,B163,C163) -> -47.8680653 | F163: -92.49114334 | G163: -82.2614999 | H163: -16.07168783 | I163: =ThreePosition_Basic2($E$3,$E$5,$B$3:$C$3,$B$5:$C$5,B163,D163) -> 202.8771395 | J163: -72.44442847 | K163: 70.24295776 | L163: 38.1457217
A164: 78 | B164: 1.361356817 | C164: =Burmester($B$3:$C$3,$B$4:$C$4,$B$5:$C$5,$E$3,$E$4,$E$5,B164) -> 2.223501058 | D164: 5.79569145 | E164: =ThreePosition_Basic2($E$3,$E$5,$B$3:$C$3,$B$5:$C$5,B164,C164) -> -47.5915737 | F164: -92.66123008 | G164: -81.54282276 | H164: -16.39557823 | I164: =ThreePosition_Basic2($E$3,$E$5,$B$3:$C$3,$B$5:$C$5,B164,D164) -> 201.1904169 | J164: -71.67862858 | K164: 70.25897255 | L164: 38.3192651
A165: 78.5 | B165: 1.370083463 | C165: =Burmester($B$3:$C$3,$B$4:$C$4,$B$5:$C$5,$E$3,$E$4,$E$5,B165) -> 2.234588603 | D165: 5.800162969 | E165: =ThreePosition_Basic2($E$3,$E$5,$B$3:$C$3,$B$5:$C$5,B165,C165) -> -47.31453614 | F165: -92.82897985 | G165: -80.82797951 | H165: -16.71560824 | I165: =ThreePosition_Basic2($E$3,$E$5,$B$3:$C$3,$B$5:$C$5,B165,D165) -> 199.5367185 | J165: -70.9240593 | K165: 70.27438356 | L165: 38.49327461
A166: 79 | B166: 1.378810109 | C166: =Burmester($B$3:$C$3,$B$4:$C$4,$B$5:$C$5,$E$3,$E$4,$E$5,B166) -> 2.245641803 | D166: 5.804646909 | E166: =ThreePosition_Basic2($E$3,$E$5,$B$3:$C$3,$B$5:$C$5,B166,C166) -> -47.03697343 | F166: -92.99439211 | G166: -80.11690419 | H166: -17.03180749 | I166: =ThreePosition_Basic2($E$3,$E$5,$B$3:$C$3,$B$5:$C$5,B166,D166) -> 197.9150113 | J166: -70.18036283 | K166: 70.28918762 | L166: 38.66774976
A167: 79.5 | B167: 1.387536755 | C167: =Burmester($B$3:$C$3,$B$4:$C$4,$B$5:$C$5,$E$3,$E$4,$E$5,B167) -> 2.256660779 | D167: 5.809143357 | E167: =ThreePosition_Basic2($E$3,$E$5,$B$3:$C$3,$B$5:$C$5,B167,C167) -> -46.7589063 | F167: -93.15746647 | G167: -79.40953296 | H167: -17.34420502 | I167: =ThreePosition_Basic2($E$3,$E$5,$B$3:$C$3,$B$5:$C$5,B167,D167) -> 196.3243037 | J167: -69.44719589 | K167: 70.30338151 | L167: 38.84269008
A168: 80 | B168: 1.396263402 | C168: =Burmester($B$3:$C$3,$B$4:$C$4,$B$5:$C$5,$E$3,$E$4,$E$5,B168) -> 2.26764565 | D168: 5.813652399 | E168: =ThreePosition_Basic2($E$3,$E$5,$B$3:$C$3,$B$5:$C$5,B168,C168) -> -46.48035545 | F168: -93.31820274 | G168: -78.70580402 | H168: -17.65282932 | I168: =ThreePosition_Basic2($E$3,$E$5,$B$3:$C$3,$B$5:$C$5,B168,D168) -> 194.7636434 | J168: -68.72422891 | K168: 70.31696195 | L168: 39.01809508
A169: 80.5 | B169: 1.404990048 | C169: =Burmester($B$3:$C$3,$B$4:$C$4,$B$5:$C$5,$E$3,$E$4,$E$5,B169) -> 2.278596533 | D169: 5.818174121 | E169: =ThreePosition_Basic2($E$3,$E$5,$B$3:$C$3,$B$5:$C$5,B169,C169) -> -46.20134153 | F169: -93.47660091 | G169: -78.00565757 | H169: -17.95770838 | I169: =ThreePosition_Basic2($E$3,$E$5,$B$3:$C$3,$B$5:$C$5,B169,D169) -> 193.232116 | J169: -68.01114546 | K169: 70.32992562 | L169: 39.19396422
A170: 81 | B170: 1.413716694 | C170: =Burmester($B$3:$C$3,$B$4:$C$4,$B$5:$C$5,$E$3,$E$4,$E$5,B170) -> 2.289513546 | D170: 5.82270861 | E170: =ThreePosition_Basic2($E$3,$E$5,$B$3:$C$3,$B$5:$C$5,B170,C170) -> -45.92188516 | F170: -93.63266116 | G170: -77.30903571 | H170: -18.25886966 | I170: =ThreePosition_Basic2($E$3,$E$5,$B$3:$C$3,$B$5:$C$5,B170,D170) -> 191.7288423 | J170: -67.30764152 | K170: 70.34226915 | L170: 39.37029696
A171: 81.5 | B171: 1.42244334 | C171: =Burmester($B$3:$C$3,$B$4:$C$4,$B$5:$C$5,$E$3,$E$4,$E$5,B171) -> 2.300396805 | D171: 5.827255952 | E171: =ThreePosition_Basic2($E$3,$E$5,$B$3:$C$3,$B$5:$C$5,B171,C171) -> -45.64200689 | F171: -93.78638383 | G171: -76.61588242 | H171: -18.55634016 | I171: =ThreePosition_Basic2($E$3,$E$5,$B$3:$C$3,$B$5:$C$5,B171,D171) -> 190.2529773 | J171: -66.61342492 | K171: 70.35398912 | L171: 39.54709271
A172: 82 | B172: 1.431169987 | C172: =Burmester($B$3:$C$3,$B$4:$C$4,$B$5:$C$5,$E$3,$E$4,$E$5,B172) -> 2.311246425 | D172: 5.831816232 | E172: =ThreePosition_Basic2($E$3,$E$5,$B$3:$C$3,$B$5:$C$5,B172,C172) -> -45.36172724 | F172: -93.93776944 | G172: -75.92614346 | H172: -18.85014641 | I172: =ThreePosition_Basic2($E$3,$E$5,$B$3:$C$3,$B$5:$C$5,B172,D172) -> 188.8037083 | J172: -65.92821477 | K172: 70.36508207 | L172: 39.72435086
A173: 82.5 | B173: 1.439896633 | C173: =Burmester($B$3:$C$3,$B$4:$C$4,$B$5:$C$5,$E$3,$E$4,$E$5,B173) -> 2.322062521 | D173: 5.836389537 | E173: =ThreePosition_Basic2($E$3,$E$5,$B$3:$C$3,$B$5:$C$5,B173,C173) -> -45.08106666 | F173: -94.08681872 | G173: -75.23976632 | H173: -19.14031449 | I173: =ThreePosition_Basic2($E$3,$E$5,$B$3:$C$3,$B$5:$C$5,B173,D173) -> 187.3802531 | J173: -65.25174093 | K173: 70.37554447 | L173: 39.90207077
A174: 83 | B174: 1.448623279 | C174: =Burmester($B$3:$C$3,$B$4:$C$4,$B$5:$C$5,$E$3,$E$4,$E$5,B174) -> 2.332845207 | D174: 5.840975953 | E174: =ThreePosition_Basic2($E$3,$E$5,$B$3:$C$3,$B$5:$C$5,B174,C174) -> -44.80004555 | F174: -94.23353255 | G174: -74.55670019 | H174: -19.42687006 | I174: =ThreePosition_Basic2($E$3,$E$5,$B$3:$C$3,$B$5:$C$5,B174,D174) -> 185.9818591 | J174: -64.58374348 | K174: 70.38537277 | L174: 40.08025176
A175: 83.5 | B175: 1.457349925 | C175: =Burmester($B$3:$C$3,$B$4:$C$4,$B$5:$C$5,$E$3,$E$4,$E$5,B175) -> 2.343594594 | D175: 5.845575565 | E175: =ThreePosition_Basic2($E$3,$E$5,$B$3:$C$3,$B$5:$C$5,B175,C175) -> -44.51868427 | F175: -94.37791197 | G175: -73.87689589 | H175: -19.70983837 | I175: =ThreePosition_Basic2($E$3,$E$5,$B$3:$C$3,$B$5:$C$5,B175,D175) -> 184.6078014 | J175: -63.92397226 | K175: 70.39456334 | L175: 40.25889314
A176: 84 | B176: 1.466076572 | C176: =Burmester($B$3:$C$3,$B$4:$C$4,$B$5:$C$5,$E$3,$E$4,$E$5,B176) -> 2.354310795 | D176: 5.850188461 | E176: =ThreePosition_Basic2($E$3,$E$5,$B$3:$C$3,$B$5:$C$5,B176,C176) -> -44.2370031 | F176: -94.51995825 | G176: -73.20030581 | H176: -19.98924426 | I176: =ThreePosition_Basic2($E$3,$E$5,$B$3:$C$3,$B$5:$C$5,B176,D176) -> 183.2573818 | J176: -63.27218644 | K176: 70.40311254 | L176: 40.43799415
A177: 84.5 | B177: 1.474803218 | C177: =Burmester($B$3:$C$3,$B$4:$C$4,$B$5:$C$5,$E$3,$E$4,$E$5,B177) -> 2.364993921 | D177: 5.854814724 | E177: =ThreePosition_Basic2($E$3,$E$5,$B$3:$C$3,$B$5:$C$5,B177,C177) -> -43.95502228 | F177: -94.65967277 | G177: -72.52688385 | H177: -20.26511223 | I177: =ThreePosition_Basic2($E$3,$E$5,$B$3:$C$3,$B$5:$C$5,B177,D177) -> 181.9299275 | J177: -62.62815407 | K177: 70.41101666 | L177: 40.61755404
A178: 85 | B178: 1.483529864 | C178: =Burmester($B$3:$C$3,$B$4:$C$4,$B$5:$C$5,$E$3,$E$4,$E$5,B178) -> 2.375644081 | D178: 5.859454441 | E178: =ThreePosition_Basic2($E$3,$E$5,$B$3:$C$3,$B$5:$C$5,B178,C178) -> -43.67276199 | F178: -94.79705714 | G178: -71.85658543 | H178: -20.53746638 | I178: =ThreePosition_Basic2($E$3,$E$5,$B$3:$C$3,$B$5:$C$5,B178,D178) -> 180.62479 | J178: -61.99165168 | K178: 70.41827195 | L178: 40.79757199
A179: 85.5 | B179: 1.49225651 | C179: =Burmester($B$3:$C$3,$B$4:$C$4,$B$5:$C$5,$E$3,$E$4,$E$5,B179) -> 2.386261384 | D179: 5.864107699 | E179: =ThreePosition_Basic2($E$3,$E$5,$B$3:$C$3,$B$5:$C$5,B179,C179) -> -43.39024234 | F179: -94.93211311 | G179: -71.18936737 | H179: -20.80633049 | I179: =ThreePosition_Basic2($E$3,$E$5,$B$3:$C$3,$B$5:$C$5,B179,D179) -> 179.3413439 | J179: -61.36246389 | K179: 70.42487461 | L179: 40.97804717
A180: 86 | B180: 1.500983157 | C180: =Burmester($B$3:$C$3,$B$4:$C$4,$B$5:$C$5,$E$3,$E$4,$E$5,B180) -> 2.396845939 | D180: 5.868774581 | E180: =ThreePosition_Basic2($E$3,$E$5,$B$3:$C$3,$B$5:$C$5,B180,C180) -> -43.10748337 | F180: -95.0648426 | G180: -70.52518788 | H180: -21.07172799 | I180: =ThreePosition_Basic2($E$3,$E$5,$B$3:$C$3,$B$5:$C$5,B180,D180) -> 178.078986 | J180: -60.74038311 | K180: 70.4308208 | L180: 41.15897869
A181: 86.5 | B181: 1.509709803 | C181: =Burmester($B$3:$C$3,$B$4:$C$4,$B$5:$C$5,$E$3,$E$4,$E$5,B181) -> 2.407397853 | D181: 5.873455175 | E181: =ThreePosition_Basic2($E$3,$E$5,$B$3:$C$3,$B$5:$C$5,B181,C181) -> -42.82450508 | F181: -95.19524772 | G181: -69.86400653 | H181: -21.333682 | I181: =ThreePosition_Basic2($E$3,$E$5,$B$3:$C$3,$B$5:$C$5,B181,D181) -> 176.837134 | J181: -60.12520911 | K181: 70.43610664 | L181: 41.34036564
A182: 87 | B182: 1.518436449 | C182: =Burmester($B$3:$C$3,$B$4:$C$4,$B$5:$C$5,$E$3,$E$4,$E$5,B182) -> 2.417917231 | D182: 5.878149564 | E182: =ThreePosition_Basic2($E$3,$E$5,$B$3:$C$3,$B$5:$C$5,B182,C182) -> -42.54132737 | F182: -95.32333074 | G182: -69.20578417 | H182: -21.59221533 | I182: =ThreePosition_Basic2($E$3,$E$5,$B$3:$C$3,$B$5:$C$5,B182,D182) -> 175.6152262 | J182: -59.51674876 | K182: 70.44072819 | L182: 41.52220707
A183: 87.5 | B183: 1.527163095 | C183: =Burmester($B$3:$C$3,$B$4:$C$4,$B$5:$C$5,$E$3,$E$4,$E$5,B183) -> 2.428404181 | D183: 5.882857836 | E183: =ThreePosition_Basic2($E$3,$E$5,$B$3:$C$3,$B$5:$C$5,B183,C183) -> -42.25797011 | F183: -95.44909409 | G183: -68.55048292 | H183: -21.8473505 | I183: =ThreePosition_Basic2($E$3,$E$5,$B$3:$C$3,$B$5:$C$5,B183,D183) -> 174.4127199 | J183: -58.91481573 | K183: 70.44468148 | L183: 41.70450199
A184: 88 | B184: 1.535889742 | C184: =Burmester($B$3:$C$3,$B$4:$C$4,$B$5:$C$5,$E$3,$E$4,$E$5,B184) -> 2.438858805 | D184: 5.887580075 | E184: =ThreePosition_Basic2($E$3,$E$5,$B$3:$C$3,$B$5:$C$5,B184,C184) -> -41.97445307 | F184: -95.57254038 | G184: -67.89806613 | H184: -22.09910975 | I184: =ThreePosition_Basic2($E$3,$E$5,$B$3:$C$3,$B$5:$C$5,B184,D184) -> 173.229091 | J184: -58.31923013 | K184: 70.44796249 | L184: 41.88724935
A185: 88.5 | B185: 1.544616388 | C185: =Burmester($B$3:$C$3,$B$4:$C$4,$B$5:$C$5,$E$3,$E$4,$E$5,B185) -> 2.449281208 | D185: 5.892316366 | E185: =ThreePosition_Basic2($E$3,$E$5,$B$3:$C$3,$B$5:$C$5,B185,C185) -> -41.69079597 | F185: -95.69367238 | G185: -67.24849832 | H185: -22.34751504 | I185: =ThreePosition_Basic2($E$3,$E$5,$B$3:$C$3,$B$5:$C$5,B185,D185) -> 172.0638331 | J185: -57.72981833 | K185: 70.45056716 | L185: 42.0704481
A186: 89 | B186: 1.553343034 | C186: =Burmester($B$3:$C$3,$B$4:$C$4,$B$5:$C$5,$E$3,$E$4,$E$5,B186) -> 2.459671493 | D186: 5.897066795 | E186: =ThreePosition_Basic2($E$3,$E$5,$B$3:$C$3,$B$5:$C$5,B186,C186) -> -41.40701844 | F186: -95.81249303 | G186: -66.60174516 | H186: -22.59258808 | I186: =ThreePosition_Basic2($E$3,$E$5,$B$3:$C$3,$B$5:$C$5,B186,D186) -> 170.9164569 | J186: -57.14641263 | K186: 70.45249138 | L186: 42.25409711
A187: 89.5 | B187: 1.562069681 | C187: =Burmester($B$3:$C$3,$B$4:$C$4,$B$5:$C$5,$E$3,$E$4,$E$5,B187) -> 2.470029762 | D187: 5.901831447 | E187: =ThreePosition_Basic2($E$3,$E$5,$B$3:$C$3,$B$5:$C$5,B187,C187) -> -41.12314004 | F187: -95.92900542 | G187: -65.95777343 | H187: -22.83435033 | I187: =ThreePosition_Basic2($E$3,$E$5,$B$3:$C$3,$B$5:$C$5,B187,D187) -> 169.786489 | J187: -56.56885103 | K187: 70.45373102 | L187: 42.43819524
A188: 90 | B188: 1.570796327 | C188: =Burmester($B$3:$C$3,$B$4:$C$4,$B$5:$C$5,$E$3,$E$4,$E$5,B188) -> 2.480356115 | D188: 5.906610407 | E188: =ThreePosition_Basic2($E$3,$E$5,$B$3:$C$3,$B$5:$C$5,B188,C188) -> -40.83918027 | F188: -96.04321283 | G188: -65.31655098 | H188: -23.07282302 | I188: =ThreePosition_Basic2($E$3,$E$5,$B$3:$C$3,$B$5:$C$5,B188,D188) -> 168.6734719 | J188: -55.99697702 | K188: 70.45428187 | L188: 42.62274126
A189: 90.5 | B189: 1.579522973 | C189: =Burmester($B$3:$C$3,$B$4:$C$4,$B$5:$C$5,$E$3,$E$4,$E$5,B189) -> 2.490650653 | D189: 5.911403759 | E189: =ThreePosition_Basic2($E$3,$E$5,$B$3:$C$3,$B$5:$C$5,B189,C189) -> -40.55515853 | F189: -96.15511867 | G189: -64.67804672 | H189: -23.30802713 | I189: =ThreePosition_Basic2($E$3,$E$5,$B$3:$C$3,$B$5:$C$5,B189,D189) -> 167.5769629 | J189: -55.43063932 | K189: 70.45413971 | L189: 42.80773395
A190: 91 | B190: 1.588249619 | C190: =Burmester($B$3:$C$3,$B$4:$C$4,$B$5:$C$5,$E$3,$E$4,$E$5,B190) -> 2.500913475 | D190: 5.91621159 | E190: =ThreePosition_Basic2($E$3,$E$5,$B$3:$C$3,$B$5:$C$5,B190,C190) -> -40.27109416 | F190: -96.26472653 | G190: -64.04223054 | H190: -23.53998344 | I190: =ThreePosition_Basic2($E$3,$E$5,$B$3:$C$3,$B$5:$C$5,B190,D190) -> 166.4965334 | J190: -54.8696917 | K190: 70.45330026 | L190: 42.99317201
A191: 91.5 | B191: 1.596976266 | C191: =Burmester($B$3:$C$3,$B$4:$C$4,$B$5:$C$5,$E$3,$E$4,$E$5,B191) -> 2.51114468 | D191: 5.921033984 | E191: =ThreePosition_Basic2($E$3,$E$5,$B$3:$C$3,$B$5:$C$5,B191,C191) -> -39.98700641 | F191: -96.37204015 | G191: -63.40907334 | H191: -23.76871252 | I191: =ThreePosition_Basic2($E$3,$E$5,$B$3:$C$3,$B$5:$C$5,B191,D191) -> 165.4317689 | J191: -54.31399274 | K191: 70.45175923 | L191: 43.17905411
A192: 92 | B192: 1.605702912 | C192: =Burmester($B$3:$C$3,$B$4:$C$4,$B$5:$C$5,$E$3,$E$4,$E$5,B192) -> 2.521344366 | D192: 5.925871025 | E192: =ThreePosition_Basic2($E$3,$E$5,$B$3:$C$3,$B$5:$C$5,B192,C192) -> -39.70291445 | F192: -96.47706344 | G192: -62.77854696 | H192: -23.99423474 | I192: =ThreePosition_Basic2($E$3,$E$5,$B$3:$C$3,$B$5:$C$5,B192,D192) -> 164.3822678 | J192: -53.76340567 | K192: 70.44951224 | L192: 43.36537886
A193: 92.5 | B193: 1.614429558 | C193: =Burmester($B$3:$C$3,$B$4:$C$4,$B$5:$C$5,$E$3,$E$4,$E$5,B193) -> 2.531512629 | D193: 5.930722799 | E193: =ThreePosition_Basic2($E$3,$E$5,$B$3:$C$3,$B$5:$C$5,B193,C193) -> -39.41883737 | F193: -96.57980045 | G193: -62.15062413 | H193: -24.21657027 | I193: =ThreePosition_Basic2($E$3,$E$5,$B$3:$C$3,$B$5:$C$5,B193,D193) -> 163.3476411 | J193: -53.21779819 | K193: 70.44655492 | L193: 43.55214483
A194: 93 | B194: 1.623156204 | C194: =Burmester($B$3:$C$3,$B$4:$C$4,$B$5:$C$5,$E$3,$E$4,$E$5,B194) -> 2.541649565 | D194: 5.93558939 | E194: =ThreePosition_Basic2($E$3,$E$5,$B$3:$C$3,$B$5:$C$5,B194,C194) -> -39.13479418 | F194: -96.6802554 | G194: -61.52527851 | H194: -24.43573911 | I194: =ThreePosition_Basic2($E$3,$E$5,$B$3:$C$3,$B$5:$C$5,B194,D194) -> 162.3275121 | J194: -52.67704227 | K194: 70.44288282 | L194: 43.73935053
A195: 93.5 | B195: 1.631882851 | C195: =Burmester($B$3:$C$3,$B$4:$C$4,$B$5:$C$5,$E$3,$E$4,$E$5,B195) -> 2.551755269 | D195: 5.940470883 | E195: =ThreePosition_Basic2($E$3,$E$5,$B$3:$C$3,$B$5:$C$5,B195,C195) -> -38.85080378 | F195: -96.77843266 | G195: -60.90248461 | H195: -24.65176107 | I195: =ThreePosition_Basic2($E$3,$E$5,$B$3:$C$3,$B$5:$C$5,B195,D195) -> 161.3215158 | J195: -52.14101399 | K195: 70.43849149 | L195: 43.92699445
A196: 94 | B196: 1.640609497 | C196: =Burmester($B$3:$C$3,$B$4:$C$4,$B$5:$C$5,$E$3,$E$4,$E$5,B196) -> 2.561829836 | D196: 5.945367362 | E196: =ThreePosition_Basic2($E$3,$E$5,$B$3:$C$3,$B$5:$C$5,B196,C196) -> -38.56688502 | F196: -96.87433674 | G196: -60.28221775 | H196: -24.86465579 | I196: =ThreePosition_Basic2($E$3,$E$5,$B$3:$C$3,$B$5:$C$5,B196,D196) -> 160.3292981 | J196: -51.60959342 | K196: 70.43337641 | L196: 44.115075
A197: 94.5 | B197: 1.649336143 | C197: =Burmester($B$3:$C$3,$B$4:$C$4,$B$5:$C$5,$E$3,$E$4,$E$5,B197) -> 2.57187336 | D197: 5.950278911 | E197: =ThreePosition_Basic2($E$3,$E$5,$B$3:$C$3,$B$5:$C$5,B197,C197) -> -38.28305662 | F197: -96.96797233 | G197: -59.66445409 | H197: -25.07444277 | I197: =ThreePosition_Basic2($E$3,$E$5,$B$3:$C$3,$B$5:$C$5,B197,D197) -> 159.350516 | J197: -51.08266439 | K197: 70.42753303 | L197: 44.30359055
A198: 95 | B198: 1.658062789 | C198: =Burmester($B$3:$C$3,$B$4:$C$4,$B$5:$C$5,$E$3,$E$4,$E$5,B198) -> 2.581885932 | D198: 5.955205616 | E198: =ThreePosition_Basic2($E$3,$E$5,$B$3:$C$3,$B$5:$C$5,B198,C198) -> -37.99933725 | F198: -97.05934424 | G198: -59.04917057 | H198: -25.28114134 | I198: =ThreePosition_Basic2($E$3,$E$5,$B$3:$C$3,$B$5:$C$5,B198,D198) -> 158.3848366 | J198: -50.56011445 | K198: 70.42095677 | L198: 44.49253941
A199: 95.5 | B199: 1.666789436 | C199: =Burmester($B$3:$C$3,$B$4:$C$4,$B$5:$C$5,$E$3,$E$4,$E$5,B199) -> 2.591867646 | D199: 5.96014756 | E199: =ThreePosition_Basic2($E$3,$E$5,$B$3:$C$3,$B$5:$C$5,B199,C199) -> -37.71574545 | F199: -97.14845745 | G199: -58.43634487 | H199: -25.48477069 | I199: =ThreePosition_Basic2($E$3,$E$5,$B$3:$C$3,$B$5:$C$5,B199,D199) -> 157.4319371 | J199: -50.04183462 | K199: 70.41364301 | L199: 44.68191985
A200: 96 | B200: 1.675516082 | C200: =Burmester($B$3:$C$3,$B$4:$C$4,$B$5:$C$5,$E$3,$E$4,$E$5,B200) -> 2.601818592 | D200: 5.965104828 | E200: =ThreePosition_Basic2($E$3,$E$5,$B$3:$C$3,$B$5:$C$5,B200,C200) -> -37.4322997 | F200: -97.23531707 | G200: -57.82595544 | H200: -25.68534986 | I200: =ThreePosition_Basic2($E$3,$E$5,$B$3:$C$3,$B$5:$C$5,B200,D200) -> 156.4915043 | J200: -49.52771937 | K200: 70.4055871 | L200: 44.87173008
A201: 96.5 | B201: =A201*PI()/180 -> 1.684242728 | C201: =Burmester($B$3:$C$3,$B$4:$C$4,$B$5:$C$5,$E$3,$E$4,$E$5,B201) -> 2.611738861 | D201: 5.970077503 | E201: =ThreePosition_Basic2($E$3,$E$5,$B$3:$C$3,$B$5:$C$5,B201,C201) -> -37.14901838 | F201: -97.31992838 | G201: -57.21798142 | H201: -25.88289776 | I201: =ThreePosition_Basic2($E$3,$E$5,$B$3:$C$3,$B$5:$C$5,B201,D201) -> 155.563234 | J201: -49.01766641 | K201: 70.39678434 | L201: 45.06196824
A202: 97 | B202: 1.692969374 | C202: =Burmester($B$3:$C$3,$B$4:$C$4,$B$5:$C$5,$E$3,$E$4,$E$5,B202) -> 2.621628541 | D202: 5.97506567 | E202: =ThreePosition_Basic2($E$3,$E$5,$B$3:$C$3,$B$5:$C$5,B202,C202) -> -36.86591974 | F202: -97.40229678 | G202: -56.61240263 | H202: -26.07743317 | I202: =ThreePosition_Basic2($E$3,$E$5,$B$3:$C$3,$B$5:$C$5,B202,D202) -> 154.646831 | J202: -48.51157661 | K202: 70.38723 | L202: 45.25263245
... 526 more rows

Sheet 12345 Circle
K1: Positions 1234 | M1: (radians)
K2: b2 | L2: (radians) | M2: b41 | N2: b42 | O2: -Z1x | P2: -Z1y | Q2: R1x | R2: R1y | S2: -Z2x | T2: -Z2y | U2: R2x | V2: R12y
A3: d2 | B3: -5 | C3: 105 | D3: a2 | E3: =F3*PI()/180 -> 0.5235987756 | F3: 30 | J3: 54 | K3: =J3+0.01*J4+0.0001*J5 -> 54.1334 | L3: =K3*PI()/180 -> 0.9448060653 | M3: =Burmester(B3:C3,B4:C4,B5:C5,E3,E4,E5,L3) -> 1.651803311 | N3: 5.595010359 | O3: =ThreePosition_Basic2(E3,E5,B3:C3,B5:C5,L3,M3) -> -59.79819785 | P3: -81.98894197 | Q3: -122.0286762 | R3: 4.112963549 | S3: =ThreePosition_Basic2(E3,E5,B3:C3,B5:C5,L3,N3) -> 356.4523677 | T3: -133.9264974 | U3: 68.86614784 | V3: 30.56001383
A4: d3 | B4: 40 | C4: 115 | D4: a3 | E4: =F4*PI()/180 -> 0 | F4: 0 | J4: 13 | K4: Positions 1235
A5: d4 | B5: 60 | C5: 80 | D5: a4 | E5: =F5*PI()/180 -> -0.872664626 | F5: -50 | J5: 34 | M5: b51 | N5: b52 | O5: -Z1x | P5: -Z1y | Q5: R1x | R5: R1y | S5: -Z2x | T5: -Z2y | U5: R2x | V5: R12y
A6: d5 | B6: 15 | C6: 65 | D6: a5 | E6: =F6*PI()/180 -> -1.308996939 | F6: -75 | K6: =K3 -> 54.1334 | L6: =K6*PI()/180 -> 0.9448060653 | M6: =Burmester(B3:C3,B4:C4,B6:C6,E3,E4,E6,L6) -> 2.105658653 | N6: 4.995398385 | O6: =ThreePosition_Basic2(E3,E6,B3:C3,B6:C6,L6,M6) -> -59.79821165 | P6: -81.98894025 | Q6: -122.0286825 | R6: 4.112962672 | S6: =ThreePosition_Basic2(E3,E6,B3:C3,B6:C6,L6,N6) -> 310.5694855 | T6: -128.2014728 | U6: 47.82400292 | V6: 27.64478201
O8: =mag((O3-O6),(P3-P6)) -> 1.390869092e-05 | P8: =mag((O3-S6),(P3-T6)) -> 373.2396267 | Q8: =mag((S3-O6),(T3-P6)) -> 419.4783125 | R8: =mag((T3-T6),(S3-S6)) -> 46.23867196
K10: Result
K11: b2 | L11: b4 | M11: b5 | N11: -Zx | O11: -Zy | P11: Rx | Q11: Ry
K12: 54.133413 | L12: 94.64137753 | M12: 120.6453765 | N12: -59.79819196 | O12: -81.98894915 | P12: -122.0286492 | Q12: 4.112949004
K13: 189.4114886 | L13: 55.08687996 | M13: 350.5511407 | N13: 55.2323532 | O13: 15.5522121 | P13: 50.51688732 | Q13: 81.64889588 | AB13: This Example is from the above paper
K14: 316.136 | L14: 252.9185482 | M14: 264.5632409 | N14: -65.46512041 | O14: 2.775160272 | P14: 25.00531622 | Q14: 35.76370405 | AB14: Solved as two four position problem.
K15: 351.6463 | L15: 292.931794 | M15: 288.367482 | N15: -145.1083135 | O15: 22.81984428 | P15: 57.61819087 | Q15: 16.76279929
K16: (Angles are in degrees)
B24: k1234 | H24: k1235
A25: b2
A26: 0 | B26: ='1234'!E8 -> -151.0746452 | C26: ='1234'!F8 -> 35.26114797 | E26: ='1234'!I8 -> -198.4326674 | F26: ='1234'!J8 -> 43.16987298 | H26: ='1235'!E8 -> 24.24611104 | I26: ='1235'!F8 -> 76.64194016 | K26: ='1235'!I8 -> -198.4326674 | L26: ='1235'!J8 -> 43.16987298 | N26: =SQRT((B26-H26)^2+(C26-I26)^2) -> 180.1381068 | O26: =SQRT((E26-K26)^2+(F26-L26)^2) -> 1.421085472e-14
A27: 0.5 | B27: ='1234'!E9 -> -71.04298568 | C27: ='1234'!F9 -> -43.7630359 | E27: ='1234'!I9 -> -202.6061282 | F27: ='1234'!J9 -> 44.74044526 | H27: ='1235'!E9 -> -96.66206278 | I27: ='1235'!F9 -> -26.52889675 | K27: ='1235'!I9 -> -202.4825084 | L27: ='1235'!J9 -> 44.65728533 | N27: =SQRT((B27-H27)^2+(C27-I27)^2) -> 30.8764095 | O27: =SQRT((E27-K27)^2+(F27-L27)^2) -> 0.1489880055
A28: 1 | B28: ='1234'!E10 -> -71.09713053 | C28: ='1234'!F10 -> -44.15163664 | E28: ='1234'!I10 -> -206.9255328 | F28: ='1234'!J10 -> 46.36276566 | H28: ='1235'!E10 -> -96.51199583 | I28: ='1235'!F10 -> -27.2154782 | K28: ='1235'!I10 -> -206.66439 | L28: ='1235'!J10 -> 46.18874325 | N28: 30.54093713 | O28: 0.3138142255
A29: 1.5 | B29: ='1234'!E11 -> -71.14742362 | C29: ='1234'!F11 -> -44.54099778 | E29: ='1234'!I11 -> -211.3984698 | F29: ='1234'!J11 -> 48.03944161 | H29: ='1235'!E11 -> -96.359464 | I29: ='1235'!F11 -> -27.8983998 | K29: ='1235'!I11 -> -210.9856052 | L29: ='1235'!J11 -> 47.76690757 | N29: 30.20965156 | O29: 0.4947039246
A30: 2 | B30: ='1234'!E12 -> -71.19390246 | C30: ='1234'!F12 -> -44.93105404 | E30: ='1234'!I12 -> -216.0330734 | F30: ='1234'!J12 -> 49.77327204 | H30: ='1235'!E12 -> -96.20430502 | I30: ='1235'!F12 -> -28.57778921 | K30: ='1235'!I12 -> -215.4539376 | L30: ='1235'!J12 -> 49.39459913 | N30: 29.88226073 | O30: 0.6919476257
A31: 2.5 | B31: ='1234'!E13 -> -71.23660335 | C31: ='1234'!F13 -> -45.32174218 | E31: ='1234'!I13 -> -220.8380736 | F31: ='1234'!J13 -> 51.56726443 | H31: ='1235'!E13 -> -96.04637194 | I31: ='1235'!F13 -> -29.2537595 | K31: ='1235'!I13 -> -220.0777096 | L31: ='1235'!J13 -> 51.07481665 | N31: 29.55849598 | O31: 0.9059018823
A32: 3 | B32: ='1234'!E14 -> -71.27556145 | C32: ='1234'!F14 -> -45.71300093 | E32: ='1234'!I14 -> -225.8228502 | F32: ='1234'!J14 -> 53.42465388 | H32: ='1235'!E14 -> -95.88553149 | I32: ='1235'!F14 -> -29.92641072 | K32: ='1235'!I14 -> -224.8658352 | L32: ='1235'!J14 -> 52.81075618 | N32: 29.23810965 | O32: 1.136990813
A33: 3.5 | B33: ='1234'!E15 -> -71.3108108 | C33: ='1234'!F15 -> -46.10477086 | E33: ='1234'!I15 -> -230.9974946 | F33: ='1234'!J15 -> 55.34892424 | H33: ='1235'!E15 -> -95.72166264 | I33: ='1235'!F15 -> -30.59583135 | K33: ='1235'!I15 -> -229.8278784 | L33: ='1235'!J15 -> 54.6058323 | N33: 28.92087296 | O33: 1.385708389
A34: 4 | B34: ='1234'!E16 -> -71.34238443 | C34: ='1234'!F16 -> -46.4969943 | E34: ='1234'!I16 -> -236.3728779 | F34: ='1234'!J16 -> 57.34383185 | H34: ='1235'!E16 -> -95.55465537 | I34: ='1235'!F16 -> -31.26209943 | K34: ='1235'!I16 -> -234.9741183 | L34: ='1235'!J16 -> 56.46370148 | N34: 28.60657417 | O34: 1.652621496
A35: 4.5 | B35: ='1234'!E17 -> -71.37031441 | C35: ='1234'!F17 -> -46.88961524 | E35: ='1234'!I17 -> -241.9607267 | F35: ='1234'!J17 -> 59.4134319 | H35: ='1235'!E17 -> -95.38440959 | I35: ='1235'!F17 -> -31.92528367 | K35: ='1235'!I17 -> -240.315621 | L35: ='1235'!J17 -> 58.38828786 | N35: 28.29501699 | O35: 1.938373789
A36: 5 | B36: ='1234'!E18 -> -71.39463189 | C36: ='1234'!F18 -> -47.28257925 | E36: ='1234'!I18 -> -247.7737092 | F36: ='1234'!J18 -> 61.56210815 | H36: ='1235'!E18 -> -95.21083416 | I36: ='1235'!F18 -> -32.58544437 | K36: ='1235'!I18 -> -245.8643207 | L36: ='1235'!J18 -> 60.38381193 | N36: 27.98601909 | O36: 2.243690404
A37: 5.5 | B37: ='1234'!E19 -> -71.41536717 | C37: ='1234'!F19 -> -47.67583343 | E37: ='1234'!I19 -> -253.8255307 | F37: ='1234'!J19 -> 63.79460616 | H37: ='1235'!E19 -> -95.0338461 | I37: ='1235'!F19 -> -33.24263421 | K37: ='1235'!I19 -> -251.6331093 | L37: ='1235'!J19 -> 62.4548224 | N37: 27.67941089 | O37: 2.569383579
A38: 6 | B38: ='1234'!E20 -> -71.43254974 | C38: ='1234'!F20 -> -48.0693263 | E38: ='1234'!I20 -> -260.1310412 | F38: ='1234'!J20 -> 66.11607079 | H38: ='1235'!E20 -> -94.85336985 | I38: ='1235'!F20 -> -33.89689904 | K38: ='1235'!I20 -> -257.6359384 | L38: ='1235'!J20 -> 64.60623197 | N38: 27.37503441 | O38: 2.916359278
A39: 6.5 | B39: ='1234'!E21 -> -71.44620836 | C39: ='1234'!F21 -> -48.46300775 | E39: ='1234'!I21 -> -266.7063577 | F39: ='1234'!J21 -> 68.53208846 | H39: ='1235'!E21 -> -94.66933656 | I39: ='1235'!F21 -> -34.54827846 | K39: ='1235'!I21 -> -263.8879329 | L39: ='1235'!J21 -> 66.84335737 | N39: 27.07274228 | O39: 3.285624935
A40: 7 | B40: ='1234'!E22 -> -71.45637104 | C40: ='1234'!F22 -> -48.85682896 | E40: ='1234'!I22 -> -273.5690013 | F40: ='1234'!J22 -> 71.0487349 | H40: ='1235'!E22 -> -94.48168358 | I40: ='1235'!F22 -> -35.19680642 | K40: ='1235'!I22 -> -270.4055202 | L40: ='1235'!J22 -> 69.17196459 | N40: 26.77239685 | O40: 3.678298431
A41: 7.5 | B41: ='1234'!E23 -> -71.46306514 | C41: ='1234'!F23 -> -49.25074235 | E41: ='1234'!I23 -> -280.7380531 | F41: ='1234'!J23 -> 73.67262938 | H41: ='1235'!E23 -> -94.29035389 | I41: ='1235'!F23 -> -35.84251174 | K41: ='1235'!I23 -> -277.2065759 | L41: ='1235'!J23 -> 71.59831993 | N41: 26.47386937 | O41: 4.095618499
A42: 8 | B42: ='1234'!E24 -> -71.46631741 | C42: ='1234'!F24 -> -49.64470154 | E42: ='1234'!I24 -> -288.2343314 | F42: ='1234'!J24 -> 76.41099621 | H42: ='1235'!E24 -> -94.09529567 | I42: ='1235'!F24 -> -36.48541853 | K42: ='1235'!I24 -> -284.3105893 | L42: ='1235'!J24 -> 74.12924787 | N42: 26.1770393 | O42: 4.53895672
A43: 8.5 | B43: ='1234'!E25 -> -71.46615398 | C43: ='1234'!F25 -> -50.03866125 | E43: ='1234'!I25 -> -296.0805938 | F43: ='1234'!J25 -> 79.27173498 | H43: ='1235'!E25 -> -93.89646189 | I43: ='1235'!F25 -> -37.12554665 | K43: ='1235'!I25 -> -291.7388522 | L43: ='1235'!J25 -> 76.77219698 | N43: 25.88179364 | O43: 5.009831375
A44: 9 | B44: ='1234'!E26 -> -71.46260044 | C44: ='1234'!F26 -> -50.43257731 | E44: ='1234'!I26 -> -304.3017675 | F44: ='1234'!J26 -> 82.26350071 | H44: ='1235'!E26 -> -93.69380992 | I44: ='1235'!F26 -> -37.76291204 | K44: ='1235'!I26 -> -299.5146745 | L44: ='1235'!J26 -> 79.53531509 | N44: 25.58802635 | O44: 5.509923432
A45: 9.5 | B45: ='1234'!E27 -> -71.45568187 | C45: ='1234'!F27 -> -50.82640653 | E45: ='1234'!I27 -> -312.9252139 | F45: ='1234'!J27 -> 85.39579586 | H45: ='1235'!E27 -> -93.4873012 | I45: ='1235'!F27 -> -38.39752707 | K45: ='1235'!I27 -> -307.6636306 | L45: ='1235'!J27 -> 82.42753539 | N45: 25.29563786 | O45: 6.04109501
A46: 10 | B46: ='1234'!E28 -> -71.44542285 | C46: ='1234'!F28 -> -51.22010675 | E46: ='1234'!I28 -> -321.9810331 | F46: ='1234'!J28 -> 88.67907602 | H46: ='1235'!E28 -> -93.27690096 | I46: ='1235'!F28 -> -39.02940084 | K46: ='1235'!I28 -> -316.213844 | L46: ='1235'!J28 -> 85.45867535 | N46: 25.00453453 | O46: 6.605410742
A47: 10.5 | B47: ='1234'!E29 -> -71.4318475 | C47: ='1234'!F29 -> -51.61363673 | E47: ='1234'!I29 -> -331.5024144 | F47: ='1234'!J29 -> 92.12487203 | H47: ='1235'!E29 -> -93.06257793 | I47: ='1235'!F29 -> -39.65853942 | K47: ='1235'!I29 -> -325.196314 | L47: ='1235'!J29 -> 88.63955078 | N47: 24.71462827 | O47: 7.205162539
A48: 11 | B48: ='1234'!E30 -> -71.41497953 | C48: ='1234'!F30 -> -52.00695612 | E48: ='1234'!I30 -> -341.526043 | F48: ='1234'!J30 -> 95.74593126 | H48: ='1235'!E30 -> -92.84430411 | I48: ='1235'!F30 -> -40.28494614 | K48: ='1235'!I30 -> -334.6452953 | L48: ='1235'!J30 -> 91.98210787 | N48: 24.42583611 | O48: 7.842898384
A49: 11.5 | B49: ='1234'!E31 -> -71.39484223 | C49: ='1234'!F31 -> -52.40002545 | E49: ='1234'!I31 -> -352.0925721 | F49: ='1234'!J31 -> 99.55638182 | H49: ='1235'!E31 -> -92.62205453 | I49: ='1235'!F31 -> -40.9086218 | K49: ='1235'!I31 -> -344.5987385 | L49: ='1235'!J31 -> 95.49957657 | N49: 24.13807987 | O49: 8.521455875
A50: 12 | B50: ='1234'!E32 -> -71.37145854 | C50: ='1234'!F32 -> -52.79280606 | E50: ='1234'!I32 -> -363.247174 | F50: ='1234'!J32 -> 103.5719243 | H50: ='1235'!E32 -> -92.39580707 | I50: ='1235'!F32 -> -41.52956484 | K50: ='1235'!I32 -> -355.0988037 | L50: ='1235'!J32 -> 99.20664941 | N50: 23.85128578 | O50: 9.244001467
A51: 12.5 | B51: ='1234'!E33 -> -71.34485104 | C51: ='1234'!F33 -> -53.18526009 | E51: ='1234'!I33 -> -375.0401855 | F51: ='1234'!J33 -> 107.8100561 | H51: ='1235'!E33 -> -92.16554226 | I51: ='1235'!F33 -> -42.14777158 | K51: ='1235'!I33 -> -366.1924624 | L51: ='1235'!J33 -> 103.119691 | N51: 23.56538427 | O51: 10.01407652
A52: 13 | B52: ='1234'!E34 -> -71.31504196 | C52: ='1234'!F34 -> -53.57735044 | E52: ='1234'!I34 -> -387.5278676 | F52: ='1234'!J34 -> 112.2903356 | H52: ='1235'!E34 -> -91.93124312 | I52: ='1235'!F34 -> -42.76323633 | K52: ='1235'!I34 -> -377.9322061 | L52: ='1235'!J34 -> 107.2569845 | N52: 23.28030959 | O52: 10.83565153
A53: 13.5 | B53: ='1234'!E35 -> -71.28205325 | C53: ='1234'!F35 -> -53.96904075 | E53: ='1234'!I35 -> -400.7733026 | F53: ='1234'!J35 -> 117.0346945 | H53: ='1235'!E35 -> -91.69289501 | I53: ='1235'!F35 -> -43.37595159 | K53: ='1235'!I35 -> -390.3768824 | L53: ='1235'!J35 -> 111.6390225 | N53: 22.99599963 | O53: 11.71319035
A54: 14 | B54: ='1234'!E36 -> -71.24590658 | C54: ='1234'!F36 -> -54.36029533 | E54: ='1234'!I36 -> -414.8474599 | F54: ='1234'!J36 -> 122.0678081 | H54: ='1235'!E36 -> -91.45048548 | I54: ='1235'!F36 -> -43.98590819 | K54: ='1235'!I36 -> -403.5926892 | L54: ='1235'!J36 -> 116.2888533 | N54: 22.71239567 | O54: 12.65172645
A55: 14.5 | B55: ='1234'!E37 -> -71.20662334 | C55: ='1234'!F37 -> -54.75107921 | E55: ='1234'!I37 -> -429.8304681 | F55: ='1234'!J37 -> 127.4175381 | H55: ='1235'!E37 -> -91.20400416 | I55: ='1235'!F37 -> -44.59309538 | K55: ='1235'!I37 -> -417.65436 | L55: ='1235'!J37 -> 121.2324927 | N55: 22.42944215 | O55: 13.65695405
A56: 15 | B56: ='1234'!E38 -> -71.16422468 | C56: ='1234'!F38 -> -55.14135803 | E56: ='1234'!I38 -> -445.8131416 | F56: ='1234'!J38 -> 133.1154633 | H56: ='1235'!E38 -> -90.95344263 | I56: ='1235'!F38 -> -45.197501 | K56: ='1235'!I38 -> -432.6465878 | L56: ='1235'!J38 -> 126.4994197 | N56: 22.14708648 | O56: 14.7353375
A57: 15.5 | B57: ='1234'!E39 -> -71.11873152 | C57: ='1234'!F39 -> -55.53109809 | E57: ='1234'!I39 -> -462.8988226 | F57: ='1234'!J39 -> 139.1975204 | H57: ='1235'!E39 -> -90.69879431 | I57: ='1235'!F39 -> -45.79911154 | K57: ='1235'!I39 -> -448.6657417 | L57: ='1235'!J39 -> 132.1231737 | N57: 21.86527889 | O57: 15.89424341
A58: 16 | B58: ='1234'!E40 -> -71.07016458 | C58: ='1234'!F40 -> -55.92026625 | E58: ='1234'!I40 -> -481.2056183 | F58: ='1234'!J40 -> 145.704782 | H58: ='1235'!E40 -> -90.44005437 | I58: ='1235'!F40 -> -46.39791229 | K58: ='1235'!I40 -> -465.8219528 | L58: ='1235'!J40 -> 138.1420798 | N58: 21.5839722 | O58: 17.14210108
A59: 16.5 | B59: ='1234'!E41 -> -71.01854435 | C59: ='1234'!F41 -> -56.30883001 | E59: ='1234'!I41 -> -500.869135 | F59: ='1234'!J41 -> 152.684408 | H59: ='1235'!E41 -> -90.17721964 | I59: ='1235'!F41 -> -46.99388739 | K59: ='1235'!I41 -> -484.2416631 | L59: ='1235'!J41 -> 144.6001358 | N59: 21.30312171 | O59: 18.48859862
A60: 17 | B60: ='1234'!E42 -> -70.96389119 | C60: ='1234'!F42 -> -56.69675737 | E60: ='1234'!I42 -> -522.0458431 | F60: ='1234'!J42 -> 160.1908155 | H60: ='1235'!E42 -> -89.91028851 | I60: ='1235'!F42 -> -47.58701996 | K60: ='1235'!I42 -> -504.0707622 | L60: ='1235'!J42 -> 151.548103 | N60: 21.02268506 | O60: 19.94492449
A61: 17.5 | B61: ='1234'!E43 -> -70.90622524 | C61: ='1234'!F43 -> -57.08401693 | E61: ='1234'!I43 -> -544.9172501 | F61: ='1234'!J43 -> 168.2871305 | H61: ='1235'!E43 -> -89.63926088 | I61: ='1235'!F43 -> -48.17729216 | K61: ='1235'!I43 -> -525.4784776 | L61: ='1235'!J43 -> 159.0448593 | N61: 20.74262207 | O61: 21.52406692
A62: 18 | B62: ='1234'!E44 -> -70.84556651 | C62: ='1234'!F44 -> -57.47057777 | E62: ='1234'!I44 -> -569.6951165 | F62: ='1234'!J44 -> 177.0470021 | H62: ='1235'!E44 -> -89.36413804 | I62: ='1235'!F44 -> -48.76468522 | K62: ='1235'!I44 -> -548.6622365 | L62: ='1235'!J44 -> 167.1590908 | N62: 20.46289463 | O62: 23.24118829
A63: 18.5 | B63: ='1234'!E45 -> -70.78193488 | C63: ='1234'!F45 -> -57.8564095 | E63: ='1234'!I45 -> -596.6280322 | F63: ='1234'!J45 -> 186.55689 | H63: ='1235'!E45 -> -89.08492268 | I63: ='1235'!F45 -> -49.34917961 | K63: ='1235'!I45 -> -573.853797 | L63: ='1235'!J45 -> 175.971424 | N63: 20.18346657 | O63: 25.11409724
A64: 19 | B64: ='1234'!E46 -> -70.71535008 | C64: ='1234'!F46 -> -58.24148223 | E64: ='1234'!I46 -> -626.009787 | F64: ='1234'!J46 -> 196.9189756 | H64: ='1235'!E46 -> -88.80161874 | I64: ='1235'!F46 -> -49.93075501 | K64: ='1235'!I46 -> -601.3270505 | L64: ='1235'!J46 -> 185.5771398 | N64: 19.90430358 | O64: 27.16384949
A65: 19.5 | B65: ='1234'!E47 -> -70.64583174 | C65: ='1234'!F47 -> -58.62576653 | E65: ='1234'!I47 -> -658.1901323 | F65: ='1234'!J47 -> 208.2549059 | H65: ='1235'!E47 -> -88.51423142 | I65: ='1235'!F47 -> -50.50939042 | K65: ='1235'!I47 -> -631.4080541 | L65: ='1235'!J47 -> 196.0896632 | N65: 19.62537308 | O65: 29.41552047
A66: 20 | B66: ='1234'!E48 -> -70.57339935 | C66: ='1234'!F48 -> -59.00923343 | E66: ='1234'!I48 -> -693.5887715 | F66: ='1234'!J48 -> 220.710659 | H66: ='1235'!E48 -> -88.22276711 | I66: ='1235'!F48 -> -51.08506419 | K66: ='1235'!I48 -> -664.4880717 | L66: ='1235'!J48 -> 207.6450992 | N66: 19.34664417 | O66: 31.89920973
A67: 20.5 | B67: ='1234'!E49 -> -70.49807234 | C67: ='1234'!F49 -> -59.39185443 | E67: ='1234'!I49 -> -732.7137681 | F67: ='1234'!J49 -> 234.4629472 | H67: ='1235'!E49 -> -87.9272333 | I67: ='1235'!F49 -> -51.65775409 | K67: ='1235'!I49 -> -701.0407346 | L67: ='1235'!J49 -> 220.4082018 | N67: 19.06808747 | O67: 34.65136249
A68: 21 | B68: ='1234'!E50 -> -70.41987002 | C68: ='1234'!F50 -> -59.77360144 | E68: ='1234'!I50 -> -776.1860905 | F68: ='1234'!J50 -> 249.7277544 | H68: ='1235'!E50 -> -87.6276386 | I68: ='1235'!F50 -> -52.22743736 | K68: ='1235'!I50 -> -741.6449211 | L68: ='1235'!J50 -> 234.5803324 | N68: 18.78967513 | O68: 37.71653188
A69: 21.5 | B69: ='1234'!E51 -> -70.33881166 | C69: ='1234'!F51 -> -60.15444682 | E69: ='1234'!I51 -> -824.7728186 | F69: ='1234'!J51 -> 266.7718862 | H69: ='1235'!E51 -> -87.32399264 | I69: ='1235'!F51 -> -52.79409074 | K69: ='1235'!I51 -> -787.015712 | L69: ='1235'!J51 -> 250.4102266 | N69: 18.51138068 | O69: 41.14976309
A70: 22 | B70: ='1234'!E52 -> -70.25491641 | C70: ='1234'!F52 -> -60.53436332 | E70: ='1234'!I52 -> -879.4328044 | F70: ='1234'!J52 -> 285.9288514 | H70: ='1235'!E52 -> -87.01630607 | I70: ='1235'!F52 -> -53.35769052 | K70: ='1235'!I52 -> -838.0469544 | L70: ='1235'!J52 -> 268.2087989 | N70: 18.23317899 | O70: 45.01987163
A71: 22.5 | B71: ='1234'!E53 -> -70.16820339 | C71: ='1234'!F53 -> -60.91332411 | E71: ='1234'!I53 -> -941.3805951 | F71: ='1234'!J53 -> 307.6210968 | H71: ='1235'!E53 -> -86.70459049 | I71: ='1235'!F53 -> -53.91821258 | K71: ='1235'!I53 -> -895.8708499 | L71: ='1235'!J53 -> 288.3698697 | N71: 17.95504619 | O71: 49.41403293
A72: 23 | B72: ='1234'!E54 -> -70.07869165 | C72: ='1234'!F54 -> -61.29130274 | E72: ='1234'!I54 -> -1012.177753 | F72: ='1234'!J54 -> 332.3917703 | H72: ='1235'!E54 -> -86.38885844 | I72: ='1235'!F54 -> -54.47563245 | K72: ='1235'!I54 -> -961.9430823 | L72: ='1235'!J54 -> 311.3997745 | N72: 17.67695964 | O72: 54.44433895
A73: 23.5 | B73: ='1234'!E55 -> -69.98640021 | C73: ='1234'!F55 -> -61.66827314 | E73: ='1234'!I55 -> -1093.866324 | F73: ='1234'!J55 -> 360.9511443 | H73: ='1235'!E55 -> -86.06912336 | I73: ='1235'!F55 -> -55.02992529 | K73: ='1235'!I55 -> -1038.167234 | L73: ='1235'!J55 -> 337.9606388 | N73: 17.39889784 | O73: 60.25738093
A74: 24 | B74: ='1234'!E56 -> -69.89134803 | C74: ='1234'!F56 -> -62.04420961 | E74: ='1234'!I56 -> -1189.169035 | F74: ='1234'!J56 -> 394.2462508 | H74: ='1235'!E56 -> -85.74539954 | I74: ='1235'!F56 -> -55.58106598 | K74: ='1235'!I56 -> -1127.081409 | L74: ='1235'!J56 -> 368.935292 | N74: 17.12084036 | O74: 67.04862359
A75: 24.5 | B75: ='1234'!E57 -> -69.79355404 | C75: ='1234'!F57 -> -62.41908683 | E75: ='1234'!I57 -> -1301.798701 | F75: ='1234'!J57 -> 433.5684994 | H75: ='1235'!E57 -> -85.41770211 | I75: ='1235'!F57 -> -56.12902911 | K75: ='1235'!I57 -> -1232.146657 | L75: ='1235'!J57 -> 405.5275861 | N75: 16.84276786 | O75: 75.08461977
A76: 25 | B76: ='1234'!E58 -> -69.69303715 | C76: ='1234'!F58 -> -62.79287983 | E76: ='1234'!I58 -> -1436.953262 | F76: ='1234'!J58 -> 480.725866 | H76: ='1235'!E58 -> -85.08604704 | I76: ='1235'!F58 -> -56.67378905 | K76: ='1235'!I58 -> -1358.208438 | L76: ='1235'!J58 -> 449.4229088 | N76: 16.56466194 | O76: 84.73855395
A77: 25.5 | B77: ='1234'!E59 -> -69.58981624 | C77: ='1234'!F59 -> -63.16556396 | E77: ='1234'!I59 -> -1602.140857 | F77: ='1234'!J59 -> 538.3298735 | H77: ='1235'!E59 -> -84.75045103 | I77: ='1235'!F59 -> -57.21531995 | K77: ='1235'!I59 -> -1512.265749 | L77: ='1235'!J59 -> 503.0557022 | N77: 16.28650518 | O77: 96.54948147
A78: 26 | B78: ='1234'!E60 -> -69.48391016 | C78: ='1234'!F60 -> -63.53711495 | E78: ='1234'!I60 -> -1808.623697 | F78: ='1234'!J60 -> 610.2978093 | H78: ='1235'!E60 -> -84.41093158 | I78: ='1235'!F60 -> -57.75359575 | K78: ='1235'!I60 -> -1704.817077 | L78: ='1235'!J60 -> 570.0776233 | N78: 16.00828107 | O78: 111.3259971
A79: 26.5 | B79: ='1234'!E61 -> -69.37533777 | C79: ='1234'!F61 -> -63.90750884 | E79: ='1234'!I61 -> -2074.099542 | F79: ='1234'!J61 -> 702.7854131 | H79: ='1235'!E61 -> -84.06750691 | I79: ='1235'!F61 -> -58.28859026 | K79: ='1235'!I61 -> -1952.360043 | L79: ='1235'!J61 -> 656.2269827 | N79: 15.72997393 | O79: 130.3387629
A80: 27 | B80: ='1234'!E62 -> -69.26411791 | C80: ='1234'!F62 -> -64.276722 | E80: ='1234'!I62 -> -2428.064663 | F80: ='1234'!J62 -> 826.0522546 | H80: ='1235'!E62 -> -83.72019595 | I80: ='1235'!F62 -> -58.82027712 | K80: ='1235'!I62 -> -2282.390669 | L80: ='1235'!J62 -> 771.0676234 | N80: 15.45156895 | O80: 155.7055626
A81: 27.5 | B81: ='1234'!E63 -> -69.15026942 | C81: ='1234'!F63 -> -64.64473112 | E81: ='1234'!I63 -> -2923.612353 | F81: ='1234'!J63 -> 998.5655627 | H81: ='1235'!E63 -> -83.36901834 | I81: ='1235'!F63 -> -59.34862987 | K81: ='1235'!I63 -> -2744.401795 | L81: ='1235'!J63 -> 931.8144534 | N81: 15.17305207 | O81: 191.238424
A82: 28 | B82: ='1234'!E64 -> -69.03381114 | C82: ='1234'!F64 -> -65.0115132 | E82: ='1234'!I64 -> -3666.929197 | F82: ='1234'!J64 -> 1257.259799 | H82: ='1235'!E64 -> -83.01399437 | I82: ='1235'!F64 -> -59.87362195 | K82: ='1235'!I64 -> -3437.379086 | L82: ='1235'!J64 -> 1172.897278 | N82: 14.89441001 | O82: 244.5614212
A83: 28.5 | B83: ='1234'!E65 -> -68.91476191 | C83: ='1234'!F65 -> -65.37704556 | E83: ='1234'!I65 -> -4905.7839 | F83: ='1234'!J65 -> 1688.315381 | H83: ='1235'!E65 -> -82.655145 | I83: ='1235'!F65 -> -60.39522672 | K83: ='1235'!I65 -> -4592.289085 | L83: ='1235'!J65 -> 1574.652293 | N83: 14.61563021 | O83: 333.4640855
A84: 29 | B84: ='1234'!E66 -> -68.79314058 | C84: ='1234'!F66 -> -65.7413058 | E84: ='1234'!I66 -> -7383.482582 | F84: ='1234'!J66 -> 2550.273563 | H84: ='1235'!E66 -> -82.29249184 | I84: ='1235'!F66 -> -60.9134175 | K84: ='1235'!I66 -> -6902.03141 | L84: ='1235'!J66 -> 2378.088068 | N84: 14.3367008 | O84: 511.3150452
A85: 29.5 | B85: ='1234'!E67 -> -68.66896602 | C85: ='1234'!F67 -> -66.10427185 | E85: ='1234'!I67 -> -14816.55585 | F85: ='1234'!J67 -> 5135.840645 | H85: ='1235'!E67 -> -81.92605709 | I85: ='1235'!F67 -> -61.42816754 | K85: ='1235'!I67 -> -13831.10411 | L85: ='1235'!J67 -> 4788.247412 | N85: 14.05761057 | O85: 1044.957509
A86: 30 | B86: ='1234'!E68 -> -68.54225712 | C86: ='1234'!F68 -> -66.4659219 | E86: ='1234'!I68 -> -1.125861513e+17 | F86: ='1234'!J68 -> 3.79239322e+17 | H86: ='1235'!E68 -> -81.55586357 | I86: ='1235'!F68 -> -61.93945009 | K86: ='1235'!I68 -> -4.192483023e+17 | L86: ='1235'!J68 -> 2.155303358e+17 | N86: 13.77834896 | O86: 3.47623801e+17
A87: 30.5 | B87: ='1234'!E69 -> -68.41303276 | C87: ='1234'!F69 -> -66.82623445 | E87: ='1234'!I69 -> 14915.66367 | F87: ='1234'!J69 -> -5205.499319 | H87: ='1235'!E69 -> -81.18193472 | I87: ='1235'!F69 -> -62.44723839 | K87: ='1235'!I69 -> 13884.72804 | L87: ='1235'!J69 -> -4851.947927 | N87: 13.49890602 | O87: 1089.8747
A88: 31 | B88: ='1234'!E70 -> -68.28131187 | C88: ='1234'!F70 -> -67.18518828 | E88: ='1234'!I70 -> 7482.589098 | F88: ='1234'!J70 -> -2619.930762 | H88: ='1235'!E70 -> -80.8042945 | I88: ='1235'!F70 -> -62.95150571 | K88: ='1235'!I70 -> 6955.65635 | L88: ='1235'!J70 -> -2441.789016 | N88: 13.21927237 | O88: 556.2307101
A89: 31.5 | B89: ='1234'!E71 -> -68.14711339 | C89: ='1234'!F71 -> -67.54276244 | E89: ='1234'!I71 -> 5004.888248 | F89: ='1234'!J71 -> -1757.97012 | H89: ='1235'!E71 -> -80.42296747 | I89: ='1235'!F71 -> -63.4522253 | K89: ='1235'!I71 -> 4645.915709 | L89: ='1235'!J71 -> -1638.353961 | N89: 12.93943922 | O89: 378.3772046
A90: 32 | B90: ='1234'!E72 -> -68.0104563 | C90: ='1234'!F72 -> -67.89893627 | E90: ='1234'!I72 -> 3766.030509 | F90: ='1234'!J72 -> -1326.911094 | H90: ='1235'!E72 -> -80.03797874 | I90: ='1235'!F72 -> -63.94937049 | K90: ='1235'!I72 -> 3491.008069 | L90: ='1235'!J72 -> -1236.599958 | N90: 12.65939832 | O90: 289.4709723
A91: 32.5 | B91: ='1234'!E73 -> -67.87135959 | C91: ='1234'!F73 -> -68.25368936 | E91: ='1234'!I73 -> 3022.70976 | F91: ='1234'!J73 -> -1068.212428 | H91: ='1235'!E73 -> -79.64935394 | I91: ='1235'!F73 -> -64.44291466 | K91: ='1235'!I73 -> 2798.033815 | L91: ='1235'!J73 -> -995.5184373 | N91: =SQRT((B91-H91)^2+(C91-I91)^2) -> 12.37914192 | O91: =SQRT((E91-K91)^2+(F91-L91)^2) -> 236.1433807
A92: 33 | B92: ='1234'!E74 -> -67.7298423 | C92: ='1234'!F74 -> -68.6070016 | E92: ='1234'!I74 -> 2527.157294 | F92: ='1234'!J74 -> -895.6937024 | H92: ='1235'!E74 -> -79.25711924 | I92: ='1235'!F74 -> -64.93283123 | K92: ='1235'!I74 -> 2336.026406 | L92: ='1235'!J74 -> -834.7732049 | N92: 12.0986628 | O92: 200.6048934
A93: 33.5 | B93: ='1234'!E75 -> -67.58592349 | C93: ='1234'!F75 -> -68.95885313 | E93: ='1234'!I75 -> 2173.186525 | F93: ='1234'!J75 -> -772.4204551 | H93: ='1235'!E75 -> -78.86130131 | I93: ='1235'!F75 -> -65.41909372 | K93: ='1235'!I75 -> 2006.000179 | L93: ='1235'!J75 -> -719.9344588 | N93: 11.81795421 | O93: 175.2314296
A94: 34 | B94: ='1234'!E76 -> -67.43962225 | C94: ='1234'!F76 -> -69.30922433 | E94: ='1234'!I76 -> 1907.704158 | F94: ='1234'!J76 -> -679.9254548 | H94: ='1235'!E76 -> -78.46192733 | I94: ='1235'!F76 -> -65.90167575 | K94: ='1235'!I76 -> 1758.4623 | L94: ='1235'!J76 -> -633.7872941 | N94: 11.53700986 | O94: 156.2109544
A95: 34.5 | B95: ='1234'!E77 -> -67.29095772 | C95: ='1234'!F77 -> -69.65809587 | E95: ='1234'!I77 -> 1701.213922 | F95: ='1234'!J77 -> -607.9491298 | H95: ='1235'!E77 -> -78.05902497 | I95: ='1235'!F77 -> -66.38055103 | K95: ='1235'!I77 -> 1565.916747 | L95: ='1235'!J77 -> -566.7678717 | N95: 11.25582394 | O95: 141.4256749
A96: 35 | B96: ='1234'!E78 -> -67.13994908 | C96: ='1234'!F78 -> -70.00544868 | E96: ='1234'!I78 -> 1536.018051 | F96: ='1234'!J78 -> -550.3357378 | H96: ='1235'!E78 -> -77.65262239 | I96: ='1235'!F78 -> -66.85569337 | K96: ='1235'!I78 -> 1411.865908 | L96: ='1235'!J78 -> -513.1378851 | N96: 10.97439104 | O96: 129.604919
A97: 35.5 | B97: ='1234'!E79 -> -66.98661554 | C97: ='1234'!F79 -> -70.35126391 | E97: ='1234'!I79 -> 1400.854334 | F97: ='1234'!J79 -> -503.1679885 | H97: ='1235'!E79 -> -77.24274822 | I97: ='1235'!F79 -> -67.32707675 | K97: ='1235'!I79 -> 1285.811298 | L97: ='1235'!J79 -> -469.2456824 | N97: 10.69270618 | O97: 119.9400809
A98: 36 | B98: ='1234'!E80 -> -66.83097635 | C98: ='1234'!F80 -> -70.69552298 | E98: ='1234'!I80 -> 1288.214628 | F98: ='1234'!J80 -> -463.834356 | H98: ='1235'!E80 -> -76.82943154 | I98: ='1235'!F80 -> -67.79467523 | K98: ='1235'!I80 -> 1180.753928 | L98: ='1235'!J80 -> -432.6568266 | N98: 10.41076481 | O98: 111.8920924
A99: 36.5 | B99: ='1234'!E81 -> -66.67305081 | C99: ='1234'!F81 -> -71.03820758 | E99: ='1234'!I81 -> 1192.90099 | F99: ='1234'!J81 -> -430.5268609 | H99: ='1235'!E81 -> -76.4127019 | I99: ='1235'!F81 -> -68.25846305 | K99: ='1235'!I81 -> 1091.848343 | L99: ='1235'!J81 -> -401.6859363 | N99: 10.12856273 | O99: 105.0877553
A100: 37 | B100: ='1234'!E82 -> -66.51285826 | C100: ='1234'!F82 -> -71.37929961 | E100: ='1234'!I82 -> 1111.200602 | F100: ='1234'!J82 -> -401.9540898 | H100: ='1235'!E82 -> -75.99258928 | I100: ='1235'!F82 -> -68.7184146 | K100: ='1235'!I82 -> 1015.633502 | L100: ='1235'!J82 -> -375.1291658 | N100: 9.84609614 | O100: 99.26050144
A101: 37.5 | B101: ='1234'!E83 -> -66.35041809 | C101: ='1234'!F83 -> -71.71878123 | E101: ='1234'!I83 -> 1040.390732 | F101: ='1234'!J83 -> -377.1690067 | H101: ='1235'!E83 -> -75.56912412 | I101: ='1235'!F83 -> -69.17450443 | K101: ='1235'!I83 -> 949.571307 | L101: ='1235'!J83 -> -352.1036932 | N101: 9.563361614 | O101: 94.21484952
A102: 38 | B102: ='1234'!E84 -> -66.18574971 | C102: ='1234'!F84 -> -72.05663485 | E102: ='1234'!I84 -> 978.4293307 | F102: ='1234'!J84 -> -355.4613346 | H102: ='1235'!E84 -> -75.14233727 | I102: ='1235'!F84 -> -69.62670726 | K102: ='1235'!I84 -> 891.758185 | L102: ='1235'!J84 -> -331.9474006 | N102: 9.280356067 | O102: 89.80419022
A103: 38.5 | B103: ='1234'!E85 -> -66.01887261 | C103: ='1234'!F85 -> -72.3928431 | E103: ='1234'!I85 -> 923.7548314 | F103: ='1234'!J85 -> -336.2879209 | H103: ='1235'!E85 -> -74.71226 | I103: ='1235'!F85 -> -70.07499799 | K103: ='1235'!I85 -> 840.7384613 | L103: ='1235'!J85 -> -314.153961 | N103: 8.997076762 | O103: 85.91641211
A104: 39 | B104: ='1234'!E86 -> -65.84980631 | C104: ='1234'!F86 -> -72.72738888 | E104: ='1234'!I86 -> 875.1526818 | F104: ='1234'!J86 -> -319.2263137 | H104: ='1235'!E86 -> -74.27892401 | I104: ='1235'!F86 -> -70.51935173 | K104: ='1235'!I86 -> 795.3799441 | L104: ='1235'!J86 -> -298.3295634 | N104: 8.713521292 | O104: 82.46431871
A105: 39.5 | B105: ='1234'!E87 -> -65.67857037 | C105: ='1234'!F87 -> -73.06025529 | E105: ='1234'!I87 -> 831.664025 | F105: ='1234'!J87 -> -303.9429986 | H105: ='1235'!E87 -> -73.8423614 | I105: ='1235'!F87 -> -70.95974376 | K105: ='1235'!I87 -> 754.7887969 | L105: ='1235'!J87 -> -284.1633028 | N105: 8.429687576 | O105: 79.37907194
A106: 40 | B106: ='1234'!E88 -> -65.50518441 | C106: ='1234'!F88 -> -73.39142569 | E106: ='1234'!I88 -> 792.5217755 | F106: ='1234'!J88 -> -290.1711642 | H106: ='1235'!E88 -> -73.40260465 | I106: ='1235'!F88 -> -71.39614958 | K106: ='1235'!I88 -> 718.2499505 | L106: ='1235'!J88 -> -271.4064545 | N106: 8.145573844 | O106: 76.6056024
A107: 40.5 | B107: ='1234'!E89 -> -65.32966809 | C107: ='1234'!F89 -> -73.72088367 | E107: ='1234'!I89 -> 757.1049591 | F107: ='1234'!J89 -> -277.6948204 | H107: ='1235'!E89 -> -72.95968667 | I107: ='1235'!F89 -> -71.8285449 | K107: ='1235'!I89 -> 685.1845387 | L107: ='1235'!J89 -> -259.8576686 | N107: 7.86117863 | O107: 74.09933106
A108: 41 | B108: ='1234'!E90 -> -65.15204113 | C108: ='1234'!F90 -> -74.04861304 | E108: ='1234'!I90 -> 724.9055062 | F108: ='1234'!J90 -> -266.3372482 | H108: ='1235'!E90 -> -72.51364072 | I108: ='1235'!F90 -> -72.25690566 | K108: ='1235'!I90 -> 655.1189434 | L108: ='1235'!J90 -> -249.3522033 | N108: 7.576500764 | O108: 71.82378504
A109: 41.5 | B109: ='1234'!E91 -> -64.97232328 | C109: ='1234'!F91 -> -74.37459785 | E109: ='1234'!I91 -> 695.5037068 | F109: ='1234'!J91 -> -255.9524623 | H109: ='1235'!E91 -> -72.06450045 | I109: ='1235'!F91 -> -72.68120801 | K109: ='1235'!I91 -> 627.6619146 | L109: ='1235'!J91 -> -239.7539665 | N109: 7.291539361 | O109: 69.74883534
A110: 42 | B110: ='1234'!E92 -> -64.79053435 | C110: ='1234'!F92 -> -74.69882238 | E110: ='1234'!I92 -> 668.5498026 | F110: ='1234'!J92 -> -246.4188085 | H110: ='1235'!E92 -> -71.6122999 | I110: ='1235'!F92 -> -73.10142834 | K110: ='1235'!I92 -> 602.4874103 | L110: ='1235'!J92 -> -230.9495475 | N110: 7.006293817 | O110: 67.84937516
A111: 42.5 | B111: ='1234'!E93 -> -64.60669419 | C111: ='1234'!F93 -> -75.02127114 | E111: ='1234'!I93 -> 643.7499965 | F111: ='1234'!J93 -> -237.6340973 | H111: ='1235'!E93 -> -71.15707346 | I111: ='1235'!F93 -> -73.51754329 | K111: ='1235'!I93 -> 579.321555 | L111: ='1235'!J93 -> -222.8436801 | N111: 6.720763798 | O111: 66.10431538
A112: 43 | B112: ='1234'!E94 -> -64.42082272 | C112: ='1234'!F94 -> -75.34192885 | E112: ='1234'!I94 -> 620.8556909 | F112: ='1234'!J94 -> -229.5118607 | H112: ='1235'!E94 -> -70.69885588 | I112: ='1235'!F94 -> -73.92952973 | K112: ='1235'!I94 -> 557.9326077 | L112: ='1235'!J94 -> -215.355754 | N112: 6.434949234 | O112: 64.49581195
A113: 43.5 | B113: ='1234'!E95 -> -64.23293988 | C113: ='1234'!F95 -> -75.66078048 | E113: ='1234'!I95 -> 599.6551174 | F113: ='1234'!J95 -> -221.9784407 | H113: ='1235'!E95 -> -70.23768227 | I113: ='1235'!F95 -> -74.33736481 | K113: ='1235'!I95 -> 538.1231592 | L113: ='1235'!J95 -> -208.4171 | N113: 6.148850314 | O113: 63.00866483
A114: 44 | B114: ='1234'!E96 -> -64.04306568 | C114: ='1234'!F96 -> -75.97781121 | E114: ='1234'!I96 -> 579.9667599 | F114: ='1234'!J96 -> -214.9707022 | H114: ='1235'!E96 -> -69.77358808 | I114: ='1235'!F96 -> -74.74102592 | K114: ='1235'!I96 -> 519.7240013 | L114: ='1235'!J96 -> -201.9688583 | N114: 5.862467476 | O114: 61.62984588
A115: 44.5 | B115: ='1234'!E97 -> -63.85122016 | C115: ='1234'!F97 -> -76.29300643 | E115: ='1234'!I97 -> 561.634139 | F115: ='1234'!J97 -> -208.434218 | H115: ='1235'!E97 -> -69.30660913 | I115: ='1235'!F97 -> -75.14049072 | K115: ='1235'!I97 -> 502.589265 | L115: ='1235'!J97 -> -195.9602871 | N115: 5.575801404 | O115: 60.34812431
A116: 45 | B116: ='1234'!E98 -> -63.65742342 | C116: ='1234'!F98 -> -76.60635179 | E116: ='1234'!I98 -> 544.5216392 | F116: ='1234'!J98 -> -202.3218183 | H116: ='1235'!E98 -> -68.83678154 | I116: ='1235'!F98 -> -75.53573713 | K116: ='1235'!I98 -> 486.59253 | L116: ='1235'!J98 -> -190.3474091 | N116: 5.288853021 | O116: 59.15376712
A117: 45.5 | B117: ='1234'!E99 -> -63.46169561 | C117: ='1234'!F99 -> -76.91783313 | E117: ='1234'!I99 -> 528.5111433 | F117: ='1234'!J99 -> -196.5924195 | H117: ='1235'!E99 -> -68.36414179 | I117: ='1235'!F99 -> -75.92674337 | K117: ='1235'!I99 -> 471.6236885 | L117: ='1235'!J99 -> -185.0919212 | N117: 5.001623482 | O117: 58.03829747
A118: 46 | B118: ='1234'!E100 -> -63.26405692 | C118: ='1234'!F100 -> -77.22743652 | E118: ='1234'!I100 -> 513.4992989 | F118: ='1234'!J100 -> -191.2100734 | H118: ='1235'!E100 -> -67.88872668 | I118: ='1235'!F100 -> -76.31348794 | K118: ='1235'!I100 -> 457.586396 | L118: ='1235'!J100 -> -180.1603074 | N118: 4.714114171 | O118: 56.9942984
A119: 46.5 | B119: ='1234'!E101 -> -63.06452758 | C119: ='1234'!F101 -> -77.53514825 | E119: ='1234'!I101 -> 499.395281 | F119: ='1234'!J101 -> -186.1431893 | H119: ='1235'!E101 -> -67.41057333 | I119: ='1235'!F101 -> -76.6959496 | K119: ='1235'!I101 -> 444.3959858 | L119: ='1235'!J101 -> -175.5231137 | N119: 4.426326695 | O119: 56.01525216
A120: 47 | B120: ='1234'!E102 -> -62.86312788 | C120: ='1234'!F102 -> -77.84095483 | E120: ='1234'!I102 -> 486.1189495 | F120: ='1234'!J102 -> -181.363893 | H120: ='1235'!E102 -> -66.92971917 | I120: ='1235'!F102 -> -77.07410743 | K120: ='1235'!I102 -> 431.9777524 | L120: ='1235'!J102 -> -171.1543506 | N120: 4.138262878 | O120: 55.09540802
A121: 47.5 | B121: ='1234'!E103 -> -62.65987815 | C121: ='1234'!F103 -> -78.14484299 | E121: ='1234'!I103 -> 473.5993232 | F121: ='1234'!J103 -> -176.8474959 | H121: ='1235'!E103 -> -66.44620197 | I121: ='1235'!F103 -> -77.44794081 | K121: ='1235'!I103 -> 420.2655274 | L121: ='1235'!J103 -> -167.0309983 | N121: 3.849924758 | O121: 54.22967262
A122: 48 | B122: ='1234'!E104 -> -62.45479877 | C122: ='1234'!F104 -> -78.44679966 | E122: ='1234'!I104 -> 461.7733074 | F122: ='1234'!J104 -> -172.5720525 | H122: ='1235'!E104 -> -65.96005976 | I122: ='1235'!F104 -> -77.8174294 | K122: ='1235'!I104 -> 409.200495 | L122: ='1235'!J104 -> -163.1325944 | N122: 3.561314582 | O122: 53.41351864
A123: 48.5 | B123: ='1234'!E105 -> -62.24791015 | C123: ='1234'!F105 -> -78.74681202 | E123: ='1234'!I105 -> 450.5846285 | F123: ='1234'!J105 -> -168.51799 | H123: ='1235'!E105 -> -65.47133093 | I123: ='1235'!F105 -> -78.1825532 | K123: ='1235'!I105 -> 398.7301975 | L123: ='1235'!J105 -> -159.4408878 | N123: 3.272434801 | O123: 52.64290835
A124: 49 | B124: ='1234'!E106 -> -62.03923275 | C124: ='1234'!F106 -> -79.04486743 | E124: ='1234'!I106 -> 439.9829359 | F124: ='1234'!J106 -> -164.6677956 | H124: ='1235'!E106 -> -64.98005411 | I124: ='1235'!F106 -> -78.5432925 | K124: ='1235'!I106 -> 388.807699 | L124: ='1235'!J106 -> -155.9395483 | N124: 2.983288069 | O124: 51.91422907
A125: 49.5 | B125: ='1234'!E107 -> -61.82878709 | C125: ='1234'!F107 -> -79.34095349 | E125: ='1234'!I107 -> 429.9230434 | F125: ='1234'!J107 -> -161.0057527 | H125: ='1235'!E107 -> -64.48626828 | I125: ='1235'!F107 -> -78.8996279 | K125: ='1235'!I107 -> 379.3908776 | L125: ='1235'!J107 -> -152.6139199 | N125: 2.693877235 | O125: 51.22423875
A126: 50 | B126: ='1234'!E108 -> -61.6165937 | C126: ='1234'!F108 -> -79.63505802 | E126: ='1234'!I108 -> 420.3642829 | F126: ='1234'!J108 -> -157.5177166 | H126: ='1235'!E108 -> -63.99001265 | I126: ='1235'!F108 -> -79.25154036 | K126: ='1235'!I108 -> 370.4418237 | L126: ='1235'!J108 -> -149.4508118 | N126: 2.404205343 | O126: 50.57001956
A127: 50.5 | B127: ='1234'!E109 -> -61.40267317 | C127: ='1234'!F109 -> -79.92716902 | E127: ='1234'!I109 -> 411.2699538 | F127: ='1234'!J109 -> -154.1909223 | H127: ='1235'!E109 -> -63.49132676 | I127: ='1235'!F109 -> -79.59901112 | K127: ='1235'!I109 -> 361.9263261 | L127: ='1235'!J109 -> -146.4383197 | N127: 2.114275626 | O127: 49.94893834
A128: 51 | B128: ='1234'!E110 -> -61.18704614 | C128: ='1234'!F110 -> -80.21727473 | E128: ='1234'!I110 -> 402.6068509 | F128: ='1234'!J110 -> -151.0138204 | H128: ='1235'!E110 -> -62.99025041 | I128: ='1235'!F110 -> -79.94202179 | K128: ='1235'!I110 -> 353.8134318 | L128: ='1235'!J110 -> -143.5656726 | N128: 1.824091506 | O128: 49.35861273
A129: 51.5 | B129: ='1234'!E111 -> -60.96973328 | C129: ='1234'!F111 -> -80.50536361 | E129: ='1234'!I111 -> 394.3448572 | F129: ='1234'!J111 -> -147.9759362 | H129: ='1235'!E111 -> -62.48682368 | I129: ='1235'!F111 -> -80.2805543 | K129: ='1235'!I111 -> 346.0750671 | L129: ='1235'!J111 -> -140.8231007 | N129: 1.533656587 | O129: 48.79688194
A130: 52 | B130: ='1234'!E112 -> -60.75075528 | C130: ='1234'!F112 -> -80.79142431 | E130: ='1234'!I112 -> 386.4565938 | F130: ='1234'!J112 -> -145.0677468 | H130: ='1235'!E112 -> -61.98108692 | I130: ='1235'!F112 -> -80.61459091 | K130: ='1235'!I112 -> 338.6857107 | L130: ='1235'!J112 -> -138.2017222 | N130: 1.242974656 | O130: 48.26178159
A131: 52.5 | B131: ='1234'!E113 -> -60.5301329 | C131: ='1234'!F113 -> -81.0754457 | E131: ='1234'!I113 -> 378.9171151 | F131: ='1234'!J113 -> -142.2805761 | H131: ='1235'!E113 -> -61.47308074 | I131: ='1235'!F113 -> -80.94411425 | K131: ='1235'!I113 -> 331.6221097 | L131: ='1235'!J113 -> -135.6934442 | N131: 0.9520496757 | O131: 47.75152186
A132: 53 | B132: ='1234'!E114 -> -60.30788691 | C132: ='1234'!F114 -> -81.35741687 | E132: ='1234'!I114 -> 371.7036445 | F132: ='1234'!J114 -> -139.6065021 | H132: ='1235'!E114 -> -60.96284602 | I132: ='1235'!F114 -> -81.26910726 | K132: ='1235'!I114 -> 324.8630332 | L132: ='1235'!J114 -> -133.2908773 | N132: 0.6608857876 | O132: 47.26446849
A133: 53.5 | B133: ='1234'!E115 -> -60.08403814 | C133: ='1234'!F115 -> -81.63732712 | E133: ='1234'!I115 -> 364.7953437 | F133: ='1234'!J115 -> -137.0382773 | H133: ='1235'!E115 -> -60.45042391 | I133: ='1235'!F115 -> -81.58955328 | K133: ='1235'!I115 -> 318.3890574 | L133: ='1235'!J115 -> -130.9872603 | N133: 0.3694873052 | O133: 46.79912623
A134: 54 | B134: ='1234'!E116 -> -59.85860743 | C134: ='1234'!F116 -> -81.91516594 | E134: ='1234'!I116 -> 358.1731106 | F134: ='1234'!J116 -> -134.5692579 | H134: ='1235'!E116 -> -59.93585578 | I134: ='1235'!F116 -> -81.90543596 | K134: ='1235'!I116 -> 312.182377 | L134: ='1235'!J116 -> -128.7763953 | N134: 0.07785871317 | O134: 46.35412432
A135: 54.5 | B135: ='1234'!E117 -> -59.63161567 | C135: ='1234'!F117 -> -82.19092306 | E135: ='1234'!I117 -> 351.8194026 | F135: ='1234'!J117 -> -132.1933425 | H135: ='1235'!E117 -> -59.41918327 | I135: ='1235'!F117 -> -82.21673934 | K135: ='1235'!I117 -> 306.2266404 | L135: ='1235'!J117 -> -126.6525896 | N135: 0.2139953345 | O135: 45.92820382
A136: 55 | B136: ='1234'!E118 -> -59.40308377 | C136: ='1234'!F118 -> -82.46458839 | E136: ='1234'!I118 -> 345.7180798 | F136: ='1234'!J118 -> -129.9049177 | H136: ='1235'!E118 -> -58.90044829 | I136: ='1235'!F118 -> -82.52344781 | K136: ='1235'!I118 -> 300.5068041 | L136: ='1235'!J118 -> -124.6106058 | N136: 0.5060700168 | O136: 45.52020637
A137: 55.5 | B137: ='1234'!E119 -> -59.17303269 | C137: ='1234'!F119 -> -82.73615208 | E137: ='1234'!I119 -> 339.8542683 | F137: ='1234'!J119 -> -127.6988104 | H137: ='1235'!E119 -> -58.37969295 | I137: ='1235'!F119 -> -82.82554613 | K137: ='1235'!I119 -> 295.0090046 | L137: ='1235'!J119 -> -122.6456166 | N137: 0.7983603479 | O137: 45.12906432
A138: 56 | B138: ='1234'!E120 -> -58.9414834 | C138: ='1234'!F120 -> -83.00560447 | E138: ='1234'!I120 -> 334.2142382 | F138: ='1234'!J120 -> -125.5702455 | H138: ='1235'!E120 -> -57.85695962 | I138: ='1235'!F120 -> -83.12301943 | K138: ='1235'!I120 -> 289.7204448 | L138: ='1235'!J120 -> -120.753166 | N138: 1.090861178 | O138: 44.75379203
A139: 56.5 | B139: ='1234'!E121 -> -58.70845691 | C139: ='1234'!F121 -> -83.2729361 | E139: ='1234'!I121 -> 328.7852953 | F139: ='1234'!J121 -> -123.514808 | H139: ='1235'!E121 -> -57.3322909 | I139: ='1235'!F121 -> -83.41585323 | K139: ='1235'!I121 -> 284.6292936 | L139: ='1235'!J121 -> -118.9291337 | N139: 1.383567197 | O139: 44.39347806
A140: 57 | B140: ='1234'!E122 -> -58.47397425 | C140: ='1234'!F122 -> -83.53813774 | E140: ='1234'!I122 -> 323.5556858 | F140: ='1234'!J122 -> -121.5284102 | H140: ='1235'!E122 -> -56.80572963 | I140: ='1235'!F122 -> -83.70403341 | K140: ='1235'!I122 -> 279.7245963 | L140: ='1235'!J122 -> -117.169704 | N140: 1.676472933 | O140: 44.04727836
A141: 57.5 | B141: ='1234'!E123 -> -58.23805649 | C141: ='1234'!F123 -> -83.80120035 | E141: ='1234'!I123 -> 318.5145104 | F141: ='1234'!J123 -> -119.6072614 | H141: ='1235'!E123 -> -56.27731886 | I141: ='1235'!F123 -> -83.98754624 | K141: ='1235'!I123 -> 274.9961948 | L141: ='1235'!J123 -> -115.4713388 | N141: 1.969572757 | O141: 43.71441007
A142: 58 | B142: ='1234'!E124 -> -58.0007247 | C142: ='1234'!F124 -> -84.06211511 | E142: ='1234'!I124 -> 313.6516482 | F142: ='1234'!J124 -> -117.7478418 | H142: ='1235'!E124 -> -55.74710187 | I142: ='1235'!F124 -> -84.26637836 | K142: ='1235'!I124 -> 270.4346571 | L142: ='1235'!J124 -> -113.8307519 | N142: 2.26286088 | O142: 43.39414607
A143: 58.5 | B143: ='1234'!E125 -> -57.762 | C143: ='1234'!F125 -> -84.32087339 | E143: ='1234'!I125 -> 308.9576881 | F143: ='1234'!J125 -> -115.9468785 | H143: ='1235'!E125 -> -55.21512215 | I143: ='1235'!F125 -> -84.54051683 | K143: ='1235'!I125 -> 266.0312126 | L143: ='1235'!J125 -> -112.2448877 | N143: 2.55633136 | O143: 43.08581008
A144: 59 | B144: ='1234'!E126 -> -57.52190353 | C144: ='1234'!F126 -> -84.57746679 | E144: ='1234'!I126 -> 304.4238681 | F144: ='1234'!J126 -> -114.2013243 | H144: ='1235'!E126 -> -54.68142344 | I144: ='1235'!F126 -> -84.80994907 | K144: ='1235'!I126 -> 261.7776962 | L144: ='1235'!J126 -> -110.7109006 | N144: 2.849978098 | O144: 42.78877226
A145: 59.5 | B145: ='1234'!E127 -> -57.28045642 | C145: ='1234'!F127 -> -84.83188709 | E145: ='1234'!I127 -> 300.0420198 | F145: ='1234'!J127 -> -112.5083386 | H145: ='1235'!E127 -> -54.14604964 | I145: ='1235'!F127 -> -85.07466291 | K145: ='1235'!I127 -> 257.6664961 | L145: ='1235'!J127 -> -109.2261378 | N145: 3.143794842 | O145: 42.50244526
A146: 60 | B146: ='1234'!E128 -> -57.03767986 | C146: ='1234'!F128 -> -85.0841263 | E146: ='1234'!I128 -> 295.8045195 | F146: ='1234'!J128 -> -110.8652701 | H146: ='1235'!E128 -> -53.60904489 | I146: ='1235'!F128 -> -85.33464659 | K146: ='1235'!I128 -> 253.6905082 | L146: ='1235'!J128 -> -107.7881229 | N146: 3.437775185 | O146: 42.22628068
A147: 60.5 | B147: ='1234'!E129 -> -56.79359504 | C147: ='1234'!F129 -> -85.33417661 | E147: ='1234'!I129 -> 291.7042427 | F147: ='1234'!J129 -> -109.2696413 | H147: ='1235'!E129 -> -53.07045353 | I147: ='1235'!F129 -> -85.58988873 | K147: ='1235'!I129 -> 249.8430942 | L147: ='1235'!J129 -> -106.3945415 | N147: 3.731912571 | O147: 41.95976586
A148: 61 | B148: ='1234'!E130 -> -56.54822317 | C148: ='1234'!F130 -> -85.58203043 | E148: ='1234'!I130 -> 287.7345248 | F148: ='1234'!J130 -> -107.7191345 | H148: ='1235'!E130 -> -52.53032009 | I148: ='1235'!F130 -> -85.84037837 | K148: ='1235'!I130 -> 246.1180444 | L148: ='1235'!J130 -> -105.0432283 | N148: 4.026200289 | O148: 41.70242098
A149: 61.5 | B149: ='1234'!E131 -> -56.30158546 | C149: ='1234'!F131 -> -85.82768038 | E149: ='1234'!I131 -> 283.8891238 | F149: ='1234'!J131 -> -106.2115794 | H149: ='1235'!E131 -> -51.98868931 | I149: ='1235'!F131 -> -86.08610495 | K149: ='1235'!I131 -> 242.5095432 | L149: ='1235'!J131 -> -103.7321548 | N149: 4.32063148 | O149: 41.45379643
A150: 62 | B150: ='1234'!E132 -> -56.05370315 | C150: ='1234'!F132 -> -86.07111926 | E150: ='1234'!I132 -> 280.1621879 | F150: ='1234'!J132 -> -104.7449409 | H150: ='1235'!E132 -> -51.44560612 | I150: ='1235'!F132 -> -86.32705833 | K150: ='1235'!I132 -> 239.0121388 | L150: ='1235'!J132 -> -102.4594193 | N150: 4.615199134 | O150: 41.2134705
A151: 62.5 | B151: ='1234'!E133 -> -55.8045975 | C151: ='1234'!F133 -> -86.31234011 | E151: ='1234'!I133 -> 276.548225 | F151: ='1234'!J133 -> -103.3173094 | H151: ='1235'!E133 -> -50.90111563 | I151: ='1235'!F133 -> -86.56322878 | K151: ='1235'!I133 -> 235.6207149 | L151: ='1235'!J133 -> -101.2232364 | N151: 4.909896089 | O151: 40.98104714
A152: 63 | B152: ='1234'!E134 -> -55.55428977 | C152: ='1234'!F134 -> -86.55133613 | E152: ='1234'!I134 -> 273.0420757 | F152: ='1234'!J134 -> -101.9268909 | H152: ='1235'!E134 -> -50.35526314 | I152: ='1235'!F134 -> -86.79460698 | K152: ='1235'!I134 -> 232.3304654 | L152: ='1235'!J134 -> -100.0219289 | N152: 5.204715036 | O152: 40.75615407
A153: 63.5 | B153: ='1234'!E135 -> -55.30280122 | C153: ='1234'!F135 -> -86.78810076 | E153: ='1234'!I135 -> 269.6388884 | F153: ='1234'!J135 -> -100.5719985 | H153: ='1235'!E135 -> -49.80809413 | I153: ='1235'!F135 -> -87.02118405 | K153: ='1235'!I135 -> 229.1368712 | L153: ='1235'!J135 -> -98.85391896 | N153: 5.499648518 | O153: 40.53844095
A154: 64 | B154: ='1234'!E136 -> -55.05015314 | C154: ='1234'!F136 -> -87.02262761 | E154: ='1234'!I136 -> 266.3340967 | F154: ='1234'!J136 -> -99.25104454 | H154: ='1235'!E136 -> -49.25965427 | I154: ='1235'!F136 -> -87.24295152 | K154: ='1235'!I136 -> 226.0356792 | L154: ='1235'!J136 -> -97.71772158 | N154: 5.794688927 | O154: 40.32757781
A155: 64.5 | B155: ='1234'!E137 -> -54.79636681 | C155: ='1234'!F137 -> -87.25491053 | E155: ='1234'!I137 -> 263.1233986 | F155: ='1234'!J137 -> -97.96253339 | H155: ='1235'!E137 -> -48.7099894 | I155: ='1235'!F137 -> -87.45990135 | K155: ='1235'!I137 -> 223.0228829 | L155: ='1235'!J137 -> -96.61193728 | N155: =SQRT((B155-H155)^2+(C155-I155)^2) -> 6.089828507 | O155: =SQRT((E155-K155)^2+(F155-L155)^2) -> 40.1232535
A156: 65 | B156: ='1234'!E138 -> -54.54146352 | C156: ='1234'!F138 -> -87.48494353 | E156: ='1234'!I138 -> 260.002738 | F156: ='1234'!J138 -> -96.70505482 | H156: ='1235'!E138 -> -48.15914551 | I156: ='1235'!F138 -> -87.67202593 | K156: ='1235'!I138 -> 220.094705 | L156: ='1235'!J138 -> -95.53524624 | N156: 6.385059353 | O156: 39.92517439
A157: 65.5 | B157: ='1234'!E139 -> -54.28546457 | C157: ='1234'!F139 -> -87.71272085 | E157: ='1234'!I139 -> 256.9682867 | F157: ='1234'!J139 -> -95.47727805 | H157: ='1235'!E139 -> -47.6071688 | I157: ='1235'!F139 -> -87.87931807 | K157: ='1235'!I139 -> 217.2475809 | L157: ='1235'!J139 -> -94.48640263 | N157: 6.680373415 | O157: 39.73306308
A158: 66 | B158: ='1234'!E140 -> -54.02839125 | C158: ='1234'!F140 -> -87.93823692 | E158: ='1234'!I140 -> 254.0164293 | F158: ='1234'!J140 -> -94.27794622 | H158: ='1235'!E140 -> -47.0541056 | I158: ='1235'!F140 -> -88.08177104 | K158: ='1235'!I140 -> 214.4781444 | L158: ='1235'!J140 -> -93.46422947 | N158: 6.97576249 | O158: 39.54665732
A159: 66.5 | B159: ='1234'!E141 -> -53.77026486 | C159: ='1234'!F141 -> -88.16148636 | E159: ='1234'!I141 -> 251.1437481 | F159: ='1234'!J141 -> -93.10587134 | H159: ='1235'!E141 -> -46.50000242 | I159: ='1235'!F141 -> -88.27937853 | K159: ='1235'!I141 -> 211.7832138 | L159: ='1235'!J141 -> -92.46761391 | N159: 7.27121823 | O159: 39.3657089
A160: 67 | B160: ='1234'!E142 -> -53.5111067 | C160: ='1234'!F142 -> -88.38246401 | E160: ='1234'!I142 -> 248.34701 | F160: ='1234'!J142 -> -91.9599296 | H160: ='1235'!E142 -> -45.94490591 | I160: ='1235'!F142 -> -88.47213469 | K160: ='1235'!I142 -> 209.1597793 | L160: ='1235'!J142 -> -91.4955029 | N160: 7.566732136 | O160: 39.18998273
A161: 67.5 | B161: ='1234'!E143 -> -53.25093806 | C161: ='1234'!F143 -> -88.60116489 | E161: ='1234'!I143 -> 245.6231541 | F161: ='1234'!J143 -> -90.83905713 | H161: ='1235'!E143 -> -45.38886289 | I161: ='1235'!F143 -> -88.66003408 | K161: ='1235'!I143 -> 206.604992 | L161: ='1235'!J143 -> -90.54689918 | N161: 7.862295563 | O161: 39.01925596
A162: 68 | B162: ='1234'!E144 -> -52.98978022 | C162: ='1234'!F144 -> -88.81758423 | E162: ='1234'!I144 -> 242.9692804 | F162: ='1234'!J144 -> -89.74224605 | H162: ='1235'!E144 -> -44.83192033 | I162: ='1235'!F144 -> -88.84307175 | K162: ='1235'!I144 -> 204.1161529 | L162: ='1235'!J144 -> -89.62085762 | N162: 8.157899713 | O162: 38.85331712
A163: 68.5 | B163: ='1234'!E145 -> -52.72765449 | C163: ='1234'!F145 -> -89.03171746 | E163: ='1234'!I145 -> 240.3826394 | F163: ='1234'!J145 -> -88.66854081 | H163: ='1235'!E145 -> -44.27412533 | I163: ='1235'!F145 -> -89.02124316 | K163: ='1235'!I145 -> 201.6907036 | L163: ='1235'!J145 -> -88.71648183 | N163: 8.453535643 | O163: 38.69196544
A164: 69 | B164: ='1234'!E146 -> -52.46458211 | C164: ='1234'!F146 -> -89.24356019 | E164: ='1234'!I146 -> 237.8606221 | F164: ='1234'!J146 -> -87.61703488 | H164: ='1235'!E146 -> -43.71552516 | I164: ='1235'!F146 -> -89.19454425 | K164: ='1235'!I146 -> 199.3262167 | L164: ='1235'!J146 -> -87.83292101 | N164: 8.749194257 | O164: 38.5350101
A165: 69.5 | B165: ='1234'!E147 -> -52.20058438 | C165: ='1234'!F147 -> -89.45310825 | E165: ='1234'!I147 -> 235.4007517 | F165: ='1234'!J147 -> -86.58686761 | H165: ='1235'!E147 -> -43.15616721 | I165: ='1235'!F147 -> -89.36297141 | K165: ='1235'!I147 -> 197.0203881 | L165: ='1235'!J147 -> -86.96936708 | N165: 9.04486631 | O165: 38.38226958
A166: 70 | B166: ='1234'!E148 -> -51.93568254 | C166: ='1234'!F148 -> -89.66035765 | E166: ='1234'!I148 -> 233.0006749 | F166: ='1234'!J148 -> -85.5772214 | H166: ='1235'!E148 -> -42.59609902 | I166: ='1235'!F148 -> -89.52652147 | K166: ='1235'!I148 -> 194.7710288 | L166: ='1235'!J148 -> -86.12505199 | N166: 9.340542405 | O166: 38.23357115
A167: 70.5 | B167: ='1234'!E149 -> -51.66989783 | C167: ='1234'!F149 -> -89.86530459 | E167: ='1234'!I149 -> 230.6581545 | F167: ='1234'!J149 -> -84.58731899 | H167: ='1235'!E149 -> -42.03536825 | I167: ='1235'!F149 -> -89.68519175 | K167: ='1235'!I149 -> 192.5760582 | L167: ='1235'!J149 -> -85.29924525 | N167: 9.636212996 | O167: 38.08875023
A168: 71 | B168: ='1234'!E150 -> -51.4032515 | C168: ='1234'!F150 -> -90.0679455 | E168: ='1234'!I150 -> 228.371062 | F168: ='1234'!J150 -> -83.61642106 | H168: ='1235'!E150 -> -41.47402271 | I168: ='1235'!F150 -> -89.83898001 | K168: ='1235'!I150 -> 190.4334974 | L168: ='1235'!J150 -> -84.49125164 | N168: 9.931868382 | O168: 37.94764992
A169: 71.5 | B169: ='1234'!E151 -> -51.13576475 | C169: ='1234'!F151 -> -90.26827696 | E169: ='1234'!I151 -> 226.1373714 | F169: ='1234'!J151 -> -82.66382392 | H169: ='1235'!E151 -> -40.91211031 | I169: ='1235'!F151 -> -89.98788449 | K169: ='1235'!I151 -> 188.3414628 | L169: ='1235'!J151 -> -83.70040906 | N169: 10.22749871 | O169: 37.81012054
A170: 72 | B170: ='1234'!E152 -> -50.86745877 | C170: ='1234'!F152 -> -90.46629577 | E170: ='1234'!I152 -> 223.955153 | F170: ='1234'!J152 -> -81.7288574 | H170: ='1235'!E152 -> -40.34967912 | I170: ='1235'!F152 -> -90.13190388 | K170: ='1235'!I152 -> 186.2981608 | L170: ='1235'!J152 -> -82.92608657 | N170: 10.52309398 | O170: 37.67601916
A171: 72.5 | B171: ='1234'!E153 -> -50.59835476 | C171: ='1234'!F153 -> -90.66199892 | E171: ='1234'!I153 -> 221.8225677 | F171: ='1234'!J153 -> -80.81088284 | H171: ='1235'!E153 -> -39.78677729 | I171: ='1235'!F153 -> -90.27103737 | K171: ='1235'!I153 -> 184.3018823 | L171: ='1235'!J153 -> -82.16768255 | N171: 10.81864402 | O171: 37.54520922
A172: 73 | B172: ='1234'!E154 -> -50.32847387 | C172: ='1234'!F154 -> -90.85538359 | E172: ='1234'!I154 -> 219.7378615 | F172: ='1234'!J154 -> -79.90929133 | H172: ='1235'!E154 -> -39.22345311 | I172: ='1235'!F154 -> -90.40528461 | K172: ='1235'!I154 -> 182.3509978 | L172: ='1235'!J154 -> -81.42462296 | N172: 11.11413853 | O172: 37.41756014
A173: 73.5 | B173: ='1234'!E155 -> -50.05783724 | C173: ='1234'!F155 -> -91.04644715 | E173: ='1234'!I155 -> 217.699361 | F173: ='1234'!J155 -> -79.02350195 | H173: ='1235'!E155 -> -38.65975499 | I173: ='1235'!F155 -> -90.53464571 | K173: ='1235'!I155 -> 180.4439528 | L173: ='1235'!J155 -> -80.6963598 | N173: 11.40956703 | O173: 37.29294696
A174: 74 | B174: ='1234'!E156 -> -49.78646598 | C174: ='1234'!F156 -> -91.23518716 | E174: ='1234'!I156 -> 215.7054688 | F174: ='1234'!J156 -> -78.15296018 | H174: ='1235'!E156 -> -38.09573142 | I174: ='1235'!F156 -> -90.65912129 | K174: ='1235'!I156 -> 178.5792639 | L174: ='1235'!J156 -> -79.98236958 | N174: 11.70491889 | O174: 37.17125002
A175: 74.5 | B175: ='1234'!E157 -> -49.51438117 | C175: ='1234'!F157 -> -91.42160139 | E175: ='1234'!I157 -> 213.7546588 | F175: ='1234'!J157 -> -77.29713646 | H175: ='1235'!E157 -> -37.53143104 | I175: ='1235'!F157 -> -90.77871243 | K175: ='1235'!I157 -> 176.7555142 | L175: ='1235'!J157 -> -79.28215194 | N175: 12.00018334 | O175: 37.05235465
A176: 75 | B176: ='1234'!E158 -> -49.24160389 | C176: ='1234'!F158 -> -91.60568777 | E176: ='1234'!I158 -> 211.8454726 | F176: ='1234'!J158 -> -76.45552477 | H176: ='1235'!E158 -> -36.96690256 | I176: ='1235'!F158 -> -90.89342071 | K176: ='1235'!I158 -> 174.9713501 | L176: ='1235'!J158 -> -78.5952284 | N176: 12.29534941 | O176: 36.93615089
A177: 75.5 | B177: ='1234'!E159 -> -48.96815516 | C177: ='1234'!F159 -> -91.78744445 | E177: ='1234'!I159 -> 209.9765157 | F177: ='1234'!J159 -> -75.62764134 | H177: ='1235'!E159 -> -36.4021948 | I177: ='1235'!F159 -> -91.00324818 | K177: ='1235'!I159 -> 173.2254775 | L177: ='1235'!J159 -> -77.9211411 | N177: 12.59040601 | O177: 36.82253321
A178: 76 | B178: ='1234'!E160 -> -48.69405598 | C178: ='1234'!F160 -> -91.96686974 | E178: ='1234'!I160 -> 208.1464541 | F178: ='1234'!J160 -> -74.81302345 | H178: ='1235'!E160 -> -35.83735667 | I178: ='1235'!F160 -> -91.10819739 | K178: ='1235'!I160 -> 171.5166589 | L178: ='1235'!J160 -> -77.25945169 | N178: 12.88534188 | O178: 36.71140025
A179: 76.5 | B179: ='1234'!E161 -> -48.41932733 | C179: ='1234'!F161 -> -92.14396215 | E179: ='1234'!I161 -> 206.3540109 | F179: ='1234'!J161 -> -74.01122832 | H179: ='1235'!E161 -> -35.27243719 | I179: ='1235'!F161 -> -91.20827139 | K179: ='1235'!I161 -> 169.8437101 | L179: ='1235'!J161 -> -76.60974028 | N179: 13.18014558 | O179: 36.60265463
A180: 77 | B180: ='1234'!E162 -> -48.14399013 | C180: ='1234'!F162 -> -92.31872039 | E180: ='1234'!I162 -> 204.5979632 | F180: ='1234'!J162 -> -73.22183201 | H180: ='1235'!E162 -> -34.70748545 | I180: ='1235'!F162 -> -91.30347371 | K180: ='1235'!I162 -> 168.2054974 | L180: ='1235'!J162 -> -75.97160444 | N180: 13.47480552 | O180: 36.49620268
A181: 77.5 | B181: ='1234'!E163 -> -47.8680653 | C181: ='1234'!F163 -> -92.49114334 | E181: ='1234'!I163 -> 202.8771395 | F181: ='1234'!J163 -> -72.44442847 | H181: ='1235'!E163 -> -34.14255065 | I181: ='1235'!F163 -> -91.39380839 | K181: ='1235'!I163 -> 166.6009352 | L181: ='1235'!J163 -> -75.34465831 | N181: 13.76930995 | O181: 36.39195426
A182: 78 | B182: ='1234'!E164 -> -47.5915737 | C182: ='1234'!F164 -> -92.66123008 | E182: ='1234'!I164 -> 201.1904169 | F182: ='1234'!J164 -> -71.67862858 | H182: ='1235'!E164 -> -33.57768205 | I182: ='1235'!F164 -> -91.47927996 | K182: ='1235'!I164 -> 165.0289829 | L182: ='1235'!J164 -> -74.72853166 | N182: 14.06364693 | O182: 36.28982254
A183: 78.5 | B183: ='1234'!E165 -> -47.31453614 | C183: ='1234'!F165 -> -92.82897985 | E183: ='1234'!I165 -> 199.5367185 | F183: ='1234'!J165 -> -70.9240593 | H183: ='1235'!E165 -> -33.01292901 | I183: ='1235'!F165 -> -91.55989346 | K183: ='1235'!I165 -> 163.4886433 | L183: ='1235'!J165 -> -74.12286915 | N183: 14.35780439 | O183: 36.18972388
A184: 79 | B184: ='1234'!E166 -> -47.03697343 | C184: ='1234'!F166 -> -92.99439211 | E184: ='1234'!I166 -> 197.9150113 | F184: ='1234'!J166 -> -70.18036283 | H184: ='1235'!E166 -> -32.44834094 | I184: ='1235'!F166 -> -91.63565444 | K184: ='1235'!I166 -> 161.97896 | L184: ='1235'!J166 -> -73.5273295 | N184: 14.65177007 | O184: 36.09157758
A185: 79.5 | B185: ='1234'!E167 -> -46.7589063 | C185: ='1234'!F167 -> -93.15746647 | E185: ='1234'!I167 -> 196.3243037 | F185: ='1234'!J167 -> -69.44719589 | H185: ='1235'!E167 -> -31.88396735 | I185: ='1235'!F167 -> -91.70656894 | K185: ='1235'!I167 -> 160.4990153 | L185: ='1235'!J167 -> -72.94158482 | N185: 14.94553152 | O185: 35.99530578
A186: 80 | B186: ='1234'!E168 -> -46.48035545 | C186: ='1234'!F168 -> -93.31820274 | E186: ='1234'!I168 -> 194.7636434 | F186: ='1234'!J168 -> -68.72422891 | H186: ='1235'!E168 -> -31.3198578 | I186: ='1235'!F168 -> -91.77264354 | K186: ='1235'!I168 -> 159.0479286 | L186: ='1235'!J168 -> -72.36531993 | N186: 15.23907615 | O186: 35.90083329
A187: 80.5 | B187: ='1234'!E169 -> -46.20134153 | C187: ='1234'!F169 -> -93.47660091 | E187: ='1234'!I169 -> 193.232116 | F187: ='1234'!J169 -> -68.01114546 | H187: ='1235'!E169 -> -30.75606194 | I187: ='1235'!F169 -> -91.8338853 | K187: ='1235'!I169 -> 157.624854 | L187: ='1235'!J169 -> -71.79823166 | N187: 15.53239119 | O187: 35.80808743
A188: 81 | B188: ='1234'!E170 -> -45.92188516 | C188: ='1234'!F170 -> -93.63266116 | E188: ='1234'!I170 -> 191.7288423 | F188: ='1234'!J170 -> -67.30764152 | H188: ='1235'!E170 -> -30.19262946 | I188: ='1235'!F170 -> -91.89030182 | K188: ='1235'!I170 -> 156.2289793 | L188: ='1235'!J170 -> -71.24002835 | N188: 15.82546369 | O188: 35.71699791
A189: 81.5 | B189: ='1234'!E171 -> -45.64200689 | C189: ='1234'!F171 -> -93.78638383 | E189: ='1234'!I171 -> 190.2529773 | F189: ='1234'!J171 -> -66.61342492 | H189: ='1235'!E171 -> -29.62961012 | I189: ='1235'!F171 -> -91.9419012 | K189: ='1235'!I171 -> 154.8595237 | L189: ='1235'!J171 -> -70.6904292 | N189: 16.11828051 | O189: 35.62749673
A190: 82 | B190: ='1234'!E172 -> -45.36172724 | C190: ='1234'!F172 -> -93.93776944 | E190: ='1234'!I172 -> 188.8037083 | F190: ='1234'!J172 -> -65.92821477 | H190: ='1235'!E172 -> -29.06705373 | I190: ='1235'!F172 -> -91.98869209 | K190: ='1235'!I172 -> 153.5157368 | L190: ='1235'!J172 -> -70.1491638 | N190: 16.41082836 | O190: 35.53951801
A191: 82.5 | B191: ='1234'!E173 -> -45.08106666 | C191: ='1234'!F173 -> -94.08681872 | E191: ='1234'!I173 -> 187.3802531 | F191: ='1234'!J173 -> -65.25174093 | H191: ='1235'!E173 -> -28.50501016 | I191: ='1235'!F173 -> -92.03068362 | K191: ='1235'!I173 -> 152.1968969 | L191: ='1235'!J173 -> -69.61597156 | N191: 16.70309375 | O191: 35.45299793
A192: 83 | B192: ='1234'!E174 -> -44.80004555 | C192: ='1234'!F174 -> -94.23353255 | E192: ='1234'!I174 -> 185.9818591 | F192: ='1234'!J174 -> -64.58374348 | H192: ='1235'!E174 -> -27.94352932 | I192: ='1235'!F174 -> -92.0678855 | K192: ='1235'!I174 -> 150.9023097 | L192: ='1235'!J174 -> -69.09060133 | N192: 16.99506301 | O192: 35.36787457
A193: 83.5 | B193: ='1234'!E175 -> -44.51868427 | C193: ='1234'!F175 -> -94.37791197 | E193: ='1234'!I175 -> 184.6078014 | F193: ='1234'!J175 -> -63.92397226 | H193: ='1235'!E175 -> -27.38266117 | I193: ='1235'!F175 -> -92.10030791 | K193: ='1235'!I175 -> 149.631307 | L193: ='1235'!J175 -> -68.57281086 | N193: 17.2867223 | O193: 35.28408785
A194: 84 | B194: ='1234'!E176 -> -44.2370031 | C194: ='1234'!F176 -> -94.51995825 | E194: ='1234'!I176 -> 183.2573818 | F194: ='1234'!J176 -> -63.27218644 | H194: ='1235'!E176 -> -26.82245572 | I194: ='1235'!F176 -> -92.12796161 | K194: ='1235'!I176 -> 148.3832456 | L194: ='1235'!J176 -> -68.06236642 | N194: 17.57805758 | O194: 35.20157945
A195: 84.5 | B195: ='1234'!E177 -> -43.95502228 | C195: ='1234'!F177 -> -94.65967277 | E195: ='1234'!I177 -> 181.9299275 | F195: ='1234'!J177 -> -62.62815407 | H195: ='1235'!E177 -> -26.26296301 | I195: ='1235'!F177 -> -92.15085787 | K195: ='1235'!I177 -> 147.157506 | L195: ='1235'!J177 -> -67.55904243 | N195: 17.86905464 | O195: 35.12029265
A196: 85 | B196: ='1234'!E178 -> -43.67276199 | C196: ='1234'!F178 -> -94.79705714 | E196: ='1234'!I178 -> 180.62479 | F196: ='1234'!J178 -> -61.99165168 | H196: ='1235'!E178 -> -25.70423311 | I196: ='1235'!F178 -> -92.1690085 | K196: ='1235'!I178 -> 145.9534914 | L196: ='1235'!J178 -> -67.06262101 | N196: 18.15969906 | O196: 35.04017231
A197: 85.5 | B197: ='1234'!E179 -> -43.39024234 | C197: ='1234'!F179 -> -94.93211311 | E197: ='1234'!I179 -> 179.3413439 | F197: ='1234'!J179 -> -61.36246389 | H197: ='1235'!E179 -> -25.14631613 | I197: ='1235'!F179 -> -92.18242586 | K197: ='1235'!I179 -> 144.7706268 | L197: ='1235'!J179 -> -66.57289169 | N197: 18.44997624 | O197: 34.96116477
A198: 86 | B198: ='1234'!E180 -> -43.10748337 | C198: ='1234'!F180 -> -95.0648426 | E198: ='1234'!I180 -> 178.078986 | F198: ='1234'!J180 -> -60.74038311 | H198: ='1235'!E180 -> -24.58926221 | I198: ='1235'!F180 -> -92.19112282 | K198: ='1235'!I180 -> 143.6083577 | L198: ='1235'!J180 -> -66.08965103 | N198: 18.73987141 | O198: 34.88321777
A199: 86.5 | B199: ='1234'!E181 -> -42.82450508 | C199: ='1234'!F181 -> -95.19524772 | E199: ='1234'!I181 -> 176.837134 | F199: ='1234'!J181 -> -60.12520911 | H199: ='1235'!E181 -> -24.0331215 | I199: ='1235'!F181 -> -92.19511283 | K199: ='1235'!I181 -> 142.4661496 | L199: ='1235'!J181 -> -65.61270231 | N199: 19.02936956 | O199: 34.80628038
A200: 87 | B200: ='1234'!E182 -> -42.54132737 | C200: ='1234'!F182 -> -95.32333074 | E200: ='1234'!I182 -> 175.6152262 | F200: ='1234'!J182 -> -59.51674876 | H200: ='1235'!E182 -> -23.47794419 | I200: ='1235'!F182 -> -92.19440987 | K200: ='1235'!I182 -> 141.3434869 | L200: ='1235'!J182 -> -65.14185525 | N200: 19.31845553 | O200: 34.73030293
A201: 87.5 | B201: ='1234'!E183 -> -42.25797011 | C201: ='1234'!F183 -> -95.44909409 | E201: ='1234'!I183 -> 174.4127199 | F201: ='1234'!J183 -> -58.91481573 | H201: ='1235'!E183 -> -22.92378047 | I201: ='1235'!F183 -> -92.18902847 | K201: ='1235'!I183 -> 140.239872 | L201: ='1235'!J183 -> -64.67692568 | N201: 19.60711394 | O201: 34.65523693
A202: 88 | B202: ='1234'!E184 -> -41.97445307 | C202: ='1234'!F184 -> -95.57254038 | E202: ='1234'!I184 -> 173.229091 | F202: ='1234'!J184 -> -58.31923013 | H202: ='1235'!E184 -> -22.37068055 | I202: ='1235'!F184 -> -92.17898372 | K202: ='1235'!I184 -> 139.1548247 | L202: ='1235'!J184 -> -64.21773528 | N202: 19.8953292 | O202: 34.58103507
A203: 88.5 | B203: ='1234'!E185 -> -41.69079597 | C203: ='1234'!F185 -> -95.69367238 | E203: ='1234'!I185 -> 172.0638331 | F203: ='1234'!J185 -> -57.72981833 | H203: ='1235'!E185 -> -21.81869464 | I203: ='1235'!F185 -> -92.16429125 | K203: ='1235'!I185 -> 138.0878815 | L203: ='1235'!J185 -> -63.76411136 | N203: 20.18308555 | O203: 34.50765106
A204: 89 | B204: ='1234'!E186 -> -41.40701844 | C204: ='1234'!F186 -> -95.81249303 | E204: ='1234'!I186 -> 170.9164569 | F204: ='1234'!J186 -> -57.14641263 | H204: ='1235'!E186 -> -21.26787298 | I204: ='1235'!F186 -> -92.14496726 | K204: ='1235'!I186 -> 137.0385947 | L204: ='1235'!J186 -> -63.31588655 | N204: 20.47036699 | O204: 34.43503965
A205: 89.5 | B205: ='1234'!E187 -> -41.12314004 | C205: ='1234'!F187 -> -95.92900542 | E205: ='1234'!I187 -> 169.786489 | F205: ='1234'!J187 -> -56.56885103 | H205: ='1235'!E187 -> -20.71826579 | I205: ='1235'!F187 -> -92.1210285 | K205: ='1235'!I187 -> 136.0065317 | L205: ='1235'!J187 -> -62.8728986 | N205: 20.75715735 | O205: 34.36315658
A206: 90 | B206: ='1234'!E188 -> -40.83918027 | C206: ='1234'!F188 -> -96.04321283 | E206: ='1234'!I188 -> 168.6734719 | F206: ='1234'!J188 -> -55.99697702 | H206: ='1235'!E188 -> -20.16992328 | I206: ='1235'!F188 -> -92.09249229 | K206: ='1235'!I188 -> 134.9912748 | L206: ='1235'!J188 -> -62.43499016 | N206: 21.04344024 | O206: 34.29195848
A207: 90.5 | B207: ='1234'!E189 -> -40.55515853 | C207: ='1234'!F189 -> -96.15511867 | E207: ='1234'!I189 -> 167.5769629 | F207: ='1234'!J189 -> -55.43063932 | H207: ='1235'!E189 -> -19.62289568 | I207: ='1235'!F189 -> -92.0593765 | K207: ='1235'!I189 -> 133.99242 | L207: ='1235'!J189 -> -62.00200857 | N207: 21.32919904 | O207: 34.22140284
A208: 91 | B208: ='1234'!E190 -> -40.27109416 | C208: ='1234'!F190 -> -96.26472653 | E208: ='1234'!I190 -> 166.4965334 | F208: ='1234'!J190 -> -54.8696917 | H208: ='1235'!E190 -> -19.0772332 | I208: ='1235'!F190 -> -92.02169959 | K208: ='1235'!I190 -> 133.0095769 | L208: ='1235'!J190 -> -61.57380562 | N208: 21.61441695 | O208: 34.15144798
A209: 91.5 | B209: ='1234'!E191 -> -39.98700641 | C209: ='1234'!F191 -> -96.37204015 | E209: ='1234'!I191 -> 165.4317689 | F209: ='1234'!J191 -> -54.31399274 | H209: ='1235'!E191 -> -18.53298601 | I209: ='1235'!F191 -> -91.97948058 | K209: ='1235'!I191 -> 132.0423679 | L209: ='1235'!J191 -> -61.15023741 | N209: 21.89907695 | O209: 34.08205302
... 537 more rows

Sheet 1235
A3: d2 | B3: -5 | C3: 105 | D3: a2 | E3: =F3*PI()/180 -> 0.5235987756 | F3: 30
A4: d3 | B4: 40 | C4: 115 | D4: a3 | E4: =F4*PI()/180 -> 0 | F4: 0
A5: d5 | B5: 15 | C5: 65 | D5: a4 | E5: =F5*PI()/180 -> -1.308996939 | F5: -75
A7: b2 | C7: b51 | D7: b52 | E7: -Z1 | G7: R1 | I7: -Z2 | K7: R2
A8: 0 | B8: =A8*PI()/180 -> 0 | C8: =Burmester($B$3:$C$3,$B$4:$C$4,$B$5:$C$5,$E$3,$E$4,$E$5,B8) -> 6.283185307 | D8: 4.991227705 | E8: =ThreePosition_Basic2($E$3,$E$5,$B$3:$C$3,$B$5:$C$5,B8,C8) -> 24.24611104 | F8: 76.64194016 | G8: -3.613543658e+17 | H8: -3.31253668e+17 | I8: =ThreePosition_Basic2($E$3,$E$5,$B$3:$C$3,$B$5:$C$5,B8,D8) -> -198.4326674 | J8: 43.16987298 | K8: 52.46645622 | L8: 20.35713433
A9: 0.5 | B9: =A9*PI()/180 -> 0.00872664626 | C9: =Burmester($B$3:$C$3,$B$4:$C$4,$B$5:$C$5,$E$3,$E$4,$E$5,B9) -> 0.0257221802 | D9: 4.989890206 | E9: =ThreePosition_Basic2($E$3,$E$5,$B$3:$C$3,$B$5:$C$5,B9,C9) -> -96.66206278 | F9: -26.52889675 | G9: -6987.07749 | H9: 2434.593861 | I9: =ThreePosition_Basic2($E$3,$E$5,$B$3:$C$3,$B$5:$C$5,B9,D9) -> -202.4825084 | J9: 44.65728533 | K9: 52.28939534 | L9: 20.49749271
A10: 1 | B10: 0.01745329252 | C10: =Burmester($B$3:$C$3,$B$4:$C$4,$B$5:$C$5,$E$3,$E$4,$E$5,B10) -> 0.05126101721 | D10: 4.988629423 | E10: =ThreePosition_Basic2($E$3,$E$5,$B$3:$C$3,$B$5:$C$5,B10,C10) -> -96.51199583 | F10: -27.2154782 | G10: -3545.757926 | H10: 1236.978758 | I10: =ThreePosition_Basic2($E$3,$E$5,$B$3:$C$3,$B$5:$C$5,B10,D10) -> -206.66439 | J10: 46.18874325 | K10: 52.12060956 | L10: 20.63309121
A11: 1.5 | B11: 0.02617993878 | C11: =Burmester($B$3:$C$3,$B$4:$C$4,$B$5:$C$5,$E$3,$E$4,$E$5,B11) -> 0.07662108815 | D11: 4.987440592 | E11: =ThreePosition_Basic2($E$3,$E$5,$B$3:$C$3,$B$5:$C$5,B11,C11) -> -96.359464 | F11: -27.8983998 | G11: -2398.440989 | H11: 837.2821308 | I11: =ThreePosition_Basic2($E$3,$E$5,$B$3:$C$3,$B$5:$C$5,B11,D11) -> -210.9856052 | J11: 47.76690757 | K11: 51.95954501 | L11: 20.76424664
A12: 2 | B12: 0.03490658504 | C12: =Burmester($B$3:$C$3,$B$4:$C$4,$B$5:$C$5,$E$3,$E$4,$E$5,B12) -> 0.1018066002 | D12: 4.986319359 | E12: =ThreePosition_Basic2($E$3,$E$5,$B$3:$C$3,$B$5:$C$5,B12,C12) -> -96.20430502 | F12: -28.57778921 | G12: -1824.626115 | H12: 637.0689274 | I12: =ThreePosition_Basic2($E$3,$E$5,$B$3:$C$3,$B$5:$C$5,B12,D12) -> -215.4539376 | J12: 49.39459913 | K12: 51.80569832 | L12: 20.89124752
A13: 2.5 | B13: 0.0436332313 | C13: =Burmester($B$3:$C$3,$B$4:$C$4,$B$5:$C$5,$E$3,$E$4,$E$5,B13) -> 0.126821435 | D13: 4.985261743 | E13: =ThreePosition_Basic2($E$3,$E$5,$B$3:$C$3,$B$5:$C$5,B13,C13) -> -96.04637194 | F13: -29.2537595 | G13: -1480.21284 | H13: 516.6519686 | I13: =ThreePosition_Basic2($E$3,$E$5,$B$3:$C$3,$B$5:$C$5,B13,D13) -> -220.0777096 | J13: 51.07481665 | K13: 51.65861086 | L13: 21.01435738
A14: 3 | B14: 0.05235987756 | C14: =Burmester($B$3:$C$3,$B$4:$C$4,$B$5:$C$5,$E$3,$E$4,$E$5,B14) -> 0.1516691874 | D14: 4.984264092 | E14: =ThreePosition_Basic2($E$3,$E$5,$B$3:$C$3,$B$5:$C$5,B14,C14) -> -95.88553149 | F14: -29.92641072 | G14: -1250.500749 | H14: 436.1354042 | I14: =ThreePosition_Basic2($E$3,$E$5,$B$3:$C$3,$B$5:$C$5,B14,D14) -> -224.8658352 | J14: 52.81075618 | K14: 51.51786367 | L14: 21.13381746
A15: 3.5 | B15: 0.06108652382 | C15: =Burmester($B$3:$C$3,$B$4:$C$4,$B$5:$C$5,$E$3,$E$4,$E$5,B15) -> 0.1763531984 | D15: 4.98332305 | E15: =ThreePosition_Basic2($E$3,$E$5,$B$3:$C$3,$B$5:$C$5,B15,C15) -> -95.72166264 | F15: -30.59583135 | G15: -1086.332324 | H15: 378.4209205 | I15: =ThreePosition_Basic2($E$3,$E$5,$B$3:$C$3,$B$5:$C$5,B15,D15) -> -229.8278784 | J15: 54.6058323 | K15: 51.38307318 | L15: 21.24984915
A16: 4 | B16: 0.06981317008 | C16: =Burmester($B$3:$C$3,$B$4:$C$4,$B$5:$C$5,$E$3,$E$4,$E$5,B16) -> 0.2008765845 | D16: 4.982435526 | E16: =ThreePosition_Basic2($E$3,$E$5,$B$3:$C$3,$B$5:$C$5,B16,C16) -> -95.55465537 | F16: -31.26209943 | G16: -963.1286498 | H16: 334.9592899 | I16: =ThreePosition_Basic2($E$3,$E$5,$B$3:$C$3,$B$5:$C$5,B16,D16) -> -234.9741183 | J16: 56.46370148 | K16: 51.25388743 | L16: 21.36265601
A17: 4.5 | B17: 0.07853981634 | C17: =Burmester($B$3:$C$3,$B$4:$C$4,$B$5:$C$5,$E$3,$E$4,$E$5,B17) -> 0.2252422623 | D17: 4.981598666 | E17: =ThreePosition_Basic2($E$3,$E$5,$B$3:$C$3,$B$5:$C$5,B17,C17) -> -95.38440959 | F17: -31.92528367 | G17: -867.2346503 | H17: 301.000887 | I17: =ThreePosition_Basic2($E$3,$E$5,$B$3:$C$3,$B$5:$C$5,B17,D17) -> -240.315621 | J17: 58.38828786 | K17: 51.12998279 | L17: 21.47242565
A18: 5 | B18: 0.0872664626 | C18: =Burmester($B$3:$C$3,$B$4:$C$4,$B$5:$C$5,$E$3,$E$4,$E$5,B18) -> 0.2494529708 | D18: 4.980809835 | E18: =ThreePosition_Basic2($E$3,$E$5,$B$3:$C$3,$B$5:$C$5,B18,C18) -> -95.21083416 | F18: -32.58544437 | G18: -790.4571806 | H18: 273.6958935 | I18: =ThreePosition_Basic2($E$3,$E$5,$B$3:$C$3,$B$5:$C$5,B18,D18) -> -245.8643207 | J18: 60.38381193 | K18: 51.01106111 | L18: 21.5793313
A19: 5.5 | B19: 0.09599310886 | C19: =Burmester($B$3:$C$3,$B$4:$C$4,$B$5:$C$5,$E$3,$E$4,$E$5,B19) -> 0.2735112906 | D19: 4.980066589 | E19: =ThreePosition_Basic2($E$3,$E$5,$B$3:$C$3,$B$5:$C$5,B19,C19) -> -95.0338461 | F19: -33.24263421 | G19: -727.5823399 | H19: 251.2307549 | I19: =ThreePosition_Basic2($E$3,$E$5,$B$3:$C$3,$B$5:$C$5,B19,D19) -> -251.6331093 | J19: 62.4548224 | K19: 50.89684715 | L19: 21.6835332
A20: 6 | B20: 0.1047197551 | C20: =Burmester($B$3:$C$3,$B$4:$C$4,$B$5:$C$5,$E$3,$E$4,$E$5,B20) -> 0.2974196607 | D20: 4.979366664 | E20: =ThreePosition_Basic2($E$3,$E$5,$B$3:$C$3,$B$5:$C$5,B20,C20) -> -94.85336985 | F20: -33.89689904 | G20: -675.1341273 | H20: 232.3964079 | I20: =ThreePosition_Basic2($E$3,$E$5,$B$3:$C$3,$B$5:$C$5,B20,D20) -> -257.6359384 | J20: 64.60623197 | K20: 50.78708642 | L20: 21.78517987
A21: 6.5 | B21: 0.1134464014 | C21: =Burmester($B$3:$C$3,$B$4:$C$4,$B$5:$C$5,$E$3,$E$4,$E$5,B21) -> 0.3211803934 | D21: 4.978707956 | E21: =ThreePosition_Basic2($E$3,$E$5,$B$3:$C$3,$B$5:$C$5,B21,C21) -> -94.66933656 | F21: -34.54827846 | G21: -630.706025 | H21: 216.3557871 | I21: =ThreePosition_Basic2($E$3,$E$5,$B$3:$C$3,$B$5:$C$5,B21,D21) -> -263.8879329 | J21: 66.84335737 | K21: 50.68154318 | L21: 21.88440917
A22: 7 | B22: 0.1221730476 | C22: =Burmester($B$3:$C$3,$B$4:$C$4,$B$5:$C$5,$E$3,$E$4,$E$5,B22) -> 0.3447956872 | D22: 4.978088508 | E22: =ThreePosition_Basic2($E$3,$E$5,$B$3:$C$3,$B$5:$C$5,B22,C22) -> -94.48168358 | F22: -35.19680642 | G22: -592.5790452 | H22: 202.5109715 | I22: =ThreePosition_Basic2($E$3,$E$5,$B$3:$C$3,$B$5:$C$5,B22,D22) -> -270.4055202 | J22: 69.17196459 | K22: 50.57999871 | L22: 21.98134932
A23: 7.5 | B23: 0.1308996939 | C23: =Burmester($B$3:$C$3,$B$4:$C$4,$B$5:$C$5,$E$3,$E$4,$E$5,B23) -> 0.3682676388 | D23: 4.977506496 | E23: =ThreePosition_Basic2($E$3,$E$5,$B$3:$C$3,$B$5:$C$5,B23,C23) -> -94.29035389 | F23: -35.84251174 | G23: -559.4925574 | H23: 190.4234721 | I23: =ThreePosition_Basic2($E$3,$E$5,$B$3:$C$3,$B$5:$C$5,B23,D23) -> -277.2065759 | J23: 71.59831993 | K23: 50.48224978 | L23: 22.07611971
A24: 8 | B24: 0.1396263402 | C24: =Burmester($B$3:$C$3,$B$4:$C$4,$B$5:$C$5,$E$3,$E$4,$E$5,B24) -> 0.3915982525 | D24: 4.976960218 | E24: =ThreePosition_Basic2($E$3,$E$5,$B$3:$C$3,$B$5:$C$5,B24,C24) -> -94.09529567 | F24: -36.48541853 | G24: -530.5010557 | H24: 179.7644111 | I24: =ThreePosition_Basic2($E$3,$E$5,$B$3:$C$3,$B$5:$C$5,B24,D24) -> -284.3105893 | J24: 74.12924787 | K24: 50.38810724 | L24: 22.1688317
A25: 8.5 | B25: 0.1483529864 | C25: =Burmester($B$3:$C$3,$B$4:$C$4,$B$5:$C$5,$E$3,$E$4,$E$5,B25) -> 0.4147894501 | D25: 4.976448085 | E25: =ThreePosition_Basic2($E$3,$E$5,$B$3:$C$3,$B$5:$C$5,B25,C25) -> -93.89646189 | F25: -37.12554665 | G25: -504.881478 | H25: 170.282285 | I25: =ThreePosition_Basic2($E$3,$E$5,$B$3:$C$3,$B$5:$C$5,B25,D25) -> -291.7388522 | J25: 76.77219698 | K25: 50.29739484 | L25: 22.25958931
A26: 9 | B26: 0.1570796327 | C26: =Burmester($B$3:$C$3,$B$4:$C$4,$B$5:$C$5,$E$3,$E$4,$E$5,B26) -> 0.4378430783 | D26: 4.975968612 | E26: =ThreePosition_Basic2($E$3,$E$5,$B$3:$C$3,$B$5:$C$5,B26,C26) -> -93.69380992 | F26: -37.76291204 | G26: -482.0714184 | H26: 161.7814735 | I26: =ThreePosition_Basic2($E$3,$E$5,$B$3:$C$3,$B$5:$C$5,B26,D26) -> -299.5146745 | J26: 79.53531509 | K26: 50.2099481 | L26: 22.34848986
A27: 9.5 | B27: 0.1658062789 | C27: =Burmester($B$3:$C$3,$B$4:$C$4,$B$5:$C$5,$E$3,$E$4,$E$5,B27) -> 0.4607609163 | D27: 4.975520405 | E27: =ThreePosition_Basic2($E$3,$E$5,$B$3:$C$3,$B$5:$C$5,B27,C27) -> -93.4873012 | F27: -38.39752707 | G27: -461.6268519 | H27: 154.1075341 | I27: =ThreePosition_Basic2($E$3,$E$5,$B$3:$C$3,$B$5:$C$5,B27,D27) -> -307.6636306 | J27: 82.42753539 | K27: 50.12561331 | L27: 22.43562446
A28: 10 | B28: 0.1745329252 | C28: =Burmester($B$3:$C$3,$B$4:$C$4,$B$5:$C$5,$E$3,$E$4,$E$5,B28) -> 0.4835446816 | D28: 4.975102162 | E28: =ThreePosition_Basic2($E$3,$E$5,$B$3:$C$3,$B$5:$C$5,B28,C28) -> -93.27690096 | F28: -39.02940084 | G28: -443.1925407 | H28: 147.1369086 | I28: =ThreePosition_Basic2($E$3,$E$5,$B$3:$C$3,$B$5:$C$5,B28,D28) -> -316.213844 | J28: 85.45867535 | K28: 50.04424668 | L28: 22.52107859
A29: 10.5 | B29: 0.1832595715 | C29: =Burmester($B$3:$C$3,$B$4:$C$4,$B$5:$C$5,$E$3,$E$4,$E$5,B29) -> 0.5061960359 | D29: 4.974712657 | E29: =ThreePosition_Basic2($E$3,$E$5,$B$3:$C$3,$B$5:$C$5,B29,C29) -> -93.06257793 | F29: -39.65853942 | G29: -426.4808963 | H29: 140.7695713 | I29: =ThreePosition_Basic2($E$3,$E$5,$B$3:$C$3,$B$5:$C$5,B29,D29) -> -325.196314 | J29: 88.63955078 | K29: 49.96571353 | L29: 22.60493251
A30: 11 | B30: 0.1919862177 | C30: =Burmester($B$3:$C$3,$B$4:$C$4,$B$5:$C$5,$E$3,$E$4,$E$5,B30) -> 0.5287165904 | D30: 4.974350742 | E30: =ThreePosition_Basic2($E$3,$E$5,$B$3:$C$3,$B$5:$C$5,B30,C30) -> -92.84430411 | F30: -40.28494614 | G30: -411.2566057 | H30: 134.9236805 | I30: =ThreePosition_Basic2($E$3,$E$5,$B$3:$C$3,$B$5:$C$5,B30,D30) -> -334.6452953 | J30: 91.98210787 | K30: 49.88988754 | L30: 22.68726165
A31: 11.5 | B31: 0.200712864 | C31: =Burmester($B$3:$C$3,$B$4:$C$4,$B$5:$C$5,$E$3,$E$4,$E$5,B31) -> 0.5511079097 | D31: 4.974015335 | E31: =ThreePosition_Basic2($E$3,$E$5,$B$3:$C$3,$B$5:$C$5,B31,C31) -> -92.62205453 | F31: -40.9086218 | G31: -397.325269 | H31: 129.5316267 | I31: =ThreePosition_Basic2($E$3,$E$5,$B$3:$C$3,$B$5:$C$5,B31,D31) -> -344.5987385 | J31: 95.49957657 | K31: 49.81665014 | L31: 22.76813704
A32: 12 | B32: 0.2094395102 | C32: =Burmester($B$3:$C$3,$B$4:$C$4,$B$5:$C$5,$E$3,$E$4,$E$5,B32) -> 0.5733715161 | D32: 4.973705419 | E32: =ThreePosition_Basic2($E$3,$E$5,$B$3:$C$3,$B$5:$C$5,B32,C32) -> -92.39580707 | F32: -41.52956484 | G32: -384.5248766 | H32: 124.537068 | I32: =ThreePosition_Basic2($E$3,$E$5,$B$3:$C$3,$B$5:$C$5,B32,D32) -> -355.0988037 | J32: 99.20664941 | K32: 49.74588987 | L32: 22.84762558
A33: 12.5 | B33: 0.2181661565 | C33: =Burmester($B$3:$C$3,$B$4:$C$4,$B$5:$C$5,$E$3,$E$4,$E$5,B33) -> 0.5955088932 | D33: 4.973420036 | E33: =ThreePosition_Basic2($E$3,$E$5,$B$3:$C$3,$B$5:$C$5,B33,C33) -> -92.16554226 | F33: -42.14777158 | G33: -372.7193319 | H33: 119.892677 | I33: =ThreePosition_Basic2($E$3,$E$5,$B$3:$C$3,$B$5:$C$5,B33,D33) -> -366.1924624 | J33: 103.119691 | K33: 49.67750189 | L33: 22.92579039
A34: 13 | B34: 0.2268928028 | C34: =Burmester($B$3:$C$3,$B$4:$C$4,$B$5:$C$5,$E$3,$E$4,$E$5,B34) -> 0.617521489 | D34: 4.973158283 | E34: =ThreePosition_Basic2($E$3,$E$5,$B$3:$C$3,$B$5:$C$5,B34,C34) -> -91.93124312 | F34: -42.76323633 | G34: -361.7934692 | H34: 115.5584075 | I34: =ThreePosition_Basic2($E$3,$E$5,$B$3:$C$3,$B$5:$C$5,B34,D34) -> -377.9322061 | J34: 107.2569845 | K34: 49.61138748 | L34: 23.00269106
A35: 13.5 | B35: 0.235619449 | C35: =Burmester($B$3:$C$3,$B$4:$C$4,$B$5:$C$5,$E$3,$E$4,$E$5,B35) -> 0.6394107187 | D35: 4.972919308 | E35: =ThreePosition_Basic2($E$3,$E$5,$B$3:$C$3,$B$5:$C$5,B35,C35) -> -91.69289501 | F35: -43.37595159 | G35: -351.6491784 | H35: 111.500147 | I35: =ThreePosition_Basic2($E$3,$E$5,$B$3:$C$3,$B$5:$C$5,B35,D35) -> -390.3768824 | J35: 111.6390225 | K35: 49.54745356 | L35: 23.07838394
A36: 14 | B36: 0.2443460953 | C36: =Burmester($B$3:$C$3,$B$4:$C$4,$B$5:$C$5,$E$3,$E$4,$E$5,B36) -> 0.6611779672 | D36: 4.972702306 | E36: =ThreePosition_Basic2($E$3,$E$5,$B$3:$C$3,$B$5:$C$5,B36,C36) -> -91.45048548 | F36: -43.98590819 | G36: -342.2023598 | H36: 107.6886568 | I36: =ThreePosition_Basic2($E$3,$E$5,$B$3:$C$3,$B$5:$C$5,B36,D36) -> -403.5926892 | J36: 116.2888533 | K36: 49.48561234 | L36: 23.15292233
A37: 14.5 | B37: 0.2530727415 | C37: =Burmester($B$3:$C$3,$B$4:$C$4,$B$5:$C$5,$E$3,$E$4,$E$5,B37) -> 0.6828245916 | D37: 4.972506517 | E37: =ThreePosition_Basic2($E$3,$E$5,$B$3:$C$3,$B$5:$C$5,B37,C37) -> -91.20400416 | F37: -44.59309538 | G37: -333.3805091 | H37: 104.0987324 | I37: =ThreePosition_Basic2($E$3,$E$5,$B$3:$C$3,$B$5:$C$5,B37,D37) -> -417.65436 | J37: 121.2324927 | K37: 49.42578091 | L37: 23.22635671
A38: 15 | B38: 0.2617993878 | C38: =Burmester($B$3:$C$3,$B$4:$C$4,$B$5:$C$5,$E$3,$E$4,$E$5,B38) -> 0.7043519228 | D38: 4.972331222 | E38: =ThreePosition_Basic2($E$3,$E$5,$B$3:$C$3,$B$5:$C$5,B38,C38) -> -90.95344263 | F38: -45.197501 | G38: -325.1207857 | H38: 100.7085314 | I38: =ThreePosition_Basic2($E$3,$E$5,$B$3:$C$3,$B$5:$C$5,B38,D38) -> -432.6465878 | J38: 126.4994197 | K38: 49.36788089 | L38: 23.29873494
A39: 15.5 | B39: 0.2705260341 | C39: =Burmester($B$3:$C$3,$B$4:$C$4,$B$5:$C$5,$E$3,$E$4,$E$5,B39) -> 0.7257612679 | D39: 4.972175741 | E39: =ThreePosition_Basic2($E$3,$E$5,$B$3:$C$3,$B$5:$C$5,B39,C39) -> -90.69879431 | F39: -45.79911154 | G39: -317.3684542 | H39: 97.49903104 | I39: =ThreePosition_Basic2($E$3,$E$5,$B$3:$C$3,$B$5:$C$5,B39,D39) -> -448.6657417 | J39: 132.1231737 | K39: 49.31183818 | L39: 23.37010243
A40: 16 | B40: 0.2792526803 | C40: =Burmester($B$3:$C$3,$B$4:$C$4,$B$5:$C$5,$E$3,$E$4,$E$5,B40) -> 0.7470539112 | D40: 4.972039431 | E40: =ThreePosition_Basic2($E$3,$E$5,$B$3:$C$3,$B$5:$C$5,B40,C40) -> -90.44005437 | F40: -46.39791229 | G40: -310.0756184 | H40: 94.45358826 | I40: =ThreePosition_Basic2($E$3,$E$5,$B$3:$C$3,$B$5:$C$5,B40,D40) -> -465.8219528 | J40: 138.1420798 | K40: 49.25758261 | L40: 23.4405023
A41: 16.5 | B41: 0.2879793266 | C41: =Burmester($B$3:$C$3,$B$4:$C$4,$B$5:$C$5,$E$3,$E$4,$E$5,B41) -> 0.768231116 | D41: 4.97192168 | E41: =ThreePosition_Basic2($E$3,$E$5,$B$3:$C$3,$B$5:$C$5,B41,C41) -> -90.17721964 | F41: -46.99388739 | G41: -303.2001857 | H41: 91.55757907 | I41: =ThreePosition_Basic2($E$3,$E$5,$B$3:$C$3,$B$5:$C$5,B41,D41) -> -484.2416631 | J41: 144.6001358 | K41: 49.20504769 | L41: 23.50997555
A42: 17 | B42: 0.2967059728 | C42: =Burmester($B$3:$C$3,$B$4:$C$4,$B$5:$C$5,$E$3,$E$4,$E$5,B42) -> 0.7892941261 | D42: 4.971821912 | E42: =ThreePosition_Basic2($E$3,$E$5,$B$3:$C$3,$B$5:$C$5,B42,C42) -> -89.91028851 | F42: -47.58701996 | G42: -296.7050138 | H42: 88.79810186 | I42: =ThreePosition_Basic2($E$3,$E$5,$B$3:$C$3,$B$5:$C$5,B42,D42) -> -504.0707622 | J42: 151.548103 | K42: 49.15417042 | L42: 23.57856117
A43: 17.5 | B43: 0.3054326191 | C43: =Burmester($B$3:$C$3,$B$4:$C$4,$B$5:$C$5,$E$3,$E$4,$E$5,B43) -> 0.8102441663 | D43: 4.971739577 | E43: =ThreePosition_Basic2($E$3,$E$5,$B$3:$C$3,$B$5:$C$5,B43,C43) -> -89.63926088 | F43: -48.17729216 | G43: -290.5572036 | H43: 86.16373142 | I43: =ThreePosition_Basic2($E$3,$E$5,$B$3:$C$3,$B$5:$C$5,B43,D43) -> -525.4784776 | J43: 159.0448593 | K43: 49.104891 | L43: 23.6462963
A44: 18 | B44: 0.3141592654 | C44: =Burmester($B$3:$C$3,$B$4:$C$4,$B$5:$C$5,$E$3,$E$4,$E$5,B44) -> 0.8310824439 | D44: 4.971674155 | E44: =ThreePosition_Basic2($E$3,$E$5,$B$3:$C$3,$B$5:$C$5,B44,C44) -> -89.36413804 | F44: -48.76468522 | G44: -284.7275109 | H44: 83.64431403 | I44: =ThreePosition_Basic2($E$3,$E$5,$B$3:$C$3,$B$5:$C$5,B44,D44) -> -548.6622365 | J44: 167.1590908 | K44: 49.05715266 | L44: 23.71321631
A45: 18.5 | B45: 0.3228859116 | C45: =Burmester($B$3:$C$3,$B$4:$C$4,$B$5:$C$5,$E$3,$E$4,$E$5,B45) -> 0.8518101497 | D45: 4.971625153 | E45: =ThreePosition_Basic2($E$3,$E$5,$B$3:$C$3,$B$5:$C$5,B45,C45) -> -89.08492268 | F45: -49.34917961 | G45: -279.1898519 | H45: 81.23079576 | I45: =ThreePosition_Basic2($E$3,$E$5,$B$3:$C$3,$B$5:$C$5,B45,D45) -> -573.853797 | J45: 175.971424 | K45: 49.01090147 | L45: 23.77935495
A46: 19 | B46: 0.3316125579 | C46: =Burmester($B$3:$C$3,$B$4:$C$4,$B$5:$C$5,$E$3,$E$4,$E$5,B46) -> 0.8724284586 | D46: 4.9715921 | E46: =ThreePosition_Basic2($E$3,$E$5,$B$3:$C$3,$B$5:$C$5,B46,C46) -> -88.80161874 | F46: -49.93075501 | G46: -273.9208881 | H46: 78.9150778 | I46: =ThreePosition_Basic2($E$3,$E$5,$B$3:$C$3,$B$5:$C$5,B46,D46) -> -601.3270505 | J46: 185.5771398 | K46: 48.96608615 | L46: 23.84474443
A47: 19.5 | B47: 0.3403392041 | C47: =Burmester($B$3:$C$3,$B$4:$C$4,$B$5:$C$5,$E$3,$E$4,$E$5,B47) -> 0.8929385303 | D47: 4.971574551 | E47: =ThreePosition_Basic2($E$3,$E$5,$B$3:$C$3,$B$5:$C$5,B47,C47) -> -88.51423142 | F47: -50.50939042 | G47: -268.8996744 | H47: 76.6898941 | I47: =ThreePosition_Basic2($E$3,$E$5,$B$3:$C$3,$B$5:$C$5,B47,D47) -> -631.4080541 | J47: 196.0896632 | K47: 48.92265793 | L47: 23.9094155
A48: 20 | B48: 0.3490658504 | C48: =Burmester($B$3:$C$3,$B$4:$C$4,$B$5:$C$5,$E$3,$E$4,$E$5,B48) -> 0.91334151 | D48: 4.971572082 | E48: =ThreePosition_Basic2($E$3,$E$5,$B$3:$C$3,$B$5:$C$5,B48,C48) -> -88.22276711 | F48: -51.08506419 | G48: -264.1073603 | H48: 74.54870738 | I48: =ThreePosition_Basic2($E$3,$E$5,$B$3:$C$3,$B$5:$C$5,B48,D48) -> -664.4880717 | J48: 207.6450992 | K48: 48.88057037 | L48: 23.97339757
A49: 20.5 | B49: 0.3577924967 | C49: =Burmester($B$3:$C$3,$B$4:$C$4,$B$5:$C$5,$E$3,$E$4,$E$5,B49) -> 0.9336385292 | D49: 4.97158429 | E49: =ThreePosition_Basic2($E$3,$E$5,$B$3:$C$3,$B$5:$C$5,B49,C49) -> -87.9272333 | F49: -51.65775409 | G49: -259.5269345 | H49: 72.48562024 | I49: =ThreePosition_Basic2($E$3,$E$5,$B$3:$C$3,$B$5:$C$5,B49,D49) -> -701.0407346 | J49: 220.4082018 | K49: 48.83977927 | L49: 24.03671876
A50: 21 | B50: 0.3665191429 | C50: =Burmester($B$3:$C$3,$B$4:$C$4,$B$5:$C$5,$E$3,$E$4,$E$5,B50) -> 0.953830706 | D50: 4.971610792 | E50: =ThreePosition_Basic2($E$3,$E$5,$B$3:$C$3,$B$5:$C$5,B50,C50) -> -87.6276386 | F50: -52.22743736 | G50: -255.143006 | H50: 70.49529911 | I50: =ThreePosition_Basic2($E$3,$E$5,$B$3:$C$3,$B$5:$C$5,B50,D50) -> -741.6449211 | J50: 234.5803324 | K50: 48.80024248 | L50: 24.099406
A51: 21.5 | B51: 0.3752457892 | C51: =Burmester($B$3:$C$3,$B$4:$C$4,$B$5:$C$5,$E$3,$E$4,$E$5,B51) -> 0.9739191455 | D51: 4.971651221 | E51: =ThreePosition_Basic2($E$3,$E$5,$B$3:$C$3,$B$5:$C$5,B51,C51) -> -87.32399264 | F51: -52.79409074 | G51: -250.941616 | H51: 68.5729087 | I51: =ThreePosition_Basic2($E$3,$E$5,$B$3:$C$3,$B$5:$C$5,B51,D51) -> -787.015712 | J51: 250.4102266 | K51: 48.76191981 | L51: 24.16148508
A52: 22 | B52: 0.3839724354 | C52: =Burmester($B$3:$C$3,$B$4:$C$4,$B$5:$C$5,$E$3,$E$4,$E$5,B52) -> 0.9939049404 | D52: 4.971705232 | E52: =ThreePosition_Basic2($E$3,$E$5,$B$3:$C$3,$B$5:$C$5,B52,C52) -> -87.01630607 | F52: -53.35769052 | G52: -246.9100756 | H52: 66.71405539 | I52: =ThreePosition_Basic2($E$3,$E$5,$B$3:$C$3,$B$5:$C$5,B52,D52) -> -838.0469544 | J52: 268.2087989 | K52: 48.72477293 | L52: 24.22298072
A53: 22.5 | B53: 0.3926990817 | C53: =Burmester($B$3:$C$3,$B$4:$C$4,$B$5:$C$5,$E$3,$E$4,$E$5,B53) -> 1.013789171 | D53: 4.971772492 | E53: =ThreePosition_Basic2($E$3,$E$5,$B$3:$C$3,$B$5:$C$5,B53,C53) -> -86.70459049 | F53: -53.91821258 | G53: -243.0368241 | H53: 64.91473824 | I53: =ThreePosition_Basic2($E$3,$E$5,$B$3:$C$3,$B$5:$C$5,B53,D53) -> -895.8708499 | J53: 288.3698697 | K53: 48.68876525 | L53: 24.28391664
A54: 23 | B54: 0.401425728 | C54: =Burmester($B$3:$C$3,$B$4:$C$4,$B$5:$C$5,$E$3,$E$4,$E$5,B54) -> 1.033572907 | D54: 4.971852687 | E54: =ThreePosition_Basic2($E$3,$E$5,$B$3:$C$3,$B$5:$C$5,B54,C54) -> -86.38885844 | F54: -54.47563245 | G54: -239.3113073 | H54: 63.17130628 | I54: =ThreePosition_Basic2($E$3,$E$5,$B$3:$C$3,$B$5:$C$5,B54,D54) -> -961.9430823 | J54: 311.3997745 | K54: 48.65386183 | L54: 24.34431562
A55: 23.5 | B55: 0.4101523742 | C55: =Burmester($B$3:$C$3,$B$4:$C$4,$B$5:$C$5,$E$3,$E$4,$E$5,B55) -> 1.053257204 | D55: 4.971945517 | E55: =ThreePosition_Basic2($E$3,$E$5,$B$3:$C$3,$B$5:$C$5,B55,C55) -> -86.06912336 | F55: -55.02992529 | G55: -235.7238699 | H55: 61.48042135 | I55: =ThreePosition_Basic2($E$3,$E$5,$B$3:$C$3,$B$5:$C$5,B55,D55) -> -1038.167234 | J55: 337.9606388 | K55: 48.62002927 | L55: 24.40419953
A56: 24 | B56: 0.4188790205 | C56: =Burmester($B$3:$C$3,$B$4:$C$4,$B$5:$C$5,$E$3,$E$4,$E$5,B56) -> 1.07284311 | D56: 4.972050695 | E56: =ThreePosition_Basic2($E$3,$E$5,$B$3:$C$3,$B$5:$C$5,B56,C56) -> -85.74539954 | F56: -55.58106598 | G56: -232.2656625 | H56: 59.8390255 | I56: =ThreePosition_Basic2($E$3,$E$5,$B$3:$C$3,$B$5:$C$5,B56,D56) -> -1127.081409 | J56: 368.935292 | K56: 48.58723565 | L56: 24.4635894
A57: 24.5 | B57: 0.4276056667 | C57: =Burmester($B$3:$C$3,$B$4:$C$4,$B$5:$C$5,$E$3,$E$4,$E$5,B57) -> 1.092331658 | D57: 4.972167949 | E57: =ThreePosition_Basic2($E$3,$E$5,$B$3:$C$3,$B$5:$C$5,B57,C57) -> -85.41770211 | F57: -56.12902911 | G57: -228.9285591 | H57: 58.24431244 | I57: =ThreePosition_Basic2($E$3,$E$5,$B$3:$C$3,$B$5:$C$5,B57,D57) -> -1232.146657 | J57: 405.5275861 | K57: 48.55545045 | L57: 24.52250545
A58: 25 | B58: 0.436332313 | C58: =Burmester($B$3:$C$3,$B$4:$C$4,$B$5:$C$5,$E$3,$E$4,$E$5,B58) -> 1.111723874 | D58: 4.972297018 | E58: =ThreePosition_Basic2($E$3,$E$5,$B$3:$C$3,$B$5:$C$5,B58,C58) -> -85.08604704 | F58: -56.67378905 | G58: -225.7050849 | H58: 56.69370237 | I58: =ThreePosition_Basic2($E$3,$E$5,$B$3:$C$3,$B$5:$C$5,B58,D58) -> -1358.208438 | J58: 449.4229088 | K58: 48.52464446 | L58: 24.58096715
A59: 25.5 | B59: 0.4450589593 | C59: =Burmester($B$3:$C$3,$B$4:$C$4,$B$5:$C$5,$E$3,$E$4,$E$5,B59) -> 1.13102077 | D59: 4.972437656 | E59: =ThreePosition_Basic2($E$3,$E$5,$B$3:$C$3,$B$5:$C$5,B59,C59) -> -84.75045103 | F59: -57.21531995 | G59: -222.5883527 | H59: 55.18481976 | I59: =ThreePosition_Basic2($E$3,$E$5,$B$3:$C$3,$B$5:$C$5,B59,D59) -> -1512.265749 | J59: 503.0557022 | K59: 48.49478972 | L59: 24.63899325
A60: 26 | B60: 0.4537856055 | C60: =Burmester($B$3:$C$3,$B$4:$C$4,$B$5:$C$5,$E$3,$E$4,$E$5,B60) -> 1.15022335 | D60: 4.972589625 | E60: =ThreePosition_Basic2($E$3,$E$5,$B$3:$C$3,$B$5:$C$5,B60,C60) -> -84.41093158 | F60: -57.75359575 | G60: -219.5720065 | H60: 53.71547377 | I60: =ThreePosition_Basic2($E$3,$E$5,$B$3:$C$3,$B$5:$C$5,B60,D60) -> -1704.817077 | J60: 570.0776233 | K60: 48.46585945 | L60: 24.69660183
A61: 26.5 | B61: 0.4625122518 | C61: =Burmester($B$3:$C$3,$B$4:$C$4,$B$5:$C$5,$E$3,$E$4,$E$5,B61) -> 1.169332606 | D61: 4.972752701 | E61: =ThreePosition_Basic2($E$3,$E$5,$B$3:$C$3,$B$5:$C$5,B61,C61) -> -84.06750691 | F61: -58.28859026 | G61: -216.6501712 | H61: 52.28364079 | I61: =ThreePosition_Basic2($E$3,$E$5,$B$3:$C$3,$B$5:$C$5,B61,D61) -> -1952.360043 | J61: 656.2269827 | K61: 48.43782801 | L61: 24.75381031
A62: 27 | B62: 0.471238898 | C62: =Burmester($B$3:$C$3,$B$4:$C$4,$B$5:$C$5,$E$3,$E$4,$E$5,B62) -> 1.18834952 | D62: 4.972926668 | E62: =ThreePosition_Basic2($E$3,$E$5,$B$3:$C$3,$B$5:$C$5,B62,C62) -> -83.72019595 | F62: -58.82027712 | G62: -213.8174084 | H62: 50.88744896 | I62: =ThreePosition_Basic2($E$3,$E$5,$B$3:$C$3,$B$5:$C$5,B62,D62) -> -2282.390669 | J62: 771.0676234 | K62: 48.41067082 | L62: 24.81063552
A63: 27.5 | B63: 0.4799655443 | C63: =Burmester($B$3:$C$3,$B$4:$C$4,$B$5:$C$5,$E$3,$E$4,$E$5,B63) -> 1.207275066 | D63: 4.973111321 | E63: =ThreePosition_Basic2($E$3,$E$5,$B$3:$C$3,$B$5:$C$5,B63,C63) -> -83.36901834 | F63: -59.34862987 | G63: -211.0686769 | H63: 49.52516441 | I63: =ThreePosition_Basic2($E$3,$E$5,$B$3:$C$3,$B$5:$C$5,B63,D63) -> -2744.401795 | J63: 931.8144534 | K63: 48.3843643 | L63: 24.86709371
A64: 28 | B64: 0.4886921906 | C64: =Burmester($B$3:$C$3,$B$4:$C$4,$B$5:$C$5,$E$3,$E$4,$E$5,B64) -> 1.226110205 | D64: 4.973306467 | E64: =ThreePosition_Basic2($E$3,$E$5,$B$3:$C$3,$B$5:$C$5,B64,C64) -> -83.01399437 | F64: -59.87362195 | G64: -208.3992968 | H64: 48.19517888 | I64: =ThreePosition_Basic2($E$3,$E$5,$B$3:$C$3,$B$5:$C$5,B64,D64) -> -3437.379086 | J64: 1172.897278 | K64: 48.35888585 | L64: 24.92320056
A65: 28.5 | B65: 0.4974188368 | C65: =Burmester($B$3:$C$3,$B$4:$C$4,$B$5:$C$5,$E$3,$E$4,$E$5,B65) -> 1.24485589 | D65: 4.973511918 | E65: =ThreePosition_Basic2($E$3,$E$5,$B$3:$C$3,$B$5:$C$5,B65,C65) -> -82.655145 | F65: -60.39522672 | G65: -205.8049182 | H65: 46.89599875 | I65: =ThreePosition_Basic2($E$3,$E$5,$B$3:$C$3,$B$5:$C$5,B65,D65) -> -4592.289085 | J65: 1574.652293 | K65: 48.33421378 | L65: 24.97897125
A66: 29 | B66: 0.5061454831 | C66: =Burmester($B$3:$C$3,$B$4:$C$4,$B$5:$C$5,$E$3,$E$4,$E$5,B66) -> 1.263513063 | D66: 4.973727496 | E66: =ThreePosition_Basic2($E$3,$E$5,$B$3:$C$3,$B$5:$C$5,B66,C66) -> -82.29249184 | F66: -60.9134175 | G66: -203.2814931 | H66: 45.62623511 | I66: =ThreePosition_Basic2($E$3,$E$5,$B$3:$C$3,$B$5:$C$5,B66,D66) -> -6902.03141 | J66: 2378.088068 | K66: 48.31032728 | L66: 25.03442046
A67: 29.5 | B67: 0.5148721293 | C67: =Burmester($B$3:$C$3,$B$4:$C$4,$B$5:$C$5,$E$3,$E$4,$E$5,B67) -> 1.282082657 | D67: 4.973953033 | E67: =ThreePosition_Basic2($E$3,$E$5,$B$3:$C$3,$B$5:$C$5,B67,C67) -> -81.92605709 | F67: -61.42816754 | G67: -200.8252491 | H67: 44.38459492 | I67: =ThreePosition_Basic2($E$3,$E$5,$B$3:$C$3,$B$5:$C$5,B67,D67) -> -13831.10411 | J67: 4788.247412 | K67: 48.28720636 | L67: 25.08956241
A68: 30 | B68: 0.5235987756 | C68: =Burmester($B$3:$C$3,$B$4:$C$4,$B$5:$C$5,$E$3,$E$4,$E$5,B68) -> 1.300565595 | D68: 4.974188368 | E68: =ThreePosition_Basic2($E$3,$E$5,$B$3:$C$3,$B$5:$C$5,B68,C68) -> -81.55586357 | F68: -61.93945009 | G68: -198.4326674 | H68: 43.16987298 | I68: =ThreePosition_Basic2($E$3,$E$5,$B$3:$C$3,$B$5:$C$5,B68,D68) -> -4.192483023e+17 | J68: 2.155303358e+17 | K68: -64 | L68: 128
A69: 30.5 | B69: 0.5323254219 | C69: =Burmester($B$3:$C$3,$B$4:$C$4,$B$5:$C$5,$E$3,$E$4,$E$5,B69) -> 1.318962791 | D69: 4.974433347 | E69: =ThreePosition_Basic2($E$3,$E$5,$B$3:$C$3,$B$5:$C$5,B69,C69) -> -81.18193472 | F69: -62.44723839 | G69: -196.1004612 | H69: 41.98094474 | I69: =ThreePosition_Basic2($E$3,$E$5,$B$3:$C$3,$B$5:$C$5,B69,D69) -> 13884.72804 | J69: -4851.947927 | K69: 48.24318523 | L69: 25.19897916
A70: 31 | B70: 0.5410520681 | C70: =Burmester($B$3:$C$3,$B$4:$C$4,$B$5:$C$5,$E$3,$E$4,$E$5,B70) -> 1.337275147 | D70: 4.974687823 | E70: =ThreePosition_Basic2($E$3,$E$5,$B$3:$C$3,$B$5:$C$5,B70,C70) -> -80.8042945 | F70: -62.95150571 | G70: -193.8255578 | H70: 40.81675977 | I70: =ThreePosition_Basic2($E$3,$E$5,$B$3:$C$3,$B$5:$C$5,B70,D70) -> 6955.65635 | J70: -2441.789016 | K70: 48.22224887 | L70: 25.25328025
A71: 31.5 | B71: 0.5497787144 | C71: =Burmester($B$3:$C$3,$B$4:$C$4,$B$5:$C$5,$E$3,$E$4,$E$5,B71) -> 1.355503558 | D71: 4.974951658 | E71: =ThreePosition_Basic2($E$3,$E$5,$B$3:$C$3,$B$5:$C$5,B71,C71) -> -80.42296747 | F71: -63.4522253 | G71: -191.6050809 | H71: 39.6763359 | I71: =ThreePosition_Basic2($E$3,$E$5,$B$3:$C$3,$B$5:$C$5,B71,D71) -> 4645.915709 | J71: -1638.353961 | K71: 48.2020057 | L71: 25.30732669
A72: 32 | B72: 0.5585053606 | C72: =Burmester($B$3:$C$3,$B$4:$C$4,$B$5:$C$5,$E$3,$E$4,$E$5,B72) -> 1.37364891 | D72: 4.975224718 | E72: =ThreePosition_Basic2($E$3,$E$5,$B$3:$C$3,$B$5:$C$5,B72,C72) -> -80.03797874 | F72: -63.94937049 | G72: -189.4363362 | H72: 38.55875383 | I72: =ThreePosition_Basic2($E$3,$E$5,$B$3:$C$3,$B$5:$C$5,B72,D72) -> 3491.008069 | J72: -1236.599958 | K72: 48.18243934 | L72: 25.36113068
A73: 32.5 | B73: =A73*PI()/180 -> 0.5672320069 | C73: =Burmester($B$3:$C$3,$B$4:$C$4,$B$5:$C$5,$E$3,$E$4,$E$5,B73) -> 1.391712076 | D73: 4.975506878 | E73: =ThreePosition_Basic2($E$3,$E$5,$B$3:$C$3,$B$5:$C$5,B73,C73) -> -79.64935394 | F73: -64.44291466 | G73: -187.3167964 | H73: 37.4631523 | I73: =ThreePosition_Basic2($E$3,$E$5,$B$3:$C$3,$B$5:$C$5,B73,D73) -> 2798.033815 | J73: -995.5184373 | K73: 48.16353404 | L73: 25.41470406
A74: 33 | B74: 0.5759586532 | C74: =Burmester($B$3:$C$3,$B$4:$C$4,$B$5:$C$5,$E$3,$E$4,$E$5,B74) -> 1.409693923 | D74: 4.975798018 | E74: =ThreePosition_Basic2($E$3,$E$5,$B$3:$C$3,$B$5:$C$5,B74,C74) -> -79.25711924 | F74: -64.93283123 | G74: -185.2440897 | H74: 36.38872371 | I74: =ThreePosition_Basic2($E$3,$E$5,$B$3:$C$3,$B$5:$C$5,B74,D74) -> 2336.026406 | J74: -834.7732049 | K74: 48.14527465 | L74: 25.46805836
A75: 33.5 | B75: 0.5846852994 | C75: =Burmester($B$3:$C$3,$B$4:$C$4,$B$5:$C$5,$E$3,$E$4,$E$5,B75) -> 1.427595306 | D75: 4.976098024 | E75: =ThreePosition_Basic2($E$3,$E$5,$B$3:$C$3,$B$5:$C$5,B75,C75) -> -78.86130131 | F75: -65.41909372 | G75: -183.2159872 | H75: 35.33471006 | I75: =ThreePosition_Basic2($E$3,$E$5,$B$3:$C$3,$B$5:$C$5,B75,D75) -> 2006.000179 | J75: -719.9344588 | K75: 48.12764658 | L75: 25.52120478
A76: 34 | B76: 0.5934119457 | C76: =Burmester($B$3:$C$3,$B$4:$C$4,$B$5:$C$5,$E$3,$E$4,$E$5,B76) -> 1.445417074 | D76: 4.976406787 | E76: =ThreePosition_Basic2($E$3,$E$5,$B$3:$C$3,$B$5:$C$5,B76,C76) -> -78.46192733 | F76: -65.90167575 | G76: -181.2303931 | H76: 34.30039929 | I76: =ThreePosition_Basic2($E$3,$E$5,$B$3:$C$3,$B$5:$C$5,B76,D76) -> 1758.4623 | J76: -633.7872941 | K76: 48.11063581 | L76: 25.57415424
A77: 34.5 | B77: 0.6021385919 | C77: =Burmester($B$3:$C$3,$B$4:$C$4,$B$5:$C$5,$E$3,$E$4,$E$5,B77) -> 1.463160063 | D77: 4.976724205 | E77: =ThreePosition_Basic2($E$3,$E$5,$B$3:$C$3,$B$5:$C$5,B77,C77) -> -78.05902497 | F77: -66.38055103 | G77: -179.2853349 | H77: 33.28512198 | I77: =ThreePosition_Basic2($E$3,$E$5,$B$3:$C$3,$B$5:$C$5,B77,D77) -> 1565.916747 | J77: -566.7678717 | K77: 48.0942288 | L77: 25.62691736
A78: 35 | B78: 0.6108652382 | C78: =Burmester($B$3:$C$3,$B$4:$C$4,$B$5:$C$5,$E$3,$E$4,$E$5,B78) -> 1.480825101 | D78: 4.97705018 | E78: =ThreePosition_Basic2($E$3,$E$5,$B$3:$C$3,$B$5:$C$5,B78,C78) -> -77.65262239 | F78: -66.85569337 | G78: -177.3789545 | H78: 32.28824822 | I78: =ThreePosition_Basic2($E$3,$E$5,$B$3:$C$3,$B$5:$C$5,B78,D78) -> 1411.865908 | J78: -513.1378851 | K78: 48.07841257 | L78: 25.67950451
A79: 35.5 | B79: 0.6195918845 | C79: =Burmester($B$3:$C$3,$B$4:$C$4,$B$5:$C$5,$E$3,$E$4,$E$5,B79) -> 1.498413008 | D79: 4.977384621 | E79: =ThreePosition_Basic2($E$3,$E$5,$B$3:$C$3,$B$5:$C$5,B79,C79) -> -77.24274822 | F79: -67.32707675 | G79: -175.5095004 | H79: 31.30918489 | I79: =ThreePosition_Basic2($E$3,$E$5,$B$3:$C$3,$B$5:$C$5,B79,D79) -> 1285.811298 | J79: -469.2456824 | K79: 48.06317457 | L79: 25.73192577
A80: 36 | B80: 0.6283185307 | C80: =Burmester($B$3:$C$3,$B$4:$C$4,$B$5:$C$5,$E$3,$E$4,$E$5,B80) -> 1.515924594 | D80: 4.977727439 | E80: =ThreePosition_Basic2($E$3,$E$5,$B$3:$C$3,$B$5:$C$5,B80,C80) -> -76.82943154 | F80: -67.79467523 | G80: -173.6753202 | H80: 30.34737301 | I80: =ThreePosition_Basic2($E$3,$E$5,$B$3:$C$3,$B$5:$C$5,B80,D80) -> 1180.753928 | J80: -432.6568266 | K80: 48.04850273 | L80: 25.784191
A81: 36.5 | B81: 0.637045177 | C81: =Burmester($B$3:$C$3,$B$4:$C$4,$B$5:$C$5,$E$3,$E$4,$E$5,B81) -> 1.533360658 | D81: 4.978078552 | E81: =ThreePosition_Basic2($E$3,$E$5,$B$3:$C$3,$B$5:$C$5,B81,C81) -> -76.4127019 | F81: -68.25846305 | G81: -171.8748539 | H81: 29.40228547 | I81: =ThreePosition_Basic2($E$3,$E$5,$B$3:$C$3,$B$5:$C$5,B81,D81) -> 1091.848343 | J81: -401.6859363 | K81: 48.03438544 | L81: 25.83630983
A82: 37 | B82: 0.6457718232 | C82: =Burmester($B$3:$C$3,$B$4:$C$4,$B$5:$C$5,$E$3,$E$4,$E$5,B82) -> 1.550721993 | D82: 4.978437882 | E82: =ThreePosition_Basic2($E$3,$E$5,$B$3:$C$3,$B$5:$C$5,B82,C82) -> -75.99258928 | F82: -68.7184146 | G82: -170.1066274 | H82: 28.47342476 | I82: =ThreePosition_Basic2($E$3,$E$5,$B$3:$C$3,$B$5:$C$5,B82,D82) -> 1015.633502 | J82: -375.1291658 | K82: 48.02081148 | L82: 25.88829166
A83: 37.5 | B83: 0.6544984695 | C83: =Burmester($B$3:$C$3,$B$4:$C$4,$B$5:$C$5,$E$3,$E$4,$E$5,B83) -> 1.56800938 | D83: 4.978805356 | E83: =ThreePosition_Basic2($E$3,$E$5,$B$3:$C$3,$B$5:$C$5,B83,C83) -> -75.56912412 | F83: -69.17450443 | G83: -168.3692474 | H83: 27.56032107 | I83: =ThreePosition_Basic2($E$3,$E$5,$B$3:$C$3,$B$5:$C$5,B83,D83) -> 949.571307 | J83: -352.1036932 | K83: 48.00777005 | L83: 25.94014568
A84: 38 | B84: 0.6632251158 | C84: =Burmester($B$3:$C$3,$B$4:$C$4,$B$5:$C$5,$E$3,$E$4,$E$5,B84) -> 1.585223592 | D84: 4.979180904 | E84: =ThreePosition_Basic2($E$3,$E$5,$B$3:$C$3,$B$5:$C$5,B84,C84) -> -75.14233727 | F84: -69.62670726 | G84: -166.6613955 | H84: 26.6625304 | I84: =ThreePosition_Basic2($E$3,$E$5,$B$3:$C$3,$B$5:$C$5,B84,D84) -> 891.758185 | J84: -331.9474006 | K84: 47.99525075 | L84: 25.99188087
A85: 38.5 | B85: 0.671951762 | C85: =Burmester($B$3:$C$3,$B$4:$C$4,$B$5:$C$5,$E$3,$E$4,$E$5,B85) -> 1.602365394 | D85: 4.979564462 | E85: =ThreePosition_Basic2($E$3,$E$5,$B$3:$C$3,$B$5:$C$5,B85,C85) -> -74.71226 | F85: -70.07499799 | G85: -164.9818238 | H85: 25.77963288 | I85: =ThreePosition_Basic2($E$3,$E$5,$B$3:$C$3,$B$5:$C$5,B85,D85) -> 840.7384613 | J85: -314.153961 | K85: 47.98324355 | L85: 26.04350604
A86: 39 | B86: 0.6806784083 | C86: =Burmester($B$3:$C$3,$B$4:$C$4,$B$5:$C$5,$E$3,$E$4,$E$5,B86) -> 1.619435539 | D86: 4.979955967 | E86: =ThreePosition_Basic2($E$3,$E$5,$B$3:$C$3,$B$5:$C$5,B86,C86) -> -74.27892401 | F86: -70.51935173 | G86: -163.3293499 | H86: 24.9112312 | I86: =ThreePosition_Basic2($E$3,$E$5,$B$3:$C$3,$B$5:$C$5,B86,D86) -> 795.3799441 | J86: -298.3295634 | K86: 47.97173876 | L86: 26.09502979
A87: 39.5 | B87: 0.6894050545 | C87: =Burmester($B$3:$C$3,$B$4:$C$4,$B$5:$C$5,$E$3,$E$4,$E$5,B87) -> 1.636434776 | D87: 4.980355364 | E87: =ThreePosition_Basic2($E$3,$E$5,$B$3:$C$3,$B$5:$C$5,B87,C87) -> -73.8423614 | F87: -70.95974376 | G87: -161.7028536 | H87: 24.05694917 | I87: =ThreePosition_Basic2($E$3,$E$5,$B$3:$C$3,$B$5:$C$5,B87,D87) -> 754.7887969 | J87: -284.1633028 | K87: 47.96072706 | L87: 26.14646058
A88: 40 | B88: 0.6981317008 | C88: =Burmester($B$3:$C$3,$B$4:$C$4,$B$5:$C$5,$E$3,$E$4,$E$5,B88) -> 1.653363839 | D88: 4.980762599 | E88: =ThreePosition_Basic2($E$3,$E$5,$B$3:$C$3,$B$5:$C$5,B88,C88) -> -73.40260465 | F88: -71.39614958 | G88: -160.101272 | H88: 23.21643037 | I88: =ThreePosition_Basic2($E$3,$E$5,$B$3:$C$3,$B$5:$C$5,B88,D88) -> 718.2499505 | J88: -271.4064545 | K88: 47.95019946 | L88: 26.19780667
A89: 40.5 | B89: 0.7068583471 | C89: =Burmester($B$3:$C$3,$B$4:$C$4,$B$5:$C$5,$E$3,$E$4,$E$5,B89) -> 1.670223457 | D89: 4.981177622 | E89: =ThreePosition_Basic2($E$3,$E$5,$B$3:$C$3,$B$5:$C$5,B89,C89) -> -72.95968667 | F89: -71.8285449 | G89: -158.523597 | H89: 22.38933694 | I89: =ThreePosition_Basic2($E$3,$E$5,$B$3:$C$3,$B$5:$C$5,B89,D89) -> 685.1845387 | J89: -259.8576686 | K89: 47.94014727 | L89: 26.2490762
A90: 41 | B90: 0.7155849933 | C90: =Burmester($B$3:$C$3,$B$4:$C$4,$B$5:$C$5,$E$3,$E$4,$E$5,B90) -> 1.68701435 | D90: 4.981600386 | E90: =ThreePosition_Basic2($E$3,$E$5,$B$3:$C$3,$B$5:$C$5,B90,C90) -> -72.51364072 | F90: -72.25690566 | G90: -156.9688711 | H90: 21.57534838 | I90: =ThreePosition_Basic2($E$3,$E$5,$B$3:$C$3,$B$5:$C$5,B90,D90) -> 655.1189434 | J90: -249.3522033 | K90: 47.93056215 | L90: 26.30027714
A91: 41.5 | B91: 0.7243116396 | C91: =Burmester($B$3:$C$3,$B$4:$C$4,$B$5:$C$5,$E$3,$E$4,$E$5,B91) -> 1.703737226 | D91: 4.982030851 | E91: =ThreePosition_Basic2($E$3,$E$5,$B$3:$C$3,$B$5:$C$5,B91,C91) -> -72.06450045 | F91: -72.68120801 | G91: -155.436185 | H91: 20.77416053 | I91: =ThreePosition_Basic2($E$3,$E$5,$B$3:$C$3,$B$5:$C$5,B91,D91) -> 627.6619146 | J91: -239.7539665 | K91: 47.921436 | L91: 26.35141731
A92: 42 | B92: 0.7330382858 | C92: =Burmester($B$3:$C$3,$B$4:$C$4,$B$5:$C$5,$E$3,$E$4,$E$5,B92) -> 1.720392789 | D92: 4.982468975 | E92: =ThreePosition_Basic2($E$3,$E$5,$B$3:$C$3,$B$5:$C$5,B92,C92) -> -71.6122999 | F92: -73.10142834 | G92: -153.9246745 | H92: 19.98548457 | I92: =ThreePosition_Basic2($E$3,$E$5,$B$3:$C$3,$B$5:$C$5,B92,D92) -> 602.4874103 | J92: -230.9495475 | K92: 47.91276106 | L92: 26.40250442
A93: 42.5 | B93: 0.7417649321 | C93: =Burmester($B$3:$C$3,$B$4:$C$4,$B$5:$C$5,$E$3,$E$4,$E$5,B93) -> 1.73698173 | D93: 4.982914724 | E93: =ThreePosition_Basic2($E$3,$E$5,$B$3:$C$3,$B$5:$C$5,B93,C93) -> -71.15707346 | F93: -73.51754329 | G93: -152.4335179 | H93: 19.20904607 | I93: =ThreePosition_Basic2($E$3,$E$5,$B$3:$C$3,$B$5:$C$5,B93,D93) -> 579.321555 | J93: -222.8436801 | K93: 47.90452981 | L93: 26.45354603
A94: 43 | B94: 0.7504915784 | C94: =Burmester($B$3:$C$3,$B$4:$C$4,$B$5:$C$5,$E$3,$E$4,$E$5,B94) -> 1.753504733 | D94: 4.983368065 | E94: =ThreePosition_Basic2($E$3,$E$5,$B$3:$C$3,$B$5:$C$5,B94,C94) -> -70.69885588 | F94: -73.92952973 | G94: -150.9619333 | H94: 18.44458416 | I94: =ThreePosition_Basic2($E$3,$E$5,$B$3:$C$3,$B$5:$C$5,B94,D94) -> 557.9326077 | J94: -215.355754 | K94: 47.89673501 | L94: 26.5045496
A95: 43.5 | B95: 0.7592182246 | C95: =Burmester($B$3:$C$3,$B$4:$C$4,$B$5:$C$5,$E$3,$E$4,$E$5,B95) -> 1.769962473 | D95: 4.983828968 | E95: =ThreePosition_Basic2($E$3,$E$5,$B$3:$C$3,$B$5:$C$5,B95,C95) -> -70.23768227 | F95: -74.33736481 | G95: -149.509177 | H95: 17.69185073 | I95: =ThreePosition_Basic2($E$3,$E$5,$B$3:$C$3,$B$5:$C$5,B95,D95) -> 538.1231592 | J95: -208.4171 | K95: 47.88936967 | L95: 26.55552246
A96: 44 | B96: 0.7679448709 | C96: =Burmester($B$3:$C$3,$B$4:$C$4,$B$5:$C$5,$E$3,$E$4,$E$5,B96) -> 1.786355616 | D96: 4.984297407 | E96: =ThreePosition_Basic2($E$3,$E$5,$B$3:$C$3,$B$5:$C$5,B96,C96) -> -69.77358808 | F96: -74.74102592 | G96: -148.0745404 | H96: 16.95060968 | I96: =ThreePosition_Basic2($E$3,$E$5,$B$3:$C$3,$B$5:$C$5,B96,D96) -> 519.7240013 | J96: -201.9688583 | K96: 47.88242705 | L96: 26.60647185
A97: 44.5 | B97: 0.7766715171 | C97: =Burmester($B$3:$C$3,$B$4:$C$4,$B$5:$C$5,$E$3,$E$4,$E$5,B97) -> 1.802684821 | D97: 4.984773357 | E97: =ThreePosition_Basic2($E$3,$E$5,$B$3:$C$3,$B$5:$C$5,B97,C97) -> -69.30660913 | F97: -75.14049072 | G97: -146.6573491 | H97: 16.22063622 | I97: =ThreePosition_Basic2($E$3,$E$5,$B$3:$C$3,$B$5:$C$5,B97,D97) -> 502.589265 | J97: -195.9602871 | K97: 47.87590065 | L97: 26.65740487
A98: 45 | B98: 0.7853981634 | C98: =Burmester($B$3:$C$3,$B$4:$C$4,$B$5:$C$5,$E$3,$E$4,$E$5,B98) -> 1.818950737 | D98: 4.985256799 | E98: =ThreePosition_Basic2($E$3,$E$5,$B$3:$C$3,$B$5:$C$5,B98,C98) -> -68.83678154 | F98: -75.53573713 | G98: -145.2569599 | H98: 15.50171623 | I98: =ThreePosition_Basic2($E$3,$E$5,$B$3:$C$3,$B$5:$C$5,B98,D98) -> 486.59253 | J98: -190.3474091 | K98: 47.86978421 | L98: 26.70832857
A99: 45.5 | B99: 0.7941248097 | C99: =Burmester($B$3:$C$3,$B$4:$C$4,$B$5:$C$5,$E$3,$E$4,$E$5,B99) -> 1.835154003 | D99: 4.985747715 | E99: =ThreePosition_Basic2($E$3,$E$5,$B$3:$C$3,$B$5:$C$5,B99,C99) -> -68.36414179 | F99: -75.92674337 | G99: -143.8727602 | H99: 14.79364564 | I99: =ThreePosition_Basic2($E$3,$E$5,$B$3:$C$3,$B$5:$C$5,B99,D99) -> 471.6236885 | J99: -185.0919212 | K99: 47.86407167 | L99: 26.75924988
A100: 46 | B100: 0.8028514559 | C100: =Burmester($B$3:$C$3,$B$4:$C$4,$B$5:$C$5,$E$3,$E$4,$E$5,B100) -> 1.851295254 | D100: 4.986246089 | E100: =ThreePosition_Basic2($E$3,$E$5,$B$3:$C$3,$B$5:$C$5,B100,C100) -> -67.88872668 | F100: -76.31348794 | G100: -142.5041654 | H100: 14.0962299 | I100: =ThreePosition_Basic2($E$3,$E$5,$B$3:$C$3,$B$5:$C$5,B100,D100) -> 457.586396 | J100: -180.1603074 | K100: 47.8587572 | L100: 26.81017565
A101: 46.5 | B101: 0.8115781022 | C101: =Burmester($B$3:$C$3,$B$4:$C$4,$B$5:$C$5,$E$3,$E$4,$E$5,B101) -> 1.867375111 | D101: 4.98675191 | E101: =ThreePosition_Basic2($E$3,$E$5,$B$3:$C$3,$B$5:$C$5,B101,C101) -> -67.41057333 | F101: -76.6959496 | G101: -141.1506182 | H101: 13.40928339 | I101: =ThreePosition_Basic2($E$3,$E$5,$B$3:$C$3,$B$5:$C$5,B101,D101) -> 444.3959858 | J101: -175.5231137 | K101: 47.85383518 | L101: 26.86111265
A102: 47 | B102: 0.8203047484 | C102: =Burmester($B$3:$C$3,$B$4:$C$4,$B$5:$C$5,$E$3,$E$4,$E$5,B102) -> 1.883394191 | D102: 4.987265168 | E102: =ThreePosition_Basic2($E$3,$E$5,$B$3:$C$3,$B$5:$C$5,B102,C102) -> -66.92971917 | F102: -77.07410743 | G102: -139.8115864 | H102: 12.73262899 | I102: =ThreePosition_Basic2($E$3,$E$5,$B$3:$C$3,$B$5:$C$5,B102,D102) -> 431.9777524 | J102: -171.1543506 | K102: 47.84930018 | L102: 26.91206758
A103: 47.5 | B103: 0.8290313947 | C103: =Burmester($B$3:$C$3,$B$4:$C$4,$B$5:$C$5,$E$3,$E$4,$E$5,B103) -> 1.8993531 | D103: 4.987785856 | E103: =ThreePosition_Basic2($E$3,$E$5,$B$3:$C$3,$B$5:$C$5,B103,C103) -> -66.44620197 | F103: -77.44794081 | G103: -138.4865623 | H103: 12.06609757 | I103: =ThreePosition_Basic2($E$3,$E$5,$B$3:$C$3,$B$5:$C$5,B103,D103) -> 420.2655274 | J103: -167.0309983 | K103: 47.84514697 | L103: 26.96304704
A104: 48 | B104: 0.837758041 | C104: =Burmester($B$3:$C$3,$B$4:$C$4,$B$5:$C$5,$E$3,$E$4,$E$5,B104) -> 1.915252438 | D104: 4.988313969 | E104: =ThreePosition_Basic2($E$3,$E$5,$B$3:$C$3,$B$5:$C$5,B104,C104) -> -65.96005976 | F104: -77.8174294 | G104: -137.175061 | H104: 11.40952754 | I104: =ThreePosition_Basic2($E$3,$E$5,$B$3:$C$3,$B$5:$C$5,B104,D104) -> 409.200495 | J104: -163.1325944 | K104: 47.84137051 | L104: 27.01405761
A105: 48.5 | B105: 0.8464846872 | C105: =Burmester($B$3:$C$3,$B$4:$C$4,$B$5:$C$5,$E$3,$E$4,$E$5,B105) -> 1.931092794 | D105: 4.988849506 | E105: =ThreePosition_Basic2($E$3,$E$5,$B$3:$C$3,$B$5:$C$5,B105,C105) -> -65.47133093 | F105: -78.1825532 | G105: -135.8766193 | H105: 10.76276451 | I105: =ThreePosition_Basic2($E$3,$E$5,$B$3:$C$3,$B$5:$C$5,B105,D105) -> 398.7301975 | J105: -159.4408878 | K105: 47.83796595 | L105: 27.06510577
A106: 49 | B106: 0.8552113335 | C106: =Burmester($B$3:$C$3,$B$4:$C$4,$B$5:$C$5,$E$3,$E$4,$E$5,B106) -> 1.946874751 | D106: 4.989392468 | E106: =ThreePosition_Basic2($E$3,$E$5,$B$3:$C$3,$B$5:$C$5,B106,C106) -> -64.98005411 | F106: -78.5432925 | G106: -134.5907949 | H106: 10.12566081 | I106: =ThreePosition_Basic2($E$3,$E$5,$B$3:$C$3,$B$5:$C$5,B106,D106) -> 388.807699 | J106: -155.9395483 | K106: 47.83492859 | L106: 27.11619796
A107: 49.5 | B107: 0.8639379797 | C107: =Burmester($B$3:$C$3,$B$4:$C$4,$B$5:$C$5,$E$3,$E$4,$E$5,B107) -> 1.962598882 | D107: 4.989942857 | E107: =ThreePosition_Basic2($E$3,$E$5,$B$3:$C$3,$B$5:$C$5,B107,C107) -> -64.48626828 | F107: -78.8996279 | G107: -133.3171648 | H107: 9.498075221 | I107: =ThreePosition_Basic2($E$3,$E$5,$B$3:$C$3,$B$5:$C$5,B107,D107) -> 379.3908776 | J107: -152.6139199 | K107: 47.83225394 | L107: 27.16734054
A108: 50 | B108: 0.872664626 | C108: =Burmester($B$3:$C$3,$B$4:$C$4,$B$5:$C$5,$E$3,$E$4,$E$5,B108) -> 1.978265754 | D108: 4.990500679 | E108: =ThreePosition_Basic2($E$3,$E$5,$B$3:$C$3,$B$5:$C$5,B108,C108) -> -63.99001265 | F108: -79.25154036 | G108: -132.0553248 | H108: 8.879872559 | I108: =ThreePosition_Basic2($E$3,$E$5,$B$3:$C$3,$B$5:$C$5,B108,D108) -> 370.4418237 | J108: -149.4508118 | K108: 47.82993764 | L108: 27.21853987
A109: 50.5 | B109: 0.8813912723 | C109: =Burmester($B$3:$C$3,$B$4:$C$4,$B$5:$C$5,$E$3,$E$4,$E$5,B109) -> 1.993875925 | D109: 4.991065942 | E109: =ThreePosition_Basic2($E$3,$E$5,$B$3:$C$3,$B$5:$C$5,B109,C109) -> -63.49132676 | F109: -79.59901112 | G109: -130.8048885 | H109: 8.270923399 | I109: =ThreePosition_Basic2($E$3,$E$5,$B$3:$C$3,$B$5:$C$5,B109,D109) -> 361.9263261 | J109: -146.4383197 | K109: 47.82797552 | L109: 27.2698022
A110: 51 | B110: 0.8901179185 | C110: =Burmester($B$3:$C$3,$B$4:$C$4,$B$5:$C$5,$E$3,$E$4,$E$5,B110) -> 2.009429943 | D110: 4.991638657 | E110: =ThreePosition_Basic2($E$3,$E$5,$B$3:$C$3,$B$5:$C$5,B110,C110) -> -62.99025041 | F110: -79.94202179 | G110: -129.5654864 | H110: 7.671103761 | I110: =ThreePosition_Basic2($E$3,$E$5,$B$3:$C$3,$B$5:$C$5,B110,D110) -> 353.8134318 | J110: -143.5656726 | K110: 47.82636354 | L110: 27.3211338
A111: 51.5 | B111: 0.8988445648 | C111: =Burmester($B$3:$C$3,$B$4:$C$4,$B$5:$C$5,$E$3,$E$4,$E$5,B111) -> 2.024928352 | D111: 4.992218835 | E111: =ThreePosition_Basic2($E$3,$E$5,$B$3:$C$3,$B$5:$C$5,B111,C111) -> -62.48682368 | F111: -80.2805543 | G111: -128.3367649 | H111: 7.080294822 | I111: =ThreePosition_Basic2($E$3,$E$5,$B$3:$C$3,$B$5:$C$5,B111,D111) -> 346.0750671 | J111: -140.8231007 | K111: 47.82509783 | L111: 27.37254085
A112: 52 | B112: 0.907571211 | C112: =Burmester($B$3:$C$3,$B$4:$C$4,$B$5:$C$5,$E$3,$E$4,$E$5,B112) -> 2.040371685 | D112: 4.992806492 | E112: =ThreePosition_Basic2($E$3,$E$5,$B$3:$C$3,$B$5:$C$5,B112,C112) -> -61.98108692 | F112: -80.61459091 | G112: -127.1183859 | H112: 6.498382649 | I112: =ThreePosition_Basic2($E$3,$E$5,$B$3:$C$3,$B$5:$C$5,B112,D112) -> 338.6857107 | J112: -138.2017222 | K112: 47.82417465 | L112: 27.42402953
A113: 52.5 | B113: 0.9162978573 | C113: =Burmester($B$3:$C$3,$B$4:$C$4,$B$5:$C$5,$E$3,$E$4,$E$5,B113) -> 2.055760468 | D113: 4.993401645 | E113: =ThreePosition_Basic2($E$3,$E$5,$B$3:$C$3,$B$5:$C$5,B113,C113) -> -61.47308074 | F113: -80.94411425 | G113: -125.9100258 | H113: 5.925257951 | I113: =ThreePosition_Basic2($E$3,$E$5,$B$3:$C$3,$B$5:$C$5,B113,D113) -> 331.6221097 | J113: -135.6934442 | K113: 47.82359043 | L113: 27.47560596
A114: 53 | B114: 0.9250245036 | C114: =Burmester($B$3:$C$3,$B$4:$C$4,$B$5:$C$5,$E$3,$E$4,$E$5,B114) -> 2.07109522 | D114: 4.994004313 | E114: =ThreePosition_Basic2($E$3,$E$5,$B$3:$C$3,$B$5:$C$5,B114,C114) -> -60.96284602 | F114: -81.26910726 | G114: -124.7113749 | H114: 5.360815833 | I114: =ThreePosition_Basic2($E$3,$E$5,$B$3:$C$3,$B$5:$C$5,B114,D114) -> 324.8630332 | J114: -133.2908773 | K114: 47.82334171 | L114: 27.52727626
A115: 53.5 | B115: 0.9337511498 | C115: =Burmester($B$3:$C$3,$B$4:$C$4,$B$5:$C$5,$E$3,$E$4,$E$5,B115) -> 2.08637645 | D115: 4.994614518 | E115: =ThreePosition_Basic2($E$3,$E$5,$B$3:$C$3,$B$5:$C$5,B115,C115) -> -60.45042391 | F115: -81.58955328 | G115: -123.5221369 | H115: 4.804955575 | I115: =ThreePosition_Basic2($E$3,$E$5,$B$3:$C$3,$B$5:$C$5,B115,D115) -> 318.3890574 | J115: -130.9872603 | K115: 47.82342518 | L115: 27.5790465
A116: 54 | B116: 0.9424777961 | C116: =Burmester($B$3:$C$3,$B$4:$C$4,$B$5:$C$5,$E$3,$E$4,$E$5,B116) -> 2.101604662 | D116: 4.995232284 | E116: =ThreePosition_Basic2($E$3,$E$5,$B$3:$C$3,$B$5:$C$5,B116,C116) -> -59.93585578 | F116: -81.90543596 | G116: -122.3420279 | H116: 4.257580417 | I116: =ThreePosition_Basic2($E$3,$E$5,$B$3:$C$3,$B$5:$C$5,B116,D116) -> 312.182377 | J116: -128.7763953 | K116: 47.82383766 | L116: 27.63092274
A117: 54.5 | B117: 0.9512044423 | C117: =Burmester($B$3:$C$3,$B$4:$C$4,$B$5:$C$5,$E$3,$E$4,$E$5,B117) -> 2.116780351 | D117: 4.995857636 | E117: =ThreePosition_Basic2($E$3,$E$5,$B$3:$C$3,$B$5:$C$5,B117,C117) -> -59.41918327 | F117: -82.21673934 | G117: -121.1707763 | H117: 3.718597359 | I117: =ThreePosition_Basic2($E$3,$E$5,$B$3:$C$3,$B$5:$C$5,B117,D117) -> 306.2266404 | J117: -126.6525896 | K117: 47.8245761 | L117: 27.68291103
A118: 55 | B118: 0.9599310886 | C118: =Burmester($B$3:$C$3,$B$4:$C$4,$B$5:$C$5,$E$3,$E$4,$E$5,B118) -> 2.131904003 | D118: 4.996490603 | E118: =ThreePosition_Basic2($E$3,$E$5,$B$3:$C$3,$B$5:$C$5,B118,C118) -> -58.90044829 | F118: -82.52344781 | G118: -120.008122 | H118: 3.187916964 | I118: =ThreePosition_Basic2($E$3,$E$5,$B$3:$C$3,$B$5:$C$5,B118,D118) -> 300.5068041 | J118: -124.6106058 | K118: 47.82563757 | L118: 27.73501739
A119: 55.5 | B119: 0.9686577349 | C119: =Burmester($B$3:$C$3,$B$4:$C$4,$B$5:$C$5,$E$3,$E$4,$E$5,B119) -> 2.1469761 | D119: 4.997131215 | E119: =ThreePosition_Basic2($E$3,$E$5,$B$3:$C$3,$B$5:$C$5,B119,C119) -> -58.37969295 | F119: -82.82554613 | G119: -118.853816 | H119: 2.665453187 | I119: =ThreePosition_Basic2($E$3,$E$5,$B$3:$C$3,$B$5:$C$5,B119,D119) -> 295.0090046 | J119: -122.6456166 | K119: 47.82701926 | L119: 27.78724783
A120: 56 | B120: 0.9773843811 | C120: =Burmester($B$3:$C$3,$B$4:$C$4,$B$5:$C$5,$E$3,$E$4,$E$5,B120) -> 2.161997113 | D120: 4.997779504 | E120: =ThreePosition_Basic2($E$3,$E$5,$B$3:$C$3,$B$5:$C$5,B120,C120) -> -57.85695962 | F120: -83.12301943 | G120: -117.7076197 | H120: 2.151123195 | I120: =ThreePosition_Basic2($E$3,$E$5,$B$3:$C$3,$B$5:$C$5,B120,D120) -> 289.7204448 | J120: -120.753166 | K120: 47.82871848 | L120: 27.83960835
A121: 56.5 | B121: 0.9861110274 | C121: =Burmester($B$3:$C$3,$B$4:$C$4,$B$5:$C$5,$E$3,$E$4,$E$5,B121) -> 2.176967507 | D121: 4.998435505 | E121: =ThreePosition_Basic2($E$3,$E$5,$B$3:$C$3,$B$5:$C$5,B121,C121) -> -57.3322909 | F121: -83.41585323 | G121: -116.5693047 | H121: 1.64484721 | I121: =ThreePosition_Basic2($E$3,$E$5,$B$3:$C$3,$B$5:$C$5,B121,D121) -> 284.6292936 | J121: -118.9291337 | K121: 47.83073264 | L121: 27.89210495
A122: 57 | B122: 0.9948376736 | C122: =Burmester($B$3:$C$3,$B$4:$C$4,$B$5:$C$5,$E$3,$E$4,$E$5,B122) -> 2.19188774 | D122: 4.999099256 | E122: =ThreePosition_Basic2($E$3,$E$5,$B$3:$C$3,$B$5:$C$5,B122,C122) -> -56.80572963 | F122: -83.70403341 | G122: -115.4386522 | H122: 1.14654835 | I122: =ThreePosition_Basic2($E$3,$E$5,$B$3:$C$3,$B$5:$C$5,B122,D122) -> 279.7245963 | J122: -117.169704 | K122: 47.8330593 | L122: 27.94474362
A123: 57.5 | B123: 1.00356432 | C123: =Burmester($B$3:$C$3,$B$4:$C$4,$B$5:$C$5,$E$3,$E$4,$E$5,B123) -> 2.206758262 | D123: 4.999770793 | E123: =ThreePosition_Basic2($E$3,$E$5,$B$3:$C$3,$B$5:$C$5,B123,C123) -> -56.27731886 | F123: -83.98754624 | G123: -114.3154527 | H123: 0.6561524892 | I123: =ThreePosition_Basic2($E$3,$E$5,$B$3:$C$3,$B$5:$C$5,B123,D123) -> 274.9961948 | J123: -115.4713388 | K123: 47.83569609 | L123: 27.99753035
A124: 58 | B124: 1.012290966 | C124: =Burmester($B$3:$C$3,$B$4:$C$4,$B$5:$C$5,$E$3,$E$4,$E$5,B124) -> 2.221579515 | D124: 5.000450159 | E124: =ThreePosition_Basic2($E$3,$E$5,$B$3:$C$3,$B$5:$C$5,B124,C124) -> -55.74710187 | F124: -84.26637836 | G124: -113.1995055 | H124: 0.1735881152 | I124: =ThreePosition_Basic2($E$3,$E$5,$B$3:$C$3,$B$5:$C$5,B124,D124) -> 270.4346571 | J124: -113.8307519 | K124: 47.83864077 | L124: 28.05047114
A125: 58.5 | B125: 1.021017612 | C125: =Burmester($B$3:$C$3,$B$4:$C$4,$B$5:$C$5,$E$3,$E$4,$E$5,B125) -> 2.236351934 | D125: 5.001137396 | E125: =ThreePosition_Basic2($E$3,$E$5,$B$3:$C$3,$B$5:$C$5,B125,C125) -> -55.21512215 | F125: -84.54051683 | G125: -112.0906184 | H125: -0.301213802 | I125: =ThreePosition_Basic2($E$3,$E$5,$B$3:$C$3,$B$5:$C$5,B125,D125) -> 266.0312126 | J125: -112.2448877 | K125: 47.84189118 | L125: 28.10357198
A126: 59 | B126: 1.029744259 | C126: =Burmester($B$3:$C$3,$B$4:$C$4,$B$5:$C$5,$E$3,$E$4,$E$5,B126) -> 2.251075949 | D126: 5.00183255 | E126: =ThreePosition_Basic2($E$3,$E$5,$B$3:$C$3,$B$5:$C$5,B126,C126) -> -54.68142344 | F126: -84.80994907 | G126: -110.9886072 | H126: -0.7683199347 | I126: =ThreePosition_Basic2($E$3,$E$5,$B$3:$C$3,$B$5:$C$5,B126,D126) -> 261.7776962 | J126: -110.7109006 | K126: 47.8454453 | L126: 28.15683888
A127: 59.5 | B127: 1.038470905 | C127: =Burmester($B$3:$C$3,$B$4:$C$4,$B$5:$C$5,$E$3,$E$4,$E$5,B127) -> 2.26575198 | D127: 5.002535667 | E127: =ThreePosition_Basic2($E$3,$E$5,$B$3:$C$3,$B$5:$C$5,B127,C127) -> -54.14604964 | F127: -85.07466291 | G127: -109.8932957 | H127: -1.227794717 | I127: =ThreePosition_Basic2($E$3,$E$5,$B$3:$C$3,$B$5:$C$5,B127,D127) -> 257.6664961 | J127: -109.2261378 | K127: 47.84930116 | L127: 28.21027786
A128: 60 | B128: 1.047197551 | C128: =Burmester($B$3:$C$3,$B$4:$C$4,$B$5:$C$5,$E$3,$E$4,$E$5,B128) -> 2.280380441 | D128: 5.003246796 | E128: =ThreePosition_Basic2($E$3,$E$5,$B$3:$C$3,$B$5:$C$5,B128,C128) -> -53.60904489 | F128: -85.33464659 | G128: -108.804515 | H128: -1.679700456 | I128: =ThreePosition_Basic2($E$3,$E$5,$B$3:$C$3,$B$5:$C$5,B128,D128) -> 253.6905082 | J128: -107.7881229 | K128: 47.85345693 | L128: 28.26389493
A129: 60.5 | B129: 1.055924197 | C129: =Burmester($B$3:$C$3,$B$4:$C$4,$B$5:$C$5,$E$3,$E$4,$E$5,B129) -> 2.294961738 | D129: 5.00396599 | E129: =ThreePosition_Basic2($E$3,$E$5,$B$3:$C$3,$B$5:$C$5,B129,C129) -> -53.07045353 | F129: -85.58988873 | G129: -107.7221035 | H129: -2.124097443 | I129: =ThreePosition_Basic2($E$3,$E$5,$B$3:$C$3,$B$5:$C$5,B129,D129) -> 249.8430942 | J129: -106.3945415 | K129: 47.85791086 | L129: 28.31769615
A130: 61 | B130: 1.064650844 | C130: =Burmester($B$3:$C$3,$B$4:$C$4,$B$5:$C$5,$E$3,$E$4,$E$5,B130) -> 2.309496271 | D130: 5.004693301 | E130: =ThreePosition_Basic2($E$3,$E$5,$B$3:$C$3,$B$5:$C$5,B130,C130) -> -52.53032009 | F130: -85.84037837 | G130: -106.6459062 | H130: -2.561044054 | I130: =ThreePosition_Basic2($E$3,$E$5,$B$3:$C$3,$B$5:$C$5,B130,D130) -> 246.1180444 | J130: -105.0432283 | K130: 47.86266127 | L130: 28.37168757
A131: 61.5 | B131: 1.07337749 | C131: =Burmester($B$3:$C$3,$B$4:$C$4,$B$5:$C$5,$E$3,$E$4,$E$5,B131) -> 2.323984433 | D131: 5.005428786 | E131: =ThreePosition_Basic2($E$3,$E$5,$B$3:$C$3,$B$5:$C$5,B131,C131) -> -51.98868931 | F131: -86.08610495 | G131: -105.5757751 | H131: -2.990596845 | I131: =ThreePosition_Basic2($E$3,$E$5,$B$3:$C$3,$B$5:$C$5,B131,D131) -> 242.5095432 | J131: -103.7321548 | K131: 47.86770661 | L131: 28.42587528
A132: 62 | B132: 1.082104136 | C132: =Burmester($B$3:$C$3,$B$4:$C$4,$B$5:$C$5,$E$3,$E$4,$E$5,B132) -> 2.33842661 | D132: 5.0061725 | E132: =ThreePosition_Basic2($E$3,$E$5,$B$3:$C$3,$B$5:$C$5,B132,C132) -> -51.44560612 | F132: -86.32705833 | G132: -104.5115682 | H132: -3.412810651 | I132: =ThreePosition_Basic2($E$3,$E$5,$B$3:$C$3,$B$5:$C$5,B132,D132) -> 239.0121388 | J132: -102.4594193 | K132: 47.87304538 | L132: 28.48026538
A133: 62.5 | B133: 1.090830782 | C133: =Burmester($B$3:$C$3,$B$4:$C$4,$B$5:$C$5,$E$3,$E$4,$E$5,B133) -> 2.35282318 | D133: 5.006924505 | E133: =ThreePosition_Basic2($E$3,$E$5,$B$3:$C$3,$B$5:$C$5,B133,C133) -> -50.90111563 | F133: -86.56322878 | G133: -103.4531497 | H133: -3.827738669 | I133: =ThreePosition_Basic2($E$3,$E$5,$B$3:$C$3,$B$5:$C$5,B133,D133) -> 235.6207149 | J133: -101.2232364 | K133: 47.8786762 | L133: 28.534864
A134: 63 | B134: 1.099557429 | C134: =Burmester($B$3:$C$3,$B$4:$C$4,$B$5:$C$5,$E$3,$E$4,$E$5,B134) -> 2.367174515 | D134: 5.007684862 | E134: =ThreePosition_Basic2($E$3,$E$5,$B$3:$C$3,$B$5:$C$5,B134,C134) -> -50.35526314 | F134: -86.79460698 | G134: -102.4003897 | H134: -4.235432544 | I134: =ThreePosition_Basic2($E$3,$E$5,$B$3:$C$3,$B$5:$C$5,B134,D134) -> 232.3304654 | J134: -100.0219289 | K134: 47.88459775 | L134: 28.58967729
A135: 63.5 | B135: 1.108284075 | C135: =Burmester($B$3:$C$3,$B$4:$C$4,$B$5:$C$5,$E$3,$E$4,$E$5,B135) -> 2.381480979 | D135: 5.008453635 | E135: =ThreePosition_Basic2($E$3,$E$5,$B$3:$C$3,$B$5:$C$5,B135,C135) -> -49.80809413 | F135: -87.02118405 | G135: -101.3531637 | H135: -4.635942452 | I135: =ThreePosition_Basic2($E$3,$E$5,$B$3:$C$3,$B$5:$C$5,B135,D135) -> 229.1368712 | J135: -98.85391896 | K135: 47.8908088 | L135: 28.64471144
A136: 64 | B136: 1.117010721 | C136: =Burmester($B$3:$C$3,$B$4:$C$4,$B$5:$C$5,$E$3,$E$4,$E$5,B136) -> 2.395742932 | D136: 5.00923089 | E136: =ThreePosition_Basic2($E$3,$E$5,$B$3:$C$3,$B$5:$C$5,B136,C136) -> -49.25965427 | F136: -87.24295152 | G136: -100.311353 | H136: -5.029317176 | I136: =ThreePosition_Basic2($E$3,$E$5,$B$3:$C$3,$B$5:$C$5,B136,D136) -> 226.0356792 | J136: -97.71772158 | K136: 47.89730821 | L136: 28.69997267
A137: 64.5 | B137: =A137*PI()/180 -> 1.125737368 | C137: =Burmester($B$3:$C$3,$B$4:$C$4,$B$5:$C$5,$E$3,$E$4,$E$5,B137) -> 2.409960724 | D137: 5.010016695 | E137: =ThreePosition_Basic2($E$3,$E$5,$B$3:$C$3,$B$5:$C$5,B137,C137) -> -48.7099894 | F137: -87.45990135 | G137: -99.27484377 | H137: -5.415604179 | I137: =ThreePosition_Basic2($E$3,$E$5,$B$3:$C$3,$B$5:$C$5,B137,D137) -> 223.0228829 | J137: -96.61193728 | K137: 47.90409492 | L137: 28.75546723
A138: 65 | B138: 1.134464014 | C138: =Burmester($B$3:$C$3,$B$4:$C$4,$B$5:$C$5,$E$3,$E$4,$E$5,B138) -> 2.4241347 | D138: 5.010811121 | E138: =ThreePosition_Basic2($E$3,$E$5,$B$3:$C$3,$B$5:$C$5,B138,C138) -> -48.15914551 | F138: -87.67202593 | G138: -98.24352724 | H138: -5.794849674 | I138: =ThreePosition_Basic2($E$3,$E$5,$B$3:$C$3,$B$5:$C$5,B138,D138) -> 220.094705 | J138: -95.53524624 | K138: 47.91116792 | L138: 28.81120143
A139: 65.5 | B139: 1.14319066 | C139: =Burmester($B$3:$C$3,$B$4:$C$4,$B$5:$C$5,$E$3,$E$4,$E$5,B139) -> 2.438265197 | D139: 5.011614239 | E139: =ThreePosition_Basic2($E$3,$E$5,$B$3:$C$3,$B$5:$C$5,B139,C139) -> -47.6071688 | F139: -87.87931807 | G139: -97.21729952 | H139: -6.167098692 | I139: =ThreePosition_Basic2($E$3,$E$5,$B$3:$C$3,$B$5:$C$5,B139,D139) -> 217.2475809 | J139: -94.48640263 | K139: 47.91852632 | L139: 28.86718158
A140: 66 | B140: 1.151917306 | C140: =Burmester($B$3:$C$3,$B$4:$C$4,$B$5:$C$5,$E$3,$E$4,$E$5,B140) -> 2.452352548 | D140: 5.012426125 | E140: =ThreePosition_Basic2($E$3,$E$5,$B$3:$C$3,$B$5:$C$5,B140,C140) -> -47.0541056 | F140: -88.08177104 | G140: -96.1960613 | H140: -6.532395145 | I140: =ThreePosition_Basic2($E$3,$E$5,$B$3:$C$3,$B$5:$C$5,B140,D140) -> 214.4781444 | J140: -93.46422947 | K140: 47.92616927 | L140: 28.92341407
A141: 66.5 | B141: 1.160643953 | C141: =Burmester($B$3:$C$3,$B$4:$C$4,$B$5:$C$5,$E$3,$E$4,$E$5,B141) -> 2.466397075 | D141: 5.013246856 | E141: =ThreePosition_Basic2($E$3,$E$5,$B$3:$C$3,$B$5:$C$5,B141,C141) -> -46.50000242 | F141: -88.27937853 | G141: -95.17971776 | H141: -6.890781893 | I141: =ThreePosition_Basic2($E$3,$E$5,$B$3:$C$3,$B$5:$C$5,B141,D141) -> 211.7832138 | J141: -92.46761391 | K141: 47.93409601 | L141: 28.97990531
A142: 67 | B142: 1.169370599 | C142: =Burmester($B$3:$C$3,$B$4:$C$4,$B$5:$C$5,$E$3,$E$4,$E$5,B142) -> 2.480399098 | D142: 5.014076509 | E142: =ThreePosition_Basic2($E$3,$E$5,$B$3:$C$3,$B$5:$C$5,B142,C142) -> -45.94490591 | F142: -88.47213469 | G142: -94.16817836 | H142: -7.242300793 | I142: =ThreePosition_Basic2($E$3,$E$5,$B$3:$C$3,$B$5:$C$5,B142,D142) -> 209.1597793 | J142: -91.4955029 | K142: 47.94230585 | L142: 29.03666177
A143: 67.5 | B143: 1.178097245 | C143: =Burmester($B$3:$C$3,$B$4:$C$4,$B$5:$C$5,$E$3,$E$4,$E$5,B143) -> 2.494358928 | D143: 5.014915167 | E143: =ThreePosition_Basic2($E$3,$E$5,$B$3:$C$3,$B$5:$C$5,B143,C143) -> -45.38886289 | F143: -88.66003408 | G143: -93.16135668 | H143: -7.586992764 | I143: =ThreePosition_Basic2($E$3,$E$5,$B$3:$C$3,$B$5:$C$5,B143,D143) -> 206.604992 | J143: -90.54689918 | K143: 47.95079817 | L143: 29.09368997
A144: 68 | B144: 1.186823891 | C144: =Burmester($B$3:$C$3,$B$4:$C$4,$B$5:$C$5,$E$3,$E$4,$E$5,B144) -> 2.508276869 | D144: 5.015762913 | E144: =ThreePosition_Basic2($E$3,$E$5,$B$3:$C$3,$B$5:$C$5,B144,C144) -> -44.83192033 | F144: -88.84307175 | G144: -92.15917031 | H144: -7.924897839 | I144: =ThreePosition_Basic2($E$3,$E$5,$B$3:$C$3,$B$5:$C$5,B144,D144) -> 204.1161529 | J144: -89.62085762 | K144: 47.95957242 | L144: 29.15099647
A145: 68.5 | B145: 1.195550538 | C145: =Burmester($B$3:$C$3,$B$4:$C$4,$B$5:$C$5,$E$3,$E$4,$E$5,B145) -> 2.52215322 | D145: 5.016619833 | E145: =ThreePosition_Basic2($E$3,$E$5,$B$3:$C$3,$B$5:$C$5,B145,C145) -> -44.27412533 | F145: -89.02124316 | G145: -91.16154068 | H145: -8.256055213 | I145: =ThreePosition_Basic2($E$3,$E$5,$B$3:$C$3,$B$5:$C$5,B145,D145) -> 201.6907036 | J145: -88.71648183 | K145: 47.96862812 | L145: 29.2085879
A146: 69 | B146: 1.204277184 | C146: =Burmester($B$3:$C$3,$B$4:$C$4,$B$5:$C$5,$E$3,$E$4,$E$5,B146) -> 2.535988272 | D146: 5.017486014 | E146: =ThreePosition_Basic2($E$3,$E$5,$B$3:$C$3,$B$5:$C$5,B146,C146) -> -43.71552516 | F146: -89.19454425 | G146: -90.1683929 | H146: -8.580503296 | I146: =ThreePosition_Basic2($E$3,$E$5,$B$3:$C$3,$B$5:$C$5,B146,D146) -> 199.3262167 | J146: -87.83292101 | K146: 47.97796486 | L146: 29.26647094
A147: 69.5 | B147: 1.21300383 | C147: =Burmester($B$3:$C$3,$B$4:$C$4,$B$5:$C$5,$E$3,$E$4,$E$5,B147) -> 2.549782311 | D147: 5.018361547 | E147: =ThreePosition_Basic2($E$3,$E$5,$B$3:$C$3,$B$5:$C$5,B147,C147) -> -43.15616721 | F147: -89.36297141 | G147: -89.17965569 | H147: -8.898279763 | I147: =ThreePosition_Basic2($E$3,$E$5,$B$3:$C$3,$B$5:$C$5,B147,D147) -> 197.0203881 | J147: -86.96936708 | K147: 47.98758229 | L147: 29.32465232
A148: 70 | B148: 1.221730476 | C148: =Burmester($B$3:$C$3,$B$4:$C$4,$B$5:$C$5,$E$3,$E$4,$E$5,B148) -> 2.563535615 | D148: 5.019246524 | E148: =ThreePosition_Basic2($E$3,$E$5,$B$3:$C$3,$B$5:$C$5,B148,C148) -> -42.59609902 | F148: -89.52652147 | G148: -88.19526117 | H148: -9.209421592 | I148: =ThreePosition_Basic2($E$3,$E$5,$B$3:$C$3,$B$5:$C$5,B148,D148) -> 194.7710288 | J148: -86.12505199 | K148: 47.99748013 | L148: 29.38313885
A149: 70.5 | B149: 1.230457123 | C149: =Burmester($B$3:$C$3,$B$4:$C$4,$B$5:$C$5,$E$3,$E$4,$E$5,B149) -> 2.577248457 | D149: 5.020141041 | E149: =ThreePosition_Basic2($E$3,$E$5,$B$3:$C$3,$B$5:$C$5,B149,C149) -> -42.03536825 | F149: -89.68519175 | G149: -87.21514482 | H149: -9.513965116 | I149: =ThreePosition_Basic2($E$3,$E$5,$B$3:$C$3,$B$5:$C$5,B149,D149) -> 192.5760582 | J149: -85.29924525 | K149: 48.00765816 | L149: 29.44193739
A150: 71 | B150: 1.239183769 | C150: =Burmester($B$3:$C$3,$B$4:$C$4,$B$5:$C$5,$E$3,$E$4,$E$5,B150) -> 2.590921103 | D150: 5.021045194 | E150: =ThreePosition_Basic2($E$3,$E$5,$B$3:$C$3,$B$5:$C$5,B150,C150) -> -41.47402271 | F150: -89.83898001 | G150: -86.23924532 | H150: -9.81194606 | I150: =ThreePosition_Basic2($E$3,$E$5,$B$3:$C$3,$B$5:$C$5,B150,D150) -> 190.4334974 | J150: -84.49125164 | K150: 48.01811622 | L150: 29.50105486
A151: 71.5 | B151: 1.247910415 | C151: =Burmester($B$3:$C$3,$B$4:$C$4,$B$5:$C$5,$E$3,$E$4,$E$5,B151) -> 2.604553813 | D151: 5.021959083 | E151: =ThreePosition_Basic2($E$3,$E$5,$B$3:$C$3,$B$5:$C$5,B151,C151) -> -40.91211031 | F151: -89.98788449 | G151: -85.26750441 | H151: -10.10339958 | I151: =ThreePosition_Basic2($E$3,$E$5,$B$3:$C$3,$B$5:$C$5,B151,D151) -> 188.3414628 | J151: -83.70040906 | K151: 48.02885422 | L151: 29.56049828
A152: 72 | B152: 1.256637061 | C152: =Burmester($B$3:$C$3,$B$4:$C$4,$B$5:$C$5,$E$3,$E$4,$E$5,B152) -> 2.61814684 | D152: 5.02288281 | E152: =ThreePosition_Basic2($E$3,$E$5,$B$3:$C$3,$B$5:$C$5,B152,C152) -> -40.34967912 | F152: -90.13190388 | G152: -84.29986687 | H152: -10.38836032 | I152: =ThreePosition_Basic2($E$3,$E$5,$B$3:$C$3,$B$5:$C$5,B152,D152) -> 186.2981608 | J152: -82.92608657 | K152: 48.03987214 | L152: 29.62027471
A153: 72.5 | B153: 1.265363708 | C153: =Burmester($B$3:$C$3,$B$4:$C$4,$B$5:$C$5,$E$3,$E$4,$E$5,B153) -> 2.631700432 | D153: 5.02381648 | E153: =ThreePosition_Basic2($E$3,$E$5,$B$3:$C$3,$B$5:$C$5,B153,C153) -> -39.78677729 | F153: -90.27103737 | G153: -83.33628033 | H153: -10.6668624 | I153: =ThreePosition_Basic2($E$3,$E$5,$B$3:$C$3,$B$5:$C$5,B153,D153) -> 184.3018823 | J153: -82.16768255 | K153: 48.05117 | L153: 29.6803913
A154: 73 | B154: 1.274090354 | C154: =Burmester($B$3:$C$3,$B$4:$C$4,$B$5:$C$5,$E$3,$E$4,$E$5,B154) -> 2.645214827 | D154: 5.024760199 | E154: =ThreePosition_Basic2($E$3,$E$5,$B$3:$C$3,$B$5:$C$5,B154,C154) -> -39.22345311 | F154: -90.40528461 | G154: -82.3766952 | H154: -10.93893953 | I154: =ThreePosition_Basic2($E$3,$E$5,$B$3:$C$3,$B$5:$C$5,B154,D154) -> 182.3509978 | J154: -81.42462296 | K154: 48.0627479 | L154: 29.74085526
A155: 73.5 | B155: 1.282817 | C155: =Burmester($B$3:$C$3,$B$4:$C$4,$B$5:$C$5,$E$3,$E$4,$E$5,B155) -> 2.658690262 | D155: 5.025714077 | E155: =ThreePosition_Basic2($E$3,$E$5,$B$3:$C$3,$B$5:$C$5,B155,C155) -> -38.65975499 | F155: -90.53464571 | G155: -81.42106461 | H155: -11.20462497 | I155: =ThreePosition_Basic2($E$3,$E$5,$B$3:$C$3,$B$5:$C$5,B155,D155) -> 180.4439528 | J155: -80.6963598 | K155: 48.07460597 | L155: 29.8016739
A156: 74 | B156: 1.291543646 | C156: =Burmester($B$3:$C$3,$B$4:$C$4,$B$5:$C$5,$E$3,$E$4,$E$5,B156) -> 2.672126965 | D156: 5.026678225 | E156: =ThreePosition_Basic2($E$3,$E$5,$B$3:$C$3,$B$5:$C$5,B156,C156) -> -38.09573142 | F156: -90.65912129 | G156: -80.46934426 | H156: -11.46395161 | I156: =ThreePosition_Basic2($E$3,$E$5,$B$3:$C$3,$B$5:$C$5,B156,D156) -> 178.5792639 | J156: -79.98236958 | K156: 48.08674442 | L156: 29.86285459
A157: 74.5 | B157: 1.300270293 | C157: =Burmester($B$3:$C$3,$B$4:$C$4,$B$5:$C$5,$E$3,$E$4,$E$5,B157) -> 2.685525156 | D157: 5.027652759 | E157: =ThreePosition_Basic2($E$3,$E$5,$B$3:$C$3,$B$5:$C$5,B157,C157) -> -37.53143104 | F157: -90.77871243 | G157: -79.52149238 | H157: -11.71695197 | I157: =ThreePosition_Basic2($E$3,$E$5,$B$3:$C$3,$B$5:$C$5,B157,D157) -> 176.7555142 | J157: -79.28215194 | K157: 48.09916352 | L157: 29.92440482
A158: 75 | B158: 1.308996939 | C158: =Burmester($B$3:$C$3,$B$4:$C$4,$B$5:$C$5,$E$3,$E$4,$E$5,B158) -> 2.698885052 | D158: 5.028637795 | E158: =ThreePosition_Basic2($E$3,$E$5,$B$3:$C$3,$B$5:$C$5,B158,C158) -> -36.96690256 | F158: -90.89342071 | G158: -78.5774696 | H158: -11.96365826 | I158: =ThreePosition_Basic2($E$3,$E$5,$B$3:$C$3,$B$5:$C$5,B158,D158) -> 174.9713501 | J158: -78.5952284 | K158: 48.11186357 | L158: 29.98633211
A159: 75.5 | B159: 1.317723585 | C159: =Burmester($B$3:$C$3,$B$4:$C$4,$B$5:$C$5,$E$3,$E$4,$E$5,B159) -> 2.712206863 | D159: 5.029633453 | E159: =ThreePosition_Basic2($E$3,$E$5,$B$3:$C$3,$B$5:$C$5,B159,C159) -> -36.4021948 | F159: -91.00324818 | G159: -77.63723894 | H159: -12.20410239 | I159: =ThreePosition_Basic2($E$3,$E$5,$B$3:$C$3,$B$5:$C$5,B159,D159) -> 173.2254775 | J159: -77.9211411 | K159: 48.12484496 | L159: 30.04864413
A160: 76 | B160: 1.326450232 | C160: =Burmester($B$3:$C$3,$B$4:$C$4,$B$5:$C$5,$E$3,$E$4,$E$5,B160) -> 2.725490791 | D160: 5.030639855 | E160: =ThreePosition_Basic2($E$3,$E$5,$B$3:$C$3,$B$5:$C$5,B160,C160) -> -35.83735667 | F160: -91.10819739 | G160: -76.70076563 | H160: -12.43831601 | I160: =ThreePosition_Basic2($E$3,$E$5,$B$3:$C$3,$B$5:$C$5,B160,D160) -> 171.5166589 | J160: -77.25945169 | K160: 48.13810811 | L160: 30.11134859
A161: 76.5 | B161: 1.335176878 | C161: =Burmester($B$3:$C$3,$B$4:$C$4,$B$5:$C$5,$E$3,$E$4,$E$5,B161) -> 2.738737033 | D161: 5.031657126 | E161: =ThreePosition_Basic2($E$3,$E$5,$B$3:$C$3,$B$5:$C$5,B161,C161) -> -35.27243719 | F161: -91.20827139 | G161: -75.76801713 | H161: -12.66633054 | I161: =ThreePosition_Basic2($E$3,$E$5,$B$3:$C$3,$B$5:$C$5,B161,D161) -> 169.8437101 | J161: -76.60974028 | K161: 48.1516535 | L161: 30.17445333
A162: 77 | B162: 1.343903524 | C162: =Burmester($B$3:$C$3,$B$4:$C$4,$B$5:$C$5,$E$3,$E$4,$E$5,B162) -> 2.751945781 | D162: 5.032685394 | E162: =ThreePosition_Basic2($E$3,$E$5,$B$3:$C$3,$B$5:$C$5,B162,C162) -> -34.70748545 | F162: -91.30347371 | G162: -74.83896301 | H162: -12.88817717 | I162: =ThreePosition_Basic2($E$3,$E$5,$B$3:$C$3,$B$5:$C$5,B162,D162) -> 168.2054974 | J162: -75.97160444 | K162: 48.16548166 | L162: 30.23796626
A163: 77.5 | B163: 1.35263017 | C163: =Burmester($B$3:$C$3,$B$4:$C$4,$B$5:$C$5,$E$3,$E$4,$E$5,B163) -> 2.765117218 | D163: 5.033724789 | E163: =ThreePosition_Basic2($E$3,$E$5,$B$3:$C$3,$B$5:$C$5,B163,C163) -> -34.14255065 | F163: -91.39380839 | G163: -73.91357488 | H163: -13.10388691 | I163: =ThreePosition_Basic2($E$3,$E$5,$B$3:$C$3,$B$5:$C$5,B163,D163) -> 166.6009352 | J163: -75.34465831 | K163: 48.17959318 | L163: 30.30189542
A164: 78 | B164: 1.361356817 | C164: =Burmester($B$3:$C$3,$B$4:$C$4,$B$5:$C$5,$E$3,$E$4,$E$5,B164) -> 2.778251524 | D164: 5.034775444 | E164: =ThreePosition_Basic2($E$3,$E$5,$B$3:$C$3,$B$5:$C$5,B164,C164) -> -33.57768205 | F164: -91.47927996 | G164: -72.99182634 | H164: -13.31349064 | I164: =ThreePosition_Basic2($E$3,$E$5,$B$3:$C$3,$B$5:$C$5,B164,D164) -> 165.0289829 | J164: -74.72853166 | K164: 48.19398869 | L164: 30.36624892
A165: 78.5 | B165: 1.370083463 | C165: =Burmester($B$3:$C$3,$B$4:$C$4,$B$5:$C$5,$E$3,$E$4,$E$5,B165) -> 2.79134887 | D165: 5.035837496 | E165: =ThreePosition_Basic2($E$3,$E$5,$B$3:$C$3,$B$5:$C$5,B165,C165) -> -33.01292901 | F165: -91.55989346 | G165: -72.0736929 | H165: -13.51701906 | I165: =ThreePosition_Basic2($E$3,$E$5,$B$3:$C$3,$B$5:$C$5,B165,D165) -> 163.4886433 | J165: -74.12286915 | K165: 48.20866888 | L165: 30.43103499
A166: 79 | B166: 1.378810109 | C166: =Burmester($B$3:$C$3,$B$4:$C$4,$B$5:$C$5,$E$3,$E$4,$E$5,B166) -> 2.804409422 | D166: 5.036911083 | E166: =ThreePosition_Basic2($E$3,$E$5,$B$3:$C$3,$B$5:$C$5,B166,C166) -> -32.44834094 | F166: -91.63565444 | G166: -71.15915192 | H166: -13.71450279 | I166: =ThreePosition_Basic2($E$3,$E$5,$B$3:$C$3,$B$5:$C$5,B166,D166) -> 161.97896 | J166: -73.5273295 | K166: 48.22363448 | L166: 30.49626198
A167: 79.5 | B167: 1.387536755 | C167: =Burmester($B$3:$C$3,$B$4:$C$4,$B$5:$C$5,$E$3,$E$4,$E$5,B167) -> 2.817433341 | D167: 5.037996347 | E167: =ThreePosition_Basic2($E$3,$E$5,$B$3:$C$3,$B$5:$C$5,B167,C167) -> -31.88396735 | F167: -91.70656894 | G167: -70.24818256 | H167: -13.90597235 | I167: =ThreePosition_Basic2($E$3,$E$5,$B$3:$C$3,$B$5:$C$5,B167,D167) -> 160.4990153 | J167: -72.94158482 | K167: 48.23888627 | L167: 30.56193833
A168: 80 | B168: 1.396263402 | C168: =Burmester($B$3:$C$3,$B$4:$C$4,$B$5:$C$5,$E$3,$E$4,$E$5,B168) -> 2.830420781 | D168: 5.039093433 | E168: =ThreePosition_Basic2($E$3,$E$5,$B$3:$C$3,$B$5:$C$5,B168,C168) -> -31.3198578 | F168: -91.77264354 | G168: -69.34076571 | H168: -14.09145818 | I168: =ThreePosition_Basic2($E$3,$E$5,$B$3:$C$3,$B$5:$C$5,B168,D168) -> 159.0479286 | J168: -72.36531993 | K168: 48.2544251 | L168: 30.62807259
A169: 80.5 | B169: 1.404990048 | C169: =Burmester($B$3:$C$3,$B$4:$C$4,$B$5:$C$5,$E$3,$E$4,$E$5,B169) -> 2.843371888 | D169: 5.040202489 | E169: =ThreePosition_Basic2($E$3,$E$5,$B$3:$C$3,$B$5:$C$5,B169,C169) -> -30.75606194 | F169: -91.8338853 | G169: -68.43688393 | H169: -14.27099069 | I169: =ThreePosition_Basic2($E$3,$E$5,$B$3:$C$3,$B$5:$C$5,B169,D169) -> 157.624854 | J169: -71.79823166 | K169: 48.27025183 | L169: 30.69467345
A170: 81 | B170: 1.413716694 | C170: =Burmester($B$3:$C$3,$B$4:$C$4,$B$5:$C$5,$E$3,$E$4,$E$5,B170) -> 2.856286804 | D170: 5.041323665 | E170: =ThreePosition_Basic2($E$3,$E$5,$B$3:$C$3,$B$5:$C$5,B170,C170) -> -30.19262946 | F170: -91.89030182 | G170: -67.53652143 | H170: -14.44460026 | I170: =ThreePosition_Basic2($E$3,$E$5,$B$3:$C$3,$B$5:$C$5,B170,D170) -> 156.2289793 | J170: -71.24002835 | K170: 48.2863674 | L170: 30.7617497
A171: 81.5 | B171: 1.42244334 | C171: =Burmester($B$3:$C$3,$B$4:$C$4,$B$5:$C$5,$E$3,$E$4,$E$5,B171) -> 2.869165664 | D171: 5.042457115 | E171: =ThreePosition_Basic2($E$3,$E$5,$B$3:$C$3,$B$5:$C$5,B171,C171) -> -29.62961012 | F171: -91.9419012 | G171: -66.63966396 | H171: -14.61231726 | I171: =ThreePosition_Basic2($E$3,$E$5,$B$3:$C$3,$B$5:$C$5,B171,D171) -> 154.8595237 | J171: -70.6904292 | K171: 48.30277278 | L171: 30.82931025
A172: 82 | B172: 1.431169987 | C172: =Burmester($B$3:$C$3,$B$4:$C$4,$B$5:$C$5,$E$3,$E$4,$E$5,B172) -> 2.882008598 | D172: 5.043602996 | E172: =ThreePosition_Basic2($E$3,$E$5,$B$3:$C$3,$B$5:$C$5,B172,C172) -> -29.06705373 | F172: -91.98869209 | G172: -65.7462988 | H172: -14.77417206 | I172: =ThreePosition_Basic2($E$3,$E$5,$B$3:$C$3,$B$5:$C$5,B172,D172) -> 153.5157368 | J172: -70.1491638 | K172: 48.31946898 | L172: 30.89736415
A173: 82.5 | B173: 1.439896633 | C173: =Burmester($B$3:$C$3,$B$4:$C$4,$B$5:$C$5,$E$3,$E$4,$E$5,B173) -> 2.894815728 | D173: 5.044761469 | E173: =ThreePosition_Basic2($E$3,$E$5,$B$3:$C$3,$B$5:$C$5,B173,C173) -> -28.50501016 | F173: -92.03068362 | G173: -64.85641471 | H173: -14.93019508 | I173: =ThreePosition_Basic2($E$3,$E$5,$B$3:$C$3,$B$5:$C$5,B173,D173) -> 152.1968969 | J173: -69.61597156 | K173: 48.33645706 | L173: 30.96592056
A174: 83 | B174: 1.448623279 | C174: =Burmester($B$3:$C$3,$B$4:$C$4,$B$5:$C$5,$E$3,$E$4,$E$5,B174) -> 2.907587171 | D174: 5.045932696 | E174: =ThreePosition_Basic2($E$3,$E$5,$B$3:$C$3,$B$5:$C$5,B174,C174) -> -27.94352932 | F174: -92.0678855 | G174: -63.97000186 | H174: -15.08041679 | I174: =ThreePosition_Basic2($E$3,$E$5,$B$3:$C$3,$B$5:$C$5,B174,D174) -> 150.9023097 | J174: -69.09060133 | K174: 48.35373813 | L174: 31.03498879
A175: 83.5 | B175: 1.457349925 | C175: =Burmester($B$3:$C$3,$B$4:$C$4,$B$5:$C$5,$E$3,$E$4,$E$5,B175) -> 2.920323037 | D175: 5.047116845 | E175: =ThreePosition_Basic2($E$3,$E$5,$B$3:$C$3,$B$5:$C$5,B175,C175) -> -27.38266117 | F175: -92.10030791 | G175: -63.0870518 | H175: -15.22486769 | I175: =ThreePosition_Basic2($E$3,$E$5,$B$3:$C$3,$B$5:$C$5,B175,D175) -> 149.631307 | J175: -68.57281086 | K175: 48.37131334 | L175: 31.10457825
A176: 84 | B176: 1.466076572 | C176: =Burmester($B$3:$C$3,$B$4:$C$4,$B$5:$C$5,$E$3,$E$4,$E$5,B176) -> 2.933023431 | D176: 5.048314084 | E176: =ThreePosition_Basic2($E$3,$E$5,$B$3:$C$3,$B$5:$C$5,B176,C176) -> -26.82245572 | F176: -92.12796161 | G176: -62.20755742 | H176: -15.36357841 | I176: =ThreePosition_Basic2($E$3,$E$5,$B$3:$C$3,$B$5:$C$5,B176,D176) -> 148.3832456 | J176: -68.06236642 | K176: 48.38918387 | L176: 31.17469853
A177: 84.5 | B177: 1.474803218 | C177: =Burmester($B$3:$C$3,$B$4:$C$4,$B$5:$C$5,$E$3,$E$4,$E$5,B177) -> 2.94568845 | D177: 5.049524588 | E177: =ThreePosition_Basic2($E$3,$E$5,$B$3:$C$3,$B$5:$C$5,B177,C177) -> -26.26296301 | F177: -92.15085787 | G177: -61.33151289 | H177: -15.49657966 | I177: =ThreePosition_Basic2($E$3,$E$5,$B$3:$C$3,$B$5:$C$5,B177,D177) -> 147.157506 | J177: -67.55904243 | K177: 48.40735096 | L177: 31.24535932
A178: 85 | B178: 1.483529864 | C178: =Burmester($B$3:$C$3,$B$4:$C$4,$B$5:$C$5,$E$3,$E$4,$E$5,B178) -> 2.958318187 | D178: 5.050748533 | E178: =ThreePosition_Basic2($E$3,$E$5,$B$3:$C$3,$B$5:$C$5,B178,C178) -> -25.70423311 | F178: -92.1690085 | G178: -60.45891363 | H178: -15.62390224 | I178: =ThreePosition_Basic2($E$3,$E$5,$B$3:$C$3,$B$5:$C$5,B178,D178) -> 145.9534914 | J178: -67.06262101 | K178: 48.42581587 | L178: 31.31657048
A179: 85.5 | B179: 1.49225651 | C179: =Burmester($B$3:$C$3,$B$4:$C$4,$B$5:$C$5,$E$3,$E$4,$E$5,B179) -> 2.970912727 | D179: 5.051986099 | E179: =ThreePosition_Basic2($E$3,$E$5,$B$3:$C$3,$B$5:$C$5,B179,C179) -> -25.14631613 | F179: -92.18242586 | G179: -59.58975627 | H179: -15.74557711 | I179: =ThreePosition_Basic2($E$3,$E$5,$B$3:$C$3,$B$5:$C$5,B179,D179) -> 144.7706268 | J179: -66.57289169 | K179: 48.44457992 | L179: 31.388342
A180: 86 | B180: 1.500983157 | C180: =Burmester($B$3:$C$3,$B$4:$C$4,$B$5:$C$5,$E$3,$E$4,$E$5,B180) -> 2.98347215 | D180: 5.05323747 | E180: =ThreePosition_Basic2($E$3,$E$5,$B$3:$C$3,$B$5:$C$5,B180,C180) -> -24.58926221 | F180: -92.19112282 | G180: -58.7240386 | H180: -15.86163538 | I180: =ThreePosition_Basic2($E$3,$E$5,$B$3:$C$3,$B$5:$C$5,B180,D180) -> 143.6083577 | J180: -66.08965103 | K180: 48.46364444 | L180: 31.46068401
A181: 86.5 | B181: 1.509709803 | C181: =Burmester($B$3:$C$3,$B$4:$C$4,$B$5:$C$5,$E$3,$E$4,$E$5,B181) -> 2.995996528 | D181: 5.054502833 | E181: =ThreePosition_Basic2($E$3,$E$5,$B$3:$C$3,$B$5:$C$5,B181,C181) -> -24.0331215 | F181: -92.19511283 | G181: -57.86175956 | H181: -15.97210829 | I181: =ThreePosition_Basic2($E$3,$E$5,$B$3:$C$3,$B$5:$C$5,B181,D181) -> 142.4661496 | J181: -65.61270231 | K181: 48.48301084 | L181: 31.53360682
A182: 87 | B182: 1.518436449 | C182: =Burmester($B$3:$C$3,$B$4:$C$4,$B$5:$C$5,$E$3,$E$4,$E$5,B182) -> 3.008485928 | D182: 5.055782379 | E182: =ThreePosition_Basic2($E$3,$E$5,$B$3:$C$3,$B$5:$C$5,B182,C182) -> -23.47794419 | F182: -92.19440987 | G182: -57.00291915 | H182: -16.07702727 | I182: =ThreePosition_Basic2($E$3,$E$5,$B$3:$C$3,$B$5:$C$5,B182,D182) -> 141.3434869 | J182: -65.14185525 | K182: 48.50268052 | L182: 31.60712087
A183: 87.5 | B183: 1.527163095 | C183: =Burmester($B$3:$C$3,$B$4:$C$4,$B$5:$C$5,$E$3,$E$4,$E$5,B183) -> 3.020940412 | D183: 5.057076302 | E183: =ThreePosition_Basic2($E$3,$E$5,$B$3:$C$3,$B$5:$C$5,B183,C183) -> -22.92378047 | F183: -92.18902847 | G183: -56.14751846 | H183: -16.17642395 | I183: =ThreePosition_Basic2($E$3,$E$5,$B$3:$C$3,$B$5:$C$5,B183,D183) -> 140.239872 | J183: -64.67692568 | K183: 48.52265494 | L183: 31.68123677
A184: 88 | B184: 1.535889742 | C184: =Burmester($B$3:$C$3,$B$4:$C$4,$B$5:$C$5,$E$3,$E$4,$E$5,B184) -> 3.033360032 | D184: 5.058384801 | E184: =ThreePosition_Basic2($E$3,$E$5,$B$3:$C$3,$B$5:$C$5,B184,C184) -> -22.37068055 | F184: -92.17898372 | G184: -55.29555957 | H184: -16.27033015 | I184: =ThreePosition_Basic2($E$3,$E$5,$B$3:$C$3,$B$5:$C$5,B184,D184) -> 139.1548247 | J184: -64.21773528 | K184: 48.5429356 | L184: 31.75596528
A185: 88.5 | B185: 1.544616388 | C185: =Burmester($B$3:$C$3,$B$4:$C$4,$B$5:$C$5,$E$3,$E$4,$E$5,B185) -> 3.045744836 | D185: 5.059708077 | E185: =ThreePosition_Basic2($E$3,$E$5,$B$3:$C$3,$B$5:$C$5,B185,C185) -> -21.81869464 | F185: -92.16429125 | G185: -54.44704558 | H185: -16.35877788 | I185: =ThreePosition_Basic2($E$3,$E$5,$B$3:$C$3,$B$5:$C$5,B185,D185) -> 138.0878815 | J185: -63.76411136 | K185: 48.56352403 | L185: 31.83131733
A186: 89 | B186: 1.553343034 | C186: =Burmester($B$3:$C$3,$B$4:$C$4,$B$5:$C$5,$E$3,$E$4,$E$5,B186) -> 3.058094867 | D186: 5.061046336 | E186: =ThreePosition_Basic2($E$3,$E$5,$B$3:$C$3,$B$5:$C$5,B186,C186) -> -21.26787298 | F186: -92.14496726 | G186: -53.60198053 | H186: -16.44179942 | I186: =ThreePosition_Basic2($E$3,$E$5,$B$3:$C$3,$B$5:$C$5,B186,D186) -> 137.0385947 | J186: -63.31588655 | K186: 48.58442177 | L186: 31.90730403
A187: 89.5 | B187: 1.562069681 | C187: =Burmester($B$3:$C$3,$B$4:$C$4,$B$5:$C$5,$E$3,$E$4,$E$5,B187) -> 3.070410159 | D187: 5.062399789 | E187: =ThreePosition_Basic2($E$3,$E$5,$B$3:$C$3,$B$5:$C$5,B187,C187) -> -20.71826579 | F187: -92.1210285 | G187: -52.76036937 | H187: -16.51942725 | I187: =ThreePosition_Basic2($E$3,$E$5,$B$3:$C$3,$B$5:$C$5,B187,D187) -> 136.0065317 | J187: -62.8728986 | K187: 48.60563041 | L187: 31.98393664
A188: 90 | B188: 1.570796327 | C188: =Burmester($B$3:$C$3,$B$4:$C$4,$B$5:$C$5,$E$3,$E$4,$E$5,B188) -> 3.082690742 | D188: 5.063768648 | E188: =ThreePosition_Basic2($E$3,$E$5,$B$3:$C$3,$B$5:$C$5,B188,C188) -> -20.16992328 | F188: -92.09249229 | G188: -51.92221796 | H188: -16.59169414 | I188: =ThreePosition_Basic2($E$3,$E$5,$B$3:$C$3,$B$5:$C$5,B188,D188) -> 134.9912748 | J188: -62.43499016 | K188: 48.62715158 | L188: 32.06122661
A189: 90.5 | B189: 1.579522973 | C189: =Burmester($B$3:$C$3,$B$4:$C$4,$B$5:$C$5,$E$3,$E$4,$E$5,B189) -> 3.094936636 | D189: 5.065153132 | E189: =ThreePosition_Basic2($E$3,$E$5,$B$3:$C$3,$B$5:$C$5,B189,C189) -> -19.62289568 | F189: -92.0593765 | G189: -51.08753303 | H189: -16.65863308 | I189: =ThreePosition_Basic2($E$3,$E$5,$B$3:$C$3,$B$5:$C$5,B189,D189) -> 133.99242 | J189: -62.00200857 | K189: 48.64898693 | L189: 32.13918555
A190: 91 | B190: 1.588249619 | C190: =Burmester($B$3:$C$3,$B$4:$C$4,$B$5:$C$5,$E$3,$E$4,$E$5,B190) -> 3.107147858 | D190: 5.066553462 | E190: =ThreePosition_Basic2($E$3,$E$5,$B$3:$C$3,$B$5:$C$5,B190,C190) -> -19.0772332 | F190: -92.02169959 | G190: -50.25632211 | H190: -16.72027736 | I190: =ThreePosition_Basic2($E$3,$E$5,$B$3:$C$3,$B$5:$C$5,B190,D190) -> 133.0095769 | J190: -61.57380562 | K190: 48.67113812 | L190: 32.21782527
A191: 91.5 | B191: 1.596976266 | C191: =Burmester($B$3:$C$3,$B$4:$C$4,$B$5:$C$5,$E$3,$E$4,$E$5,B191) -> 3.119324417 | D191: 5.067969863 | E191: =ThreePosition_Basic2($E$3,$E$5,$B$3:$C$3,$B$5:$C$5,B191,C191) -> -18.53298601 | F191: -91.97948058 | G191: -49.42859357 | H191: -16.77666056 | I191: =ThreePosition_Basic2($E$3,$E$5,$B$3:$C$3,$B$5:$C$5,B191,D191) -> 132.0423679 | J191: -61.15023741 | K191: 48.69360686 | L191: 32.29715775
A192: 92 | B192: 1.605702912 | C192: =Burmester($B$3:$C$3,$B$4:$C$4,$B$5:$C$5,$E$3,$E$4,$E$5,B192) -> 3.131466317 | D192: 5.069402568 | E192: =ThreePosition_Basic2($E$3,$E$5,$B$3:$C$3,$B$5:$C$5,B192,C192) -> -17.99020429 | F192: -91.93273905 | G192: -48.60435654 | H192: -16.82781653 | I192: =ThreePosition_Basic2($E$3,$E$5,$B$3:$C$3,$B$5:$C$5,B192,D192) -> 131.0904279 | J192: -60.73116414 | K192: 48.71639488 | L192: 32.37719516
A193: 92.5 | B193: 1.614429558 | C193: =Burmester($B$3:$C$3,$B$4:$C$4,$B$5:$C$5,$E$3,$E$4,$E$5,B193) -> 3.143573552 | D193: 5.070851808 | E193: =ThreePosition_Basic2($E$3,$E$5,$B$3:$C$3,$B$5:$C$5,B193,C193) -> -17.4489382 | F193: -91.88149516 | G193: -47.78362089 | H193: -16.87377945 | I193: =ThreePosition_Basic2($E$3,$E$5,$B$3:$C$3,$B$5:$C$5,B193,D193) -> 130.1534033 | J193: -60.31644992 | K193: 48.73950391 | L193: 32.45794987
A194: 93 | B194: 1.623156204 | C194: =Burmester($B$3:$C$3,$B$4:$C$4,$B$5:$C$5,$E$3,$E$4,$E$5,B194) -> 3.155646114 | D194: 5.072317824 | E194: =ThreePosition_Basic2($E$3,$E$5,$B$3:$C$3,$B$5:$C$5,B194,C194) -> -16.90923785 | F194: -91.82576966 | G194: -46.96639722 | H194: -16.9145838 | I194: =ThreePosition_Basic2($E$3,$E$5,$B$3:$C$3,$B$5:$C$5,B194,D194) -> 129.2309524 | J194: -59.90596265 | K194: 48.76293575 | L194: 32.53943443
A195: 93.5 | B195: 1.631882851 | C195: =Burmester($B$3:$C$3,$B$4:$C$4,$B$5:$C$5,$E$3,$E$4,$E$5,B195) -> 3.167683985 | D195: 5.073800858 | E195: =ThreePosition_Basic2($E$3,$E$5,$B$3:$C$3,$B$5:$C$5,B195,C195) -> -16.37115334 | F195: -91.76558387 | G195: -46.15269683 | H195: -16.9502644 | I195: =ThreePosition_Basic2($E$3,$E$5,$B$3:$C$3,$B$5:$C$5,B195,D195) -> 128.322744 | J195: -59.49957383 | K195: 48.78669217 | L195: 32.6216616
A196: 94 | B196: 1.640609497 | C196: =Burmester($B$3:$C$3,$B$4:$C$4,$B$5:$C$5,$E$3,$E$4,$E$5,B196) -> 3.179687141 | D196: 5.075301158 | E196: =ThreePosition_Basic2($E$3,$E$5,$B$3:$C$3,$B$5:$C$5,B196,C196) -> -15.83473471 | F196: -91.70095969 | G196: -45.34253169 | H196: -16.98085639 | I196: =ThreePosition_Basic2($E$3,$E$5,$B$3:$C$3,$B$5:$C$5,B196,D196) -> 127.4284578 | J196: -59.09715838 | K196: 48.81077498 | L196: 32.70464433
A197: 94.5 | B197: 1.649336143 | C197: =Burmester($B$3:$C$3,$B$4:$C$4,$B$5:$C$5,$E$3,$E$4,$E$5,B197) -> 3.191655552 | D197: 5.076818975 | E197: =ThreePosition_Basic2($E$3,$E$5,$B$3:$C$3,$B$5:$C$5,B197,C197) -> -15.30003199 | F197: -91.63191961 | G197: -44.53591441 | H197: -17.00639529 | I197: =ThreePosition_Basic2($E$3,$E$5,$B$3:$C$3,$B$5:$C$5,B197,D197) -> 126.5477833 | J197: -58.69859458 | K197: 48.83518603 | L197: 32.78839578
A198: 95 | B198: 1.658062789 | C198: =Burmester($B$3:$C$3,$B$4:$C$4,$B$5:$C$5,$E$3,$E$4,$E$5,B198) -> 3.203589182 | D198: 5.078354567 | E198: =ThreePosition_Basic2($E$3,$E$5,$B$3:$C$3,$B$5:$C$5,B198,C198) -> -14.76709513 | F198: -91.55848669 | G198: -43.73285823 | H198: -17.02691692 | I198: =ThreePosition_Basic2($E$3,$E$5,$B$3:$C$3,$B$5:$C$5,B198,D198) -> 125.6804199 | J198: -58.30376383 | K198: 48.85992714 | L198: 32.87292932
A199: 95.5 | B199: 1.666789436 | C199: =Burmester($B$3:$C$3,$B$4:$C$4,$B$5:$C$5,$E$3,$E$4,$E$5,B199) -> 3.215487987 | D199: 5.079908194 | E199: =ThreePosition_Basic2($E$3,$E$5,$B$3:$C$3,$B$5:$C$5,B199,C199) -> -14.23597406 | F199: -91.48068461 | G199: -42.93337697 | H199: -17.04245751 | I199: =ThreePosition_Basic2($E$3,$E$5,$B$3:$C$3,$B$5:$C$5,B199,D199) -> 124.8260764 | J199: -57.9125506 | K199: 48.88500017 | L199: 32.95825852
A200: 96 | B200: 1.675516082 | C200: =Burmester($B$3:$C$3,$B$4:$C$4,$B$5:$C$5,$E$3,$E$4,$E$5,B200) -> 3.227351916 | D200: 5.081480122 | E200: =ThreePosition_Basic2($E$3,$E$5,$B$3:$C$3,$B$5:$C$5,B200,C200) -> -13.70671865 | F200: -91.39853761 | G200: -42.13748505 | H200: -17.05305364 | I200: =ThreePosition_Basic2($E$3,$E$5,$B$3:$C$3,$B$5:$C$5,B200,D200) -> 123.9844704 | J200: -57.52484227 | K200: 48.910407 | L200: 33.04439719
A201: 96.5 | B201: =A201*PI()/180 -> 1.684242728 | C201: =Burmester($B$3:$C$3,$B$4:$C$4,$B$5:$C$5,$E$3,$E$4,$E$5,B201) -> 3.239180913 | D201: 5.083070622 | E201: =ThreePosition_Basic2($E$3,$E$5,$B$3:$C$3,$B$5:$C$5,B201,C201) -> -13.17937869 | F201: -91.31207054 | G201: -41.34519743 | H201: -17.05874229 | I201: =ThreePosition_Basic2($E$3,$E$5,$B$3:$C$3,$B$5:$C$5,B201,D201) -> 123.1553284 | J201: -57.140529 | K201: 48.93614949 | L201: 33.13135932
A202: 97 | B202: 1.692969374 | C202: =Burmester($B$3:$C$3,$B$4:$C$4,$B$5:$C$5,$E$3,$E$4,$E$5,B202) -> 3.250974913 | D202: 5.084679969 | E202: =ThreePosition_Basic2($E$3,$E$5,$B$3:$C$3,$B$5:$C$5,B202,C202) -> -12.65400393 | F202: -91.22130885 | G202: -40.55652959 | H202: -17.0595608 | I202: =ThreePosition_Basic2($E$3,$E$5,$B$3:$C$3,$B$5:$C$5,B202,D202) -> 122.338385 | J202: -56.75950364 | K202: 48.96222954 | L202: 33.21915915
A203: 97.5 | B203: 1.701696021 | C203: =Burmester($B$3:$C$3,$B$4:$C$4,$B$5:$C$5,$E$3,$E$4,$E$5,B203) -> 3.262733846 | D203: 5.086308444 | E203: =ThreePosition_Basic2($E$3,$E$5,$B$3:$C$3,$B$5:$C$5,B203,C203) -> -12.13064404 | F203: -91.12627858 | G203: -39.77149752 | H203: -17.05554693 | I203: =ThreePosition_Basic2($E$3,$E$5,$B$3:$C$3,$B$5:$C$5,B203,D203) -> 121.5333831 | J203: -56.38166159 | K203: 48.98864904 | L203: 33.30781113
... 539 more rows
